{"text_format":"1","workbook":"xlsx","n_sheets":11,"sheets":["Objednávka","List 1","List 2","List 3","List 4","List 5","List 6","List 7","List 8","List 9","List 10"],"not_rendered":{"charts":0,"images":38,"macros":1,"external_links":0,"defined_names":2,"comments":0,"pivot_tables":0},"unopened":[],"bounds":{"document_bytes":16777216,"sheet_cells":100000,"rows_first":2000,"rows_last":500,"rows_between":2000,"halvings":0,"cell_chars":16384,"cell_head_chars":4096},"cells_cut":0,"cells_raw":0,"read":"whole","date_system":"1900"}

{"sheet":"Objednávka","index":0,"n_rows":31,"n_cols":11,"rows_kept":31,"cut":false,"hidden":false,"merged":[[19,5,19,6],[19,2,19,4],[30,2,30,4],[30,5,30,6],[27,2,27,4],[27,5,27,6],[28,2,28,4],[28,5,28,6],[29,2,29,4],[29,5,29,6],[24,2,24,4],[24,5,24,6],[25,2,25,4],[25,5,25,6],[26,2,26,4],[26,5,26,6],[20,2,20,4],[21,2,21,4],[22,2,22,4],[23,2,23,4],[20,5,20,6],[21,5,21,6],[22,5,22,6],[23,5,23,6],[14,1,16,12],[9,8,9,11],[10,8,10,11],[8,1,8,5],[9,1,9,5],[10,1,10,5],[3,8,3,11],[4,8,4,11],[5,8,5,11],[6,8,6,11],[7,8,7,11]]}
[]
[null,"Dodavatel",null,null,null,null,null,"Odběratel"]
[]
[null,null,null,null,null,null,null,"Firma:"]
[null,null,null,null,null,null,null,"IČO:"]
[null,null,null,null,null,null,null,"Telefon:"]
[null,null,null,null,null,null,null,"Email:"]
[null,null,null,null,null,null,null,"Číslo obj:"]
[null,"Němčany 307, 68401 Němčany"]
[null,"supertruhlar@prosto.cz",null,null,null,null,null,"Dodací adresa:"]
[null,"tel: 722 921 923"]
[]
[]
[]
[null,"Zadejte do jednotlivých listů Název materiálu, tloušťku, kód a jednotlivé položky.Vypňují se pouze světle žluté místa.\nNíže v tabulce naleznete celkový přehled za všechny listy.\nVypňují se pouze světle žluté místa."]
[]
[]
[null,"Opracované materiály:"]
[]
[null,"List č:","Název materiálu",null,null,"Kód Demos trade",null,"Počet položek","Kusů","Obsah \nm2","Délka ABS \nm"]
[null,1,{"$f":"GetSheetAddres(B21,\"B3\")","v":""},null,null,{"$f":"GetSheetAddres(B21,\"M3\")","v":""},null,{"$f":"GetSheetAddres(B21,\"AE7\")","v":0},{"$f":"GetSheetAddres(B21,\"AI7\")","v":0},{"$f":"GetSheetAddres(B21,\"AJ7\")","v":0},{"$f":"GetSheetAddres(B21,\"AH7\")","v":0}]
[null,2,{"$f":"GetSheetAddres(B22,\"B3\")","v":""},null,null,{"$f":"GetSheetAddres(B22,\"M3\")","v":""},null,{"$f":"GetSheetAddres(B22,\"AE7\")","v":0},{"$f":"GetSheetAddres(B22,\"AI7\")","v":0},{"$f":"GetSheetAddres(B22,\"AJ7\")","v":0},{"$f":"GetSheetAddres(B22,\"AH7\")","v":0}]
[null,3,{"$f":"GetSheetAddres(B23,\"B3\")","v":""},null,null,"",null,{"$f":"GetSheetAddres(B23,\"AE7\")","v":0},0,0,0]
[null,4,"",null,null,"",null,0,0,0,0]
[null,5,"",null,null,"",null,0,0,0,0]
[null,6,"",null,null,"",null,0,0,0,0]
[null,7,"",null,null,"",null,0,0,0,0]
[null,8,"",null,null,"",null,0,0,0,0]
[null,9,"",null,null,"",null,0,0,0,0]
[null,10,"",null,null,"",null,0,0,0,0]
[null,"Celkem","",null,null,{"$f":"GetSheetAddres(B31,\"M3\")","v":""},null,{"$f":"SUM(H21:H30)","v":0},{"$f":"SUM(I21:I30)","v":0},{"$f":"SUM(J21:J30)","v":0},{"$f":"SUM(K21:K30)","v":0}]

{"sheet":"List 1","index":1,"n_rows":110,"n_cols":40,"rows_kept":110,"cut":false,"hidden":false,"merged":[[9,8,9,15],[9,16,9,23],[9,24,9,27],[7,24,7,27],[7,28,8,28],[7,16,7,19],[7,20,7,23],[1,1,1,2],[2,1,2,2],[7,1,8,1],[7,8,7,11],[7,12,7,15],[7,2,7,3],[8,2,8,3],[1,4,1,10],[2,4,2,10],[7,4,7,5],[8,4,8,5],[7,6,7,7],[8,6,8,7],[1,12,1,16],[2,12,2,16]]}
[]
[null,"Název materiálu:",null,null,"Tloušťka materiálu:",null,null,null,null,null,null,null,"Kód Demos trade:",null,null,null,null,null,null,null,null,null,null,null,null,null,null,null,null,null,null,null,"Struktura:",true]
[null,null,null,null,null,null,null,null,null,null,null,null,null,null,null,null,null,null,null,null,null,null,null,null,null,null,null,null,null,null,null,null,"Bez struk:",false]
[]
[null,null,null,null,null,null,null,null,null,null,null,null,null,null,null,null,null,null,null,null,null,null,null,null,null,null,null,null,null,null,"Souhrn:"]
[null,null,null,null,null,null,null,null,null,null,null,null,null,null,null,null,null,null,null,null,null,null,null,null,null,null,null,null,null,null,"Položek","Délka ABS","Šířka ABS","ABS celkem","Kusy","Obsah"]
[null,null,null,null,null,null,null,null,null,null,null,null,null,null,null,null,null,null,null,null,null,null,null,null,null,null,null,null,null,null,{"$f":"100-COUNTBLANK(AE11:AE110)","v":0},{"$f":"SUM(C11:C110*AI11:AI110)*(IF(AJ11:AJ110>0,1,0)+IF(AL11:AL110>0,1,0))/1000","v":0},{"$f":"SUM(E11:E110*AI11:AI110)*(IF(AK11:AK110>0,1,0)+IF(AM11:AM110>0,1,0))/1000","v":0},{"$f":"AF7+AG7","v":0},{"$f":"SUM(AI11:AI110)","v":0},{"$f":"SUM(C11:C110*E11:E110*G11:G110)/1000/1000","v":0}]
[null,"název dílce:","x = délka:",null,"y = šířka:",null,"počet",null,"tloušťka ABS",null,null,null,"tloušťka ABS",null,null,null,"tloušťka ABS",null,null,null,"tloušťka ABS",null,null,null,"síla hrany v mm:",null,null,null,"poznámka"]
[null,null,"(po létech)",null,"(napříč létům)",null,"kusů:",null,0,0.5,1,2,0,0.5,1,2,0,0.5,1,2,0,0.5,1,2,"x","x","y","y",null,null,"Název","Délka","Šířka","Směr řezu","Počet","ABS 1","ABS 2","ABS 3","ABS 4","Poznámka"]
[null,null,"zadat",null,"zadat",null,"zadat",null,"označení pravým tlačítkem nebo lib.znak",null,null,null,null,null,null,null,"označení pravým tlačítkem nebo lib.znak",null,null,null,null,null,null,null,"kontrola nebo zadat"]
[1,null,null,"mm",null,"mm",null,"ks",null,null,null,null,null,null,null,null,null,null,null,null,null,null,null,null,null,null,null,null,null,null,{"$f":"IF(B11<>\"\",B11,\"\")","v":""},{"$f":"C11+1-MAX(Y11,0.5)-MAX(Z11,0.5)","v":0},{"$f":"E11+1-MAX(AA11,0.5)-MAX(AB11,0.5)","v":0},{"$f":" IF($AH$2,\"L\",0)","v":"L"},{"$f":"G11","v":0},{"$f":"Y11","v":0},{"$f":"AA11","v":0},{"$f":"Z11","v":0},{"$f":"AB11","v":0},{"$f":"IF( AC11<>\"\",AC11,\"\")","v":""}]
[2,null,null,"mm",null,"mm",null,"ks",null,null,null,null,null,null,null,null,null,null,null,null,null,null,null,null,null,null,null,null,null,null,"",0,{"$f":"E12+1-MAX(AA12,0.5)-MAX(AB12,0.5)","v":0},{"$f":" IF($AH$2,\"L\",0)","v":"L"},{"$f":"G12","v":0},{"$f":"Y12","v":0},{"$f":"AA12","v":0},{"$f":"Z12","v":0},{"$f":"AB12","v":0},{"$f":"IF( AC12<>\"\",AC12,\"\")","v":""}]
[3,null,null,"mm",null,"mm",null,"ks",null,null,null,null,null,null,null,null,null,null,null,null,null,null,null,null,null,null,null,null,null,null,"",0,{"$f":"E13+1-MAX(AA13,0.5)-MAX(AB13,0.5)","v":0},{"$f":" IF($AH$2,\"L\",0)","v":"L"},{"$f":"G13","v":0},{"$f":"Y13","v":0},{"$f":"AA13","v":0},{"$f":"Z13","v":0},{"$f":"AB13","v":0},{"$f":"IF( AC13<>\"\",AC13,\"\")","v":""}]
[4,null,null,"mm",null,"mm",null,"ks",null,null,null,null,null,null,null,null,null,null,null,null,null,null,null,null,null,null,null,null,null,null,"",{"$f":"C14+1-MAX(Y14,0.5)-MAX(Z14,0.5)","v":0},0,"L",0,0,0,0,0,""]
[5,null,null,"mm",null,"mm",null,"ks",null,null,null,null,null,null,null,null,null,null,null,null,null,null,null,null,null,null,null,null,null,null,"",0,0,"L",0,0,0,0,0,""]
[6,null,null,"mm",null,"mm",null,"ks",null,null,null,null,null,null,null,null,null,null,null,null,null,null,null,null,null,null,null,null,null,null,"",0,0,"L",0,0,0,0,0,{"$f":"IF( AC16<>\"\",AC16,\"\")","v":""}]
[7,null,null,"mm",null,"mm",null,"ks",null,null,null,null,null,null,null,null,null,null,null,null,null,null,null,null,null,null,null,null,null,null,"",0,0,"L",0,0,0,0,0,""]
[8,null,null,"mm",null,"mm",null,"ks",null,null,null,null,null,null,null,null,null,null,null,null,null,null,null,null,null,null,null,null,null,null,"",0,0,"L",0,0,0,0,0,""]
[9,null,null,"mm",null,"mm",null,"ks",null,null,null,null,null,null,null,null,null,null,null,null,null,null,null,null,null,null,null,null,null,null,"",0,0,"L",0,0,0,0,0,""]
[10,null,null,"mm",null,"mm",null,"ks",null,null,null,null,null,null,null,null,null,null,null,null,null,null,null,null,null,null,null,null,null,null,"",0,0,"L",0,0,0,0,0,""]
[11,null,null,"mm",null,"mm",null,"ks",null,null,null,null,null,null,null,null,null,null,null,null,null,null,null,null,null,null,null,null,null,null,"",0,0,"L",0,0,0,0,0,""]
[12,null,null,"mm",null,"mm",null,"ks",null,null,null,null,null,null,null,null,null,null,null,null,null,null,null,null,null,null,null,null,null,null,"",0,0,"L",0,0,0,0,0,""]
[13,null,null,"mm",null,"mm",null,"ks",null,null,null,null,null,null,null,null,null,null,null,null,null,null,null,null,null,null,null,null,null,null,"",0,0,"L",0,0,0,0,0,""]
[14,null,null,"mm",null,"mm",null,"ks",null,null,null,null,null,null,null,null,null,null,null,null,null,null,null,null,null,null,null,null,null,null,"",0,0,"L",0,0,0,0,0,""]
[15,null,null,"mm",null,"mm",null,"ks",null,null,null,null,null,null,null,null,null,null,null,null,null,null,null,null,null,null,null,null,null,null,"",0,0,"L",0,0,0,0,0,""]
[16,null,null,"mm",null,"mm",null,"ks",null,null,null,null,null,null,null,null,null,null,null,null,null,null,null,null,null,null,null,null,null,null,"",0,0,"L",0,0,0,0,0,""]
[17,null,null,"mm",null,"mm",null,"ks",null,null,null,null,null,null,null,null,null,null,null,null,null,null,null,null,null,null,null,null,null,null,"",0,0,"L",0,0,0,0,0,""]
[18,null,null,"mm",null,"mm",null,"ks",null,null,null,null,null,null,null,null,null,null,null,null,null,null,null,null,null,null,null,null,null,null,"",0,0,"L",0,0,0,0,0,""]
[19,null,null,"mm",null,"mm",null,"ks",null,null,null,null,null,null,null,null,null,null,null,null,null,null,null,null,null,null,null,null,null,null,"",0,0,"L",0,0,0,0,0,""]
[20,null,null,"mm",null,"mm",null,"ks",null,null,null,null,null,null,null,null,null,null,null,null,null,null,null,null,null,null,null,null,null,null,"",0,0,"L",0,0,0,0,0,""]
[21,null,null,"mm",null,"mm",null,"ks",null,null,null,null,null,null,null,null,null,null,null,null,null,null,null,null,null,null,null,null,null,null,"",0,0,"L",0,0,0,0,0,""]
[22,null,null,"mm",null,"mm",null,"ks",null,null,null,null,null,null,null,null,null,null,null,null,null,null,null,null,null,null,null,null,null,null,"",0,0,"L",0,0,0,0,0,""]
[23,null,null,"mm",null,"mm",null,"ks",null,null,null,null,null,null,null,null,null,null,null,null,null,null,null,null,null,null,null,null,null,null,"",0,0,"L",0,0,0,0,0,""]
[24,null,null,"mm",null,"mm",null,"ks",null,null,null,null,null,null,null,null,null,null,null,null,null,null,null,null,null,null,null,null,null,null,"",0,0,"L",0,0,0,0,0,""]
[25,null,null,"mm",null,"mm",null,"ks",null,null,null,null,null,null,null,null,null,null,null,null,null,null,null,null,null,null,null,null,null,null,"",0,0,"L",0,0,0,0,0,""]
[26,null,null,"mm",null,"mm",null,"ks",null,null,null,null,null,null,null,null,null,null,null,null,null,null,null,null,null,null,null,null,null,null,"",0,0,"L",0,0,0,0,0,""]
[27,null,null,"mm",null,"mm",null,"ks",null,null,null,null,null,null,null,null,null,null,null,null,null,null,null,null,null,null,null,null,null,null,"",0,0,"L",0,0,0,0,0,""]
[28,null,null,"mm",null,"mm",null,"ks",null,null,null,null,null,null,null,null,null,null,null,null,null,null,null,null,null,null,null,null,null,null,"",0,0,"L",0,0,0,0,0,""]
[29,null,null,"mm",null,"mm",null,"ks",null,null,null,null,null,null,null,null,null,null,null,null,null,null,null,null,null,null,null,null,null,null,"",0,0,"L",0,0,0,0,0,""]
[30,null,null,"mm",null,"mm",null,"ks",null,null,null,null,null,null,null,null,null,null,null,null,null,null,null,null,null,null,null,null,null,null,"",0,0,"L",0,0,0,0,0,""]
[31,null,null,"mm",null,"mm",null,"ks",null,null,null,null,null,null,null,null,null,null,null,null,null,null,null,null,null,null,null,null,null,null,"",0,0,"L",0,0,0,0,0,""]
[32,null,null,"mm",null,"mm",null,"ks",null,null,null,null,null,null,null,null,null,null,null,null,null,null,null,null,null,null,null,null,null,null,"",0,0,"L",0,0,0,0,0,""]
[33,null,null,"mm",null,"mm",null,"ks",null,null,null,null,null,null,null,null,null,null,null,null,null,null,null,null,null,null,null,null,null,null,{"$f":"IF(B43<>\"\",B43,\"\")","v":""},0,0,"L",0,0,0,0,0,""]
[34,null,null,"mm",null,"mm",null,"ks",null,null,null,null,null,null,null,null,null,null,null,null,null,null,null,null,null,null,null,null,null,null,"",0,0,"L",0,0,0,0,0,""]
[35,null,null,"mm",null,"mm",null,"ks",null,null,null,null,null,null,null,null,null,null,null,null,null,null,null,null,null,null,null,null,null,null,"",0,0,"L",0,0,0,0,0,""]
[36,null,null,"mm",null,"mm",null,"ks",null,null,null,null,null,null,null,null,null,null,null,null,null,null,null,null,null,null,null,null,null,null,"",0,0,"L",0,0,0,0,0,""]
[37,null,null,"mm",null,"mm",null,"ks",null,null,null,null,null,null,null,null,null,null,null,null,null,null,null,null,null,null,null,null,null,null,"",0,0,"L",0,0,0,0,0,""]
[38,null,null,"mm",null,"mm",null,"ks",null,null,null,null,null,null,null,null,null,null,null,null,null,null,null,null,null,null,null,null,null,null,"",0,0,"L",0,0,0,0,0,""]
[39,null,null,"mm",null,"mm",null,"ks",null,null,null,null,null,null,null,null,null,null,null,null,null,null,null,null,null,null,null,null,null,null,"",0,0,"L",0,0,0,0,0,""]
[40,null,null,"mm",null,"mm",null,"ks",null,null,null,null,null,null,null,null,null,null,null,null,null,null,null,null,null,null,null,null,null,null,"",0,0,"L",0,0,0,0,0,""]
[41,null,null,"mm",null,"mm",null,"ks",null,null,null,null,null,null,null,null,null,null,null,null,null,null,null,null,null,null,null,null,null,null,"",0,0,"L",0,0,0,0,0,""]
[42,null,null,"mm",null,"mm",null,"ks",null,null,null,null,null,null,null,null,null,null,null,null,null,null,null,null,null,null,null,null,null,null,"",0,0,"L",0,0,0,0,0,""]
[43,null,null,"mm",null,"mm",null,"ks",null,null,null,null,null,null,null,null,null,null,null,null,null,null,null,null,null,null,null,null,null,null,"",0,0,"L",0,0,0,0,0,""]
[44,null,null,"mm",null,"mm",null,"ks",null,null,null,null,null,null,null,null,null,null,null,null,null,null,null,null,null,null,null,null,null,null,"",0,0,"L",0,0,0,0,0,""]
[45,null,null,"mm",null,"mm",null,"ks",null,null,null,null,null,null,null,null,null,null,null,null,null,null,null,null,null,null,null,null,null,null,"",0,0,"L",0,0,0,0,0,""]
[46,null,null,"mm",null,"mm",null,"ks",null,null,null,null,null,null,null,null,null,null,null,null,null,null,null,null,null,null,null,null,null,null,"",0,0,"L",0,0,0,0,0,""]
[47,null,null,"mm",null,"mm",null,"ks",null,null,null,null,null,null,null,null,null,null,null,null,null,null,null,null,null,null,null,null,null,null,"",0,0,"L",0,0,0,0,0,""]
[48,null,null,"mm",null,"mm",null,"ks",null,null,null,null,null,null,null,null,null,null,null,null,null,null,null,null,null,null,null,null,null,null,"",0,0,"L",0,0,0,0,0,""]
[49,null,null,"mm",null,"mm",null,"ks",null,null,null,null,null,null,null,null,null,null,null,null,null,null,null,null,null,null,null,null,null,null,"",0,0,"L",0,0,0,0,0,""]
[50,null,null,"mm",null,"mm",null,"ks",null,null,null,null,null,null,null,null,null,null,null,null,null,null,null,null,null,null,null,null,null,null,"",0,0,"L",0,0,0,0,0,""]
[51,null,null,"mm",null,"mm",null,"ks",null,null,null,null,null,null,null,null,null,null,null,null,null,null,null,null,null,null,null,null,null,null,"",0,0,"L",0,0,0,0,0,""]
[52,null,null,"mm",null,"mm",null,"ks",null,null,null,null,null,null,null,null,null,null,null,null,null,null,null,null,null,null,null,null,null,null,"",0,0,"L",0,0,0,0,0,""]
[53,null,null,"mm",null,"mm",null,"ks",null,null,null,null,null,null,null,null,null,null,null,null,null,null,null,null,null,null,null,null,null,null,"",0,0,"L",0,0,0,0,0,""]
[54,null,null,"mm",null,"mm",null,"ks",null,null,null,null,null,null,null,null,null,null,null,null,null,null,null,null,null,null,null,null,null,null,"",0,0,"L",0,0,0,0,0,""]
[55,null,null,"mm",null,"mm",null,"ks",null,null,null,null,null,null,null,null,null,null,null,null,null,null,null,null,null,null,null,null,null,null,"",0,0,"L",0,0,0,0,0,""]
[56,null,null,"mm",null,"mm",null,"ks",null,null,null,null,null,null,null,null,null,null,null,null,null,null,null,null,null,null,null,null,null,null,"",0,0,"L",0,0,0,0,0,""]
[57,null,null,"mm",null,"mm",null,"ks",null,null,null,null,null,null,null,null,null,null,null,null,null,null,null,null,null,null,null,null,null,null,"",0,0,"L",0,0,0,0,0,""]
[58,null,null,"mm",null,"mm",null,"ks",null,null,null,null,null,null,null,null,null,null,null,null,null,null,null,null,null,null,null,null,null,null,"",0,0,"L",0,0,0,0,0,""]
[59,null,null,"mm",null,"mm",null,"ks",null,null,null,null,null,null,null,null,null,null,null,null,null,null,null,null,null,null,null,null,null,null,"",0,0,"L",0,0,0,0,0,""]
[60,null,null,"mm",null,"mm",null,"ks",null,null,null,null,null,null,null,null,null,null,null,null,null,null,null,null,null,null,null,null,null,null,"",0,0,"L",0,0,0,0,0,""]
[61,null,null,"mm",null,"mm",null,"ks",null,null,null,null,null,null,null,null,null,null,null,null,null,null,null,null,null,null,null,null,null,null,"",0,0,"L",0,0,0,0,0,""]
[62,null,null,"mm",null,"mm",null,"ks",null,null,null,null,null,null,null,null,null,null,null,null,null,null,null,null,null,null,null,null,null,null,"",0,0,"L",0,0,0,0,0,""]
[63,null,null,"mm",null,"mm",null,"ks",null,null,null,null,null,null,null,null,null,null,null,null,null,null,null,null,null,null,null,null,null,null,"",0,0,"L",0,0,0,0,0,""]
[64,null,null,"mm",null,"mm",null,"ks",null,null,null,null,null,null,null,null,null,null,null,null,null,null,null,null,null,null,null,null,null,null,"",0,0,"L",0,0,0,0,0,""]
[65,null,null,"mm",null,"mm",null,"ks",null,null,null,null,null,null,null,null,null,null,null,null,null,null,null,null,null,null,null,null,null,null,{"$f":"IF(B75<>\"\",B75,\"\")","v":""},0,0,"L",0,0,0,0,0,""]
[66,null,null,"mm",null,"mm",null,"ks",null,null,null,null,null,null,null,null,null,null,null,null,null,null,null,null,null,null,null,null,null,null,"",0,0,"L",0,0,0,0,0,""]
[67,null,null,"mm",null,"mm",null,"ks",null,null,null,null,null,null,null,null,null,null,null,null,null,null,null,null,null,null,null,null,null,null,"",0,{"$f":"E77+1-MAX(AA77,0.5)-MAX(AB77,0.5)","v":0},{"$f":" IF($AH$2,\"L\",0)","v":"L"},{"$f":"G77","v":0},{"$f":"Y77","v":0},{"$f":"AA77","v":0},{"$f":"Z77","v":0},{"$f":"AB77","v":0},""]
[68,null,null,"mm",null,"mm",null,"ks",null,null,null,null,null,null,null,null,null,null,null,null,null,null,null,null,null,null,null,null,null,null,"",{"$f":"C78+1-MAX(Y78,0.5)-MAX(Z78,0.5)","v":0},0,"L",0,0,0,0,0,""]
[69,null,null,"mm",null,"mm",null,"ks",null,null,null,null,null,null,null,null,null,null,null,null,null,null,null,null,null,null,null,null,null,null,"",0,0,"L",0,0,0,0,0,""]
[70,null,null,"mm",null,"mm",null,"ks",null,null,null,null,null,null,null,null,null,null,null,null,null,null,null,null,null,null,null,null,null,null,"",0,0,"L",0,0,0,0,0,{"$f":"IF( AC80<>\"\",AC80,\"\")","v":""}]
[71,null,null,"mm",null,"mm",null,"ks",null,null,null,null,null,null,null,null,null,null,null,null,null,null,null,null,null,null,null,null,null,null,"",0,0,"L",0,0,0,0,0,""]
[72,null,null,"mm",null,"mm",null,"ks",null,null,null,null,null,null,null,null,null,null,null,null,null,null,null,null,null,null,null,null,null,null,"",0,0,"L",0,0,0,0,0,""]
[73,null,null,"mm",null,"mm",null,"ks",null,null,null,null,null,null,null,null,null,null,null,null,null,null,null,null,null,null,null,null,null,null,"",0,0,"L",0,0,0,0,0,""]
[74,null,null,"mm",null,"mm",null,"ks",null,null,null,null,null,null,null,null,null,null,null,null,null,null,null,null,null,null,null,null,null,null,"",0,0,"L",0,0,0,0,0,""]
[75,null,null,"mm",null,"mm",null,"ks",null,null,null,null,null,null,null,null,null,null,null,null,null,null,null,null,null,null,null,null,null,null,"",0,0,"L",0,0,0,0,0,""]
[76,null,null,"mm",null,"mm",null,"ks",null,null,null,null,null,null,null,null,null,null,null,null,null,null,null,null,null,null,null,null,null,null,"",0,0,"L",0,0,0,0,0,""]
[77,null,null,"mm",null,"mm",null,"ks",null,null,null,null,null,null,null,null,null,null,null,null,null,null,null,null,null,null,null,null,null,null,"",0,0,"L",0,0,0,0,0,""]
[78,null,null,"mm",null,"mm",null,"ks",null,null,null,null,null,null,null,null,null,null,null,null,null,null,null,null,null,null,null,null,null,null,"",0,0,"L",0,0,0,0,0,""]
[79,null,null,"mm",null,"mm",null,"ks",null,null,null,null,null,null,null,null,null,null,null,null,null,null,null,null,null,null,null,null,null,null,"",0,0,"L",0,0,0,0,0,""]
[80,null,null,"mm",null,"mm",null,"ks",null,null,null,null,null,null,null,null,null,null,null,null,null,null,null,null,null,null,null,null,null,null,"",0,0,"L",0,0,0,0,0,""]
[81,null,null,"mm",null,"mm",null,"ks",null,null,null,null,null,null,null,null,null,null,null,null,null,null,null,null,null,null,null,null,null,null,"",0,0,"L",0,0,0,0,0,""]
[82,null,null,"mm",null,"mm",null,"ks",null,null,null,null,null,null,null,null,null,null,null,null,null,null,null,null,null,null,null,null,null,null,"",0,0,"L",0,0,0,0,0,""]
[83,null,null,"mm",null,"mm",null,"ks",null,null,null,null,null,null,null,null,null,null,null,null,null,null,null,null,null,null,null,null,null,null,"",0,0,"L",0,0,0,0,0,""]
[84,null,null,"mm",null,"mm",null,"ks",null,null,null,null,null,null,null,null,null,null,null,null,null,null,null,null,null,null,null,null,null,null,"",0,0,"L",0,0,0,0,0,""]
[85,null,null,"mm",null,"mm",null,"ks",null,null,null,null,null,null,null,null,null,null,null,null,null,null,null,null,null,null,null,null,null,null,"",0,0,"L",0,0,0,0,0,""]
[86,null,null,"mm",null,"mm",null,"ks",null,null,null,null,null,null,null,null,null,null,null,null,null,null,null,null,null,null,null,null,null,null,"",0,0,"L",0,0,0,0,0,""]
[87,null,null,"mm",null,"mm",null,"ks",null,null,null,null,null,null,null,null,null,null,null,null,null,null,null,null,null,null,null,null,null,null,"",0,0,"L",0,0,0,0,0,""]
[88,null,null,"mm",null,"mm",null,"ks",null,null,null,null,null,null,null,null,null,null,null,null,null,null,null,null,null,null,null,null,null,null,"",0,0,"L",0,0,0,0,0,""]
[89,null,null,"mm",null,"mm",null,"ks",null,null,null,null,null,null,null,null,null,null,null,null,null,null,null,null,null,null,null,null,null,null,"",0,0,"L",0,0,0,0,0,""]
[90,null,null,"mm",null,"mm",null,"ks",null,null,null,null,null,null,null,null,null,null,null,null,null,null,null,null,null,null,null,null,null,null,"",0,0,"L",0,0,0,0,0,""]
[91,null,null,"mm",null,"mm",null,"ks",null,null,null,null,null,null,null,null,null,null,null,null,null,null,null,null,null,null,null,null,null,null,"",0,0,"L",0,0,0,0,0,""]
[92,null,null,"mm",null,"mm",null,"ks",null,null,null,null,null,null,null,null,null,null,null,null,null,null,null,null,null,null,null,null,null,null,"",0,0,"L",0,0,0,0,0,""]
[93,null,null,"mm",null,"mm",null,"ks",null,null,null,null,null,null,null,null,null,null,null,null,null,null,null,null,null,null,null,null,null,null,"",0,0,"L",0,0,0,0,0,""]
[94,null,null,"mm",null,"mm",null,"ks",null,null,null,null,null,null,null,null,null,null,null,null,null,null,null,null,null,null,null,null,null,null,"",0,0,"L",0,0,0,0,0,""]
[95,null,null,"mm",null,"mm",null,"ks",null,null,null,null,null,null,null,null,null,null,null,null,null,null,null,null,null,null,null,null,null,null,"",0,0,"L",0,0,0,0,0,""]
[96,null,null,"mm",null,"mm",null,"ks",null,null,null,null,null,null,null,null,null,null,null,null,null,null,null,null,null,null,null,null,null,null,"",0,0,"L",0,0,0,0,0,""]
[97,null,null,"mm",null,"mm",null,"ks",null,null,null,null,null,null,null,null,null,null,null,null,null,null,null,null,null,null,null,null,null,null,"",0,0,"L",0,0,0,0,0,""]
[98,null,null,"mm",null,"mm",null,"ks",null,null,null,null,null,null,null,null,null,null,null,null,null,null,null,null,null,null,null,null,null,null,"",0,0,"L",0,0,0,0,0,""]
[99,null,null,"mm",null,"mm",null,"ks",null,null,null,null,null,null,null,null,null,null,null,null,null,null,null,null,null,null,null,null,null,null,"",0,0,"L",0,0,0,0,0,""]
[100,null,null,"mm",null,"mm",null,"ks",null,null,null,null,null,null,null,null,null,null,null,null,null,null,null,null,null,null,null,null,null,null,"",0,0,"L",0,0,0,0,0,""]

{"sheet":"List 2","index":2,"n_rows":110,"n_cols":40,"rows_kept":110,"cut":false,"hidden":false,"merged":[[9,8,9,15],[9,16,9,23],[9,24,9,27],[7,16,7,19],[7,20,7,23],[7,24,7,27],[7,28,8,28],[8,2,8,3],[8,4,8,5],[8,6,8,7],[7,1,8,1],[7,2,7,3],[7,4,7,5],[7,6,7,7],[7,8,7,11],[7,12,7,15],[1,1,1,2],[1,4,1,10],[1,12,1,16],[2,1,2,2],[2,4,2,10],[2,12,2,16]]}
[]
[null,"Název materiálu:",null,null,"Tloušťka materiálu:",null,null,null,null,null,null,null,"Kód Demos trade:",null,null,null,null,null,null,null,null,null,null,null,null,null,null,null,null,null,null,null,"Struktura:",true]
[null,null,null,null,null,null,null,null,null,null,null,null,null,null,null,null,null,null,null,null,null,null,null,null,null,null,null,null,null,null,null,null,"Bez struk:",false]
[]
[null,null,null,null,null,null,null,null,null,null,null,null,null,null,null,null,null,null,null,null,null,null,null,null,null,null,null,null,null,null,"Souhrn:"]
[null,null,null,null,null,null,null,null,null,null,null,null,null,null,null,null,null,null,null,null,null,null,null,null,null,null,null,null,null,null,"Položek","Délka ABS","Šířka ABS","ABS celkem","Kusy","Obsah"]
[null,null,null,null,null,null,null,null,null,null,null,null,null,null,null,null,null,null,null,null,null,null,null,null,null,null,null,null,null,null,{"$f":"100-COUNTBLANK(AE11:AE110)","v":0},{"$f":"SUM(C11:C110*AI11:AI110)*(IF(AJ11:AJ110>0,1,0)+IF(AL11:AL110>0,1,0))/1000","v":0},{"$f":"SUM(E11:E110*AI11:AI110)*(IF(AK11:AK110>0,1,0)+IF(AM11:AM110>0,1,0))/1000","v":0},{"$f":"AF7+AG7","v":0},{"$f":"SUM(AI11:AI110)","v":0},{"$f":"SUM(C11:C110*E11:E110*G11:G110)/1000/1000","v":0}]
[null,"název dílce:","x = délka:",null,"y = šířka:",null,"počet",null,"tloušťka ABS",null,null,null,"tloušťka ABS",null,null,null,"tloušťka ABS",null,null,null,"tloušťka ABS",null,null,null,"síla hrany v mm:",null,null,null,"poznámka"]
[null,null,"(po létech)",null,"(napříč létům)",null,"kusů:",null,0,0.5,1,2,0,0.5,1,2,0,0.5,1,2,0,0.5,1,2,"x","x","y","y",null,null,"Název","Délka","Šířka","Směr řezu","Počet","ABS 1","ABS 2","ABS 3","ABS 4","Poznámka"]
[null,null,"zadat",null,"zadat",null,"zadat",null,"označení pravým tlačítkem nebo lib.znak",null,null,null,null,null,null,null,"označení pravým tlačítkem nebo lib.znak",null,null,null,null,null,null,null,"kontrola nebo zadat"]
[1,null,null,"mm",null,"mm",null,"ks",null,null,null,null,null,null,null,null,null,null,null,null,null,null,null,null,null,null,null,null,null,null,{"$f":"IF(B11<>\"\",B11,\"\")","v":""},{"$f":"C11+1-MAX(Y11,0.5)-MAX(Z11,0.5)","v":0},{"$f":"E11+1-MAX(AA11,0.5)-MAX(AB11,0.5)","v":0},{"$f":" IF($AH$2,\"L\",0)","v":"L"},{"$f":"G11","v":0},{"$f":"Y11","v":0},{"$f":"AA11","v":0},{"$f":"Z11","v":0},{"$f":"AB11","v":0},{"$f":"IF( AC11<>\"\",AC11,\"\")","v":""}]
[2,null,null,"mm",null,"mm",null,"ks",null,null,null,null,null,null,null,null,null,null,null,null,null,null,null,null,null,null,null,null,null,null,"",0,{"$f":"E12+1-MAX(AA12,0.5)-MAX(AB12,0.5)","v":0},{"$f":" IF($AH$2,\"L\",0)","v":"L"},{"$f":"G12","v":0},{"$f":"Y12","v":0},{"$f":"AA12","v":0},{"$f":"Z12","v":0},{"$f":"AB12","v":0},{"$f":"IF( AC12<>\"\",AC12,\"\")","v":""}]
[3,null,null,"mm",null,"mm",null,"ks",null,null,null,null,null,null,null,null,null,null,null,null,null,null,null,null,null,null,null,null,null,null,"",0,{"$f":"E13+1-MAX(AA13,0.5)-MAX(AB13,0.5)","v":0},{"$f":" IF($AH$2,\"L\",0)","v":"L"},{"$f":"G13","v":0},{"$f":"Y13","v":0},{"$f":"AA13","v":0},{"$f":"Z13","v":0},{"$f":"AB13","v":0},""]
[4,null,null,"mm",null,"mm",null,"ks",null,null,null,null,null,null,null,null,null,null,null,null,null,null,null,null,null,null,null,null,null,null,"",0,0,"L",0,0,0,0,0,""]
[5,null,null,"mm",null,"mm",null,"ks",null,null,null,null,null,null,null,null,null,null,null,null,null,null,null,null,null,null,null,null,null,null,"",0,0,"L",0,0,0,0,0,""]
[6,null,null,"mm",null,"mm",null,"ks",null,null,null,null,null,null,null,null,null,null,null,null,null,null,null,null,null,null,null,null,null,null,"",0,0,"L",0,0,0,0,0,""]
[7,null,null,"mm",null,"mm",null,"ks",null,null,null,null,null,null,null,null,null,null,null,null,null,null,null,null,null,null,null,null,null,null,"",0,0,"L",0,0,0,0,0,""]
[8,null,null,"mm",null,"mm",null,"ks",null,null,null,null,null,null,null,null,null,null,null,null,null,null,null,null,null,null,null,null,null,null,"",0,0,"L",0,0,0,0,0,""]
[9,null,null,"mm",null,"mm",null,"ks",null,null,null,null,null,null,null,null,null,null,null,null,null,null,null,null,null,null,null,null,null,null,"",0,0,"L",0,0,0,0,0,""]
[10,null,null,"mm",null,"mm",null,"ks",null,null,null,null,null,null,null,null,null,null,null,null,null,null,null,null,null,null,null,null,null,null,"",0,0,"L",0,0,0,0,0,""]
[11,null,null,"mm",null,"mm",null,"ks",null,null,null,null,null,null,null,null,null,null,null,null,null,null,null,null,null,null,null,null,null,null,"",0,0,"L",0,0,0,0,0,""]
[12,null,null,"mm",null,"mm",null,"ks",null,null,null,null,null,null,null,null,null,null,null,null,null,null,null,null,null,null,null,null,null,null,"",0,0,"L",0,0,0,0,0,""]
[13,null,null,"mm",null,"mm",null,"ks",null,null,null,null,null,null,null,null,null,null,null,null,null,null,null,null,null,null,null,null,null,null,"",0,0,"L",0,0,0,0,0,""]
[14,null,null,"mm",null,"mm",null,"ks",null,null,null,null,null,null,null,null,null,null,null,null,null,null,null,null,null,null,null,null,null,null,"",0,0,"L",0,0,0,0,0,""]
[15,null,null,"mm",null,"mm",null,"ks",null,null,null,null,null,null,null,null,null,null,null,null,null,null,null,null,null,null,null,null,null,null,"",0,0,"L",0,0,0,0,0,""]
[16,null,null,"mm",null,"mm",null,"ks",null,null,null,null,null,null,null,null,null,null,null,null,null,null,null,null,null,null,null,null,null,null,"",0,0,"L",0,0,0,0,0,""]
[17,null,null,"mm",null,"mm",null,"ks",null,null,null,null,null,null,null,null,null,null,null,null,null,null,null,null,null,null,null,null,null,null,"",0,0,"L",0,0,0,0,0,""]
[18,null,null,"mm",null,"mm",null,"ks",null,null,null,null,null,null,null,null,null,null,null,null,null,null,null,null,null,null,null,null,null,null,"",0,0,"L",0,0,0,0,0,""]
[19,null,null,"mm",null,"mm",null,"ks",null,null,null,null,null,null,null,null,null,null,null,null,null,null,null,null,null,null,null,null,null,null,"",0,0,"L",0,0,0,0,0,""]
[20,null,null,"mm",null,"mm",null,"ks",null,null,null,null,null,null,null,null,null,null,null,null,null,null,null,null,null,null,null,null,null,null,"",0,0,"L",0,0,0,0,0,""]
[21,null,null,"mm",null,"mm",null,"ks",null,null,null,null,null,null,null,null,null,null,null,null,null,null,null,null,null,null,null,null,null,null,"",0,0,"L",0,0,0,0,0,""]
[22,null,null,"mm",null,"mm",null,"ks",null,null,null,null,null,null,null,null,null,null,null,null,null,null,null,null,null,null,null,null,null,null,"",0,0,"L",0,0,0,0,0,""]
[23,null,null,"mm",null,"mm",null,"ks",null,null,null,null,null,null,null,null,null,null,null,null,null,null,null,null,null,null,null,null,null,null,"",0,0,"L",0,0,0,0,0,""]
[24,null,null,"mm",null,"mm",null,"ks",null,null,null,null,null,null,null,null,null,null,null,null,null,null,null,null,null,null,null,null,null,null,"",0,0,"L",0,0,0,0,0,""]
[25,null,null,"mm",null,"mm",null,"ks",null,null,null,null,null,null,null,null,null,null,null,null,null,null,null,null,null,null,null,null,null,null,"",0,0,"L",0,0,0,0,0,""]
[26,null,null,"mm",null,"mm",null,"ks",null,null,null,null,null,null,null,null,null,null,null,null,null,null,null,null,null,null,null,null,null,null,"",0,0,"L",0,0,0,0,0,""]
[27,null,null,"mm",null,"mm",null,"ks",null,null,null,null,null,null,null,null,null,null,null,null,null,null,null,null,null,null,null,null,null,null,"",0,0,"L",0,0,0,0,0,""]
[28,null,null,"mm",null,"mm",null,"ks",null,null,null,null,null,null,null,null,null,null,null,null,null,null,null,null,null,null,null,null,null,null,"",0,0,"L",0,0,0,0,0,""]
[29,null,null,"mm",null,"mm",null,"ks",null,null,null,null,null,null,null,null,null,null,null,null,null,null,null,null,null,null,null,null,null,null,"",0,0,"L",0,0,0,0,0,""]
[30,null,null,"mm",null,"mm",null,"ks",null,null,null,null,null,null,null,null,null,null,null,null,null,null,null,null,null,null,null,null,null,null,"",0,0,"L",0,0,0,0,0,""]
[31,null,null,"mm",null,"mm",null,"ks",null,null,null,null,null,null,null,null,null,null,null,null,null,null,null,null,null,null,null,null,null,null,"",0,0,"L",0,0,0,0,0,""]
[32,null,null,"mm",null,"mm",null,"ks",null,null,null,null,null,null,null,null,null,null,null,null,null,null,null,null,null,null,null,null,null,null,"",0,0,"L",0,0,0,0,0,""]
[33,null,null,"mm",null,"mm",null,"ks",null,null,null,null,null,null,null,null,null,null,null,null,null,null,null,null,null,null,null,null,null,null,{"$f":"IF(B43<>\"\",B43,\"\")","v":""},0,0,"L",0,0,0,0,0,""]
[34,null,null,"mm",null,"mm",null,"ks",null,null,null,null,null,null,null,null,null,null,null,null,null,null,null,null,null,null,null,null,null,null,"",0,0,"L",0,0,0,0,0,""]
[35,null,null,"mm",null,"mm",null,"ks",null,null,null,null,null,null,null,null,null,null,null,null,null,null,null,null,null,null,null,null,null,null,"",0,0,"L",0,0,0,0,0,""]
[36,null,null,"mm",null,"mm",null,"ks",null,null,null,null,null,null,null,null,null,null,null,null,null,null,null,null,null,null,null,null,null,null,"",0,0,"L",0,0,0,0,0,""]
[37,null,null,"mm",null,"mm",null,"ks",null,null,null,null,null,null,null,null,null,null,null,null,null,null,null,null,null,null,null,null,null,null,"",0,0,"L",0,0,0,0,0,""]
[38,null,null,"mm",null,"mm",null,"ks",null,null,null,null,null,null,null,null,null,null,null,null,null,null,null,null,null,null,null,null,null,null,"",0,0,"L",0,0,0,0,0,""]
[39,null,null,"mm",null,"mm",null,"ks",null,null,null,null,null,null,null,null,null,null,null,null,null,null,null,null,null,null,null,null,null,null,"",0,0,"L",0,0,0,0,0,""]
[40,null,null,"mm",null,"mm",null,"ks",null,null,null,null,null,null,null,null,null,null,null,null,null,null,null,null,null,null,null,null,null,null,"",0,0,"L",0,0,0,0,0,""]
[41,null,null,"mm",null,"mm",null,"ks",null,null,null,null,null,null,null,null,null,null,null,null,null,null,null,null,null,null,null,null,null,null,"",0,0,"L",0,0,0,0,0,""]
[42,null,null,"mm",null,"mm",null,"ks",null,null,null,null,null,null,null,null,null,null,null,null,null,null,null,null,null,null,null,null,null,null,"",0,0,"L",0,0,0,0,0,""]
[43,null,null,"mm",null,"mm",null,"ks",null,null,null,null,null,null,null,null,null,null,null,null,null,null,null,null,null,null,null,null,null,null,"",0,0,"L",0,0,0,0,0,""]
[44,null,null,"mm",null,"mm",null,"ks",null,null,null,null,null,null,null,null,null,null,null,null,null,null,null,null,null,null,null,null,null,null,"",0,0,"L",0,0,0,0,0,""]
[45,null,null,"mm",null,"mm",null,"ks",null,null,null,null,null,null,null,null,null,null,null,null,null,null,null,null,null,null,null,null,null,null,"",0,0,"L",0,0,0,0,0,""]
[46,null,null,"mm",null,"mm",null,"ks",null,null,null,null,null,null,null,null,null,null,null,null,null,null,null,null,null,null,null,null,null,null,"",0,0,"L",0,0,0,0,0,""]
[47,null,null,"mm",null,"mm",null,"ks",null,null,null,null,null,null,null,null,null,null,null,null,null,null,null,null,null,null,null,null,null,null,"",0,0,"L",0,0,0,0,0,""]
[48,null,null,"mm",null,"mm",null,"ks",null,null,null,null,null,null,null,null,null,null,null,null,null,null,null,null,null,null,null,null,null,null,"",0,0,"L",0,0,0,0,0,""]
[49,null,null,"mm",null,"mm",null,"ks",null,null,null,null,null,null,null,null,null,null,null,null,null,null,null,null,null,null,null,null,null,null,"",0,0,"L",0,0,0,0,0,""]
[50,null,null,"mm",null,"mm",null,"ks",null,null,null,null,null,null,null,null,null,null,null,null,null,null,null,null,null,null,null,null,null,null,"",0,0,"L",0,0,0,0,0,""]
[51,null,null,"mm",null,"mm",null,"ks",null,null,null,null,null,null,null,null,null,null,null,null,null,null,null,null,null,null,null,null,null,null,"",0,0,"L",0,0,0,0,0,""]
[52,null,null,"mm",null,"mm",null,"ks",null,null,null,null,null,null,null,null,null,null,null,null,null,null,null,null,null,null,null,null,null,null,"",0,0,"L",0,0,0,0,0,""]
[53,null,null,"mm",null,"mm",null,"ks",null,null,null,null,null,null,null,null,null,null,null,null,null,null,null,null,null,null,null,null,null,null,"",0,0,"L",0,0,0,0,0,""]
[54,null,null,"mm",null,"mm",null,"ks",null,null,null,null,null,null,null,null,null,null,null,null,null,null,null,null,null,null,null,null,null,null,"",0,0,"L",0,0,0,0,0,""]
[55,null,null,"mm",null,"mm",null,"ks",null,null,null,null,null,null,null,null,null,null,null,null,null,null,null,null,null,null,null,null,null,null,"",0,0,"L",0,0,0,0,0,""]
[56,null,null,"mm",null,"mm",null,"ks",null,null,null,null,null,null,null,null,null,null,null,null,null,null,null,null,null,null,null,null,null,null,"",0,0,"L",0,0,0,0,0,""]
[57,null,null,"mm",null,"mm",null,"ks",null,null,null,null,null,null,null,null,null,null,null,null,null,null,null,null,null,null,null,null,null,null,"",0,0,"L",0,0,0,0,0,""]
[58,null,null,"mm",null,"mm",null,"ks",null,null,null,null,null,null,null,null,null,null,null,null,null,null,null,null,null,null,null,null,null,null,"",0,0,"L",0,0,0,0,0,""]
[59,null,null,"mm",null,"mm",null,"ks",null,null,null,null,null,null,null,null,null,null,null,null,null,null,null,null,null,null,null,null,null,null,"",0,0,"L",0,0,0,0,0,""]
[60,null,null,"mm",null,"mm",null,"ks",null,null,null,null,null,null,null,null,null,null,null,null,null,null,null,null,null,null,null,null,null,null,"",0,0,"L",0,0,0,0,0,""]
[61,null,null,"mm",null,"mm",null,"ks",null,null,null,null,null,null,null,null,null,null,null,null,null,null,null,null,null,null,null,null,null,null,"",0,0,"L",0,0,0,0,0,""]
[62,null,null,"mm",null,"mm",null,"ks",null,null,null,null,null,null,null,null,null,null,null,null,null,null,null,null,null,null,null,null,null,null,"",0,0,"L",0,0,0,0,0,""]
[63,null,null,"mm",null,"mm",null,"ks",null,null,null,null,null,null,null,null,null,null,null,null,null,null,null,null,null,null,null,null,null,null,"",0,0,"L",0,0,0,0,0,""]
[64,null,null,"mm",null,"mm",null,"ks",null,null,null,null,null,null,null,null,null,null,null,null,null,null,null,null,null,null,null,null,null,null,"",0,0,"L",0,0,0,0,0,""]
[65,null,null,"mm",null,"mm",null,"ks",null,null,null,null,null,null,null,null,null,null,null,null,null,null,null,null,null,null,null,null,null,null,{"$f":"IF(B75<>\"\",B75,\"\")","v":""},{"$f":"C75+1-MAX(Y75,0.5)-MAX(Z75,0.5)","v":0},0,"L",0,0,0,0,0,""]
[66,null,null,"mm",null,"mm",null,"ks",null,null,null,null,null,null,null,null,null,null,null,null,null,null,null,null,null,null,null,null,null,null,"",0,0,"L",0,0,0,0,0,{"$f":"IF( AC76<>\"\",AC76,\"\")","v":""}]
[67,null,null,"mm",null,"mm",null,"ks",null,null,null,null,null,null,null,null,null,null,null,null,null,null,null,null,null,null,null,null,null,null,"",0,{"$f":"E77+1-MAX(AA77,0.5)-MAX(AB77,0.5)","v":0},{"$f":" IF($AH$2,\"L\",0)","v":"L"},{"$f":"G77","v":0},{"$f":"Y77","v":0},{"$f":"AA77","v":0},{"$f":"Z77","v":0},{"$f":"AB77","v":0},""]
[68,null,null,"mm",null,"mm",null,"ks",null,null,null,null,null,null,null,null,null,null,null,null,null,null,null,null,null,null,null,null,null,null,"",0,0,"L",0,0,0,0,0,""]
[69,null,null,"mm",null,"mm",null,"ks",null,null,null,null,null,null,null,null,null,null,null,null,null,null,null,null,null,null,null,null,null,null,"",0,0,"L",0,0,0,0,0,""]
[70,null,null,"mm",null,"mm",null,"ks",null,null,null,null,null,null,null,null,null,null,null,null,null,null,null,null,null,null,null,null,null,null,"",0,0,"L",0,0,0,0,0,""]
[71,null,null,"mm",null,"mm",null,"ks",null,null,null,null,null,null,null,null,null,null,null,null,null,null,null,null,null,null,null,null,null,null,"",0,0,"L",0,0,0,0,0,""]
[72,null,null,"mm",null,"mm",null,"ks",null,null,null,null,null,null,null,null,null,null,null,null,null,null,null,null,null,null,null,null,null,null,"",0,0,"L",0,0,0,0,0,""]
[73,null,null,"mm",null,"mm",null,"ks",null,null,null,null,null,null,null,null,null,null,null,null,null,null,null,null,null,null,null,null,null,null,"",0,0,"L",0,0,0,0,0,""]
[74,null,null,"mm",null,"mm",null,"ks",null,null,null,null,null,null,null,null,null,null,null,null,null,null,null,null,null,null,null,null,null,null,"",0,0,"L",0,0,0,0,0,""]
[75,null,null,"mm",null,"mm",null,"ks",null,null,null,null,null,null,null,null,null,null,null,null,null,null,null,null,null,null,null,null,null,null,"",0,0,"L",0,0,0,0,0,""]
[76,null,null,"mm",null,"mm",null,"ks",null,null,null,null,null,null,null,null,null,null,null,null,null,null,null,null,null,null,null,null,null,null,"",0,0,"L",0,0,0,0,0,""]
[77,null,null,"mm",null,"mm",null,"ks",null,null,null,null,null,null,null,null,null,null,null,null,null,null,null,null,null,null,null,null,null,null,"",0,0,"L",0,0,0,0,0,""]
[78,null,null,"mm",null,"mm",null,"ks",null,null,null,null,null,null,null,null,null,null,null,null,null,null,null,null,null,null,null,null,null,null,"",0,0,"L",0,0,0,0,0,""]
[79,null,null,"mm",null,"mm",null,"ks",null,null,null,null,null,null,null,null,null,null,null,null,null,null,null,null,null,null,null,null,null,null,"",0,0,"L",0,0,0,0,0,""]
[80,null,null,"mm",null,"mm",null,"ks",null,null,null,null,null,null,null,null,null,null,null,null,null,null,null,null,null,null,null,null,null,null,"",0,0,"L",0,0,0,0,0,""]
[81,null,null,"mm",null,"mm",null,"ks",null,null,null,null,null,null,null,null,null,null,null,null,null,null,null,null,null,null,null,null,null,null,"",0,0,"L",0,0,0,0,0,""]
[82,null,null,"mm",null,"mm",null,"ks",null,null,null,null,null,null,null,null,null,null,null,null,null,null,null,null,null,null,null,null,null,null,"",0,0,"L",0,0,0,0,0,""]
[83,null,null,"mm",null,"mm",null,"ks",null,null,null,null,null,null,null,null,null,null,null,null,null,null,null,null,null,null,null,null,null,null,"",0,0,"L",0,0,0,0,0,""]
[84,null,null,"mm",null,"mm",null,"ks",null,null,null,null,null,null,null,null,null,null,null,null,null,null,null,null,null,null,null,null,null,null,"",0,0,"L",0,0,0,0,0,""]
[85,null,null,"mm",null,"mm",null,"ks",null,null,null,null,null,null,null,null,null,null,null,null,null,null,null,null,null,null,null,null,null,null,"",0,0,"L",0,0,0,0,0,""]
[86,null,null,"mm",null,"mm",null,"ks",null,null,null,null,null,null,null,null,null,null,null,null,null,null,null,null,null,null,null,null,null,null,"",0,0,"L",0,0,0,0,0,""]
[87,null,null,"mm",null,"mm",null,"ks",null,null,null,null,null,null,null,null,null,null,null,null,null,null,null,null,null,null,null,null,null,null,"",0,0,"L",0,0,0,0,0,""]
[88,null,null,"mm",null,"mm",null,"ks",null,null,null,null,null,null,null,null,null,null,null,null,null,null,null,null,null,null,null,null,null,null,"",0,0,"L",0,0,0,0,0,""]
[89,null,null,"mm",null,"mm",null,"ks",null,null,null,null,null,null,null,null,null,null,null,null,null,null,null,null,null,null,null,null,null,null,"",0,0,"L",0,0,0,0,0,""]
[90,null,null,"mm",null,"mm",null,"ks",null,null,null,null,null,null,null,null,null,null,null,null,null,null,null,null,null,null,null,null,null,null,"",0,0,"L",0,0,0,0,0,""]
[91,null,null,"mm",null,"mm",null,"ks",null,null,null,null,null,null,null,null,null,null,null,null,null,null,null,null,null,null,null,null,null,null,"",0,0,"L",0,0,0,0,0,""]
[92,null,null,"mm",null,"mm",null,"ks",null,null,null,null,null,null,null,null,null,null,null,null,null,null,null,null,null,null,null,null,null,null,"",0,0,"L",0,0,0,0,0,""]
[93,null,null,"mm",null,"mm",null,"ks",null,null,null,null,null,null,null,null,null,null,null,null,null,null,null,null,null,null,null,null,null,null,"",0,0,"L",0,0,0,0,0,""]
[94,null,null,"mm",null,"mm",null,"ks",null,null,null,null,null,null,null,null,null,null,null,null,null,null,null,null,null,null,null,null,null,null,"",0,0,"L",0,0,0,0,0,""]
[95,null,null,"mm",null,"mm",null,"ks",null,null,null,null,null,null,null,null,null,null,null,null,null,null,null,null,null,null,null,null,null,null,"",0,0,"L",0,0,0,0,0,""]
[96,null,null,"mm",null,"mm",null,"ks",null,null,null,null,null,null,null,null,null,null,null,null,null,null,null,null,null,null,null,null,null,null,"",0,0,"L",0,0,0,0,0,""]
[97,null,null,"mm",null,"mm",null,"ks",null,null,null,null,null,null,null,null,null,null,null,null,null,null,null,null,null,null,null,null,null,null,"",0,0,"L",0,0,0,0,0,""]
[98,null,null,"mm",null,"mm",null,"ks",null,null,null,null,null,null,null,null,null,null,null,null,null,null,null,null,null,null,null,null,null,null,"",0,0,"L",0,0,0,0,0,""]
[99,null,null,"mm",null,"mm",null,"ks",null,null,null,null,null,null,null,null,null,null,null,null,null,null,null,null,null,null,null,null,null,null,"",0,0,"L",0,0,0,0,0,""]
[100,null,null,"mm",null,"mm",null,"ks",null,null,null,null,null,null,null,null,null,null,null,null,null,null,null,null,null,null,null,null,null,null,"",0,0,"L",0,0,0,0,0,""]

{"sheet":"List 3","index":3,"n_rows":110,"n_cols":40,"rows_kept":110,"cut":false,"hidden":false,"merged":[[9,8,9,15],[9,16,9,23],[9,24,9,27],[7,16,7,19],[7,20,7,23],[7,24,7,27],[7,28,8,28],[8,2,8,3],[8,4,8,5],[8,6,8,7],[7,1,8,1],[7,2,7,3],[7,4,7,5],[7,6,7,7],[7,8,7,11],[7,12,7,15],[1,1,1,2],[1,4,1,10],[1,12,1,16],[2,1,2,2],[2,4,2,10],[2,12,2,16]]}
[]
[null,"Název materiálu:",null,null,"Tloušťka materiálu:",null,null,null,null,null,null,null,"Kód Demos trade:",null,null,null,null,null,null,null,null,null,null,null,null,null,null,null,null,null,null,null,"Struktura:",true]
[null,null,null,null,null,null,null,null,null,null,null,null,null,null,null,null,null,null,null,null,null,null,null,null,null,null,null,null,null,null,null,null,"Bez struk:",false]
[]
[null,null,null,null,null,null,null,null,null,null,null,null,null,null,null,null,null,null,null,null,null,null,null,null,null,null,null,null,null,null,"Souhrn:"]
[null,null,null,null,null,null,null,null,null,null,null,null,null,null,null,null,null,null,null,null,null,null,null,null,null,null,null,null,null,null,"Položek","Délka ABS","Šířka ABS","ABS celkem","Kusy","Obsah"]
[null,null,null,null,null,null,null,null,null,null,null,null,null,null,null,null,null,null,null,null,null,null,null,null,null,null,null,null,null,null,{"$f":"100-COUNTBLANK(AE11:AE110)","v":0},{"$f":"SUM(C11:C110*AI11:AI110)*(IF(AJ11:AJ110>0,1,0)+IF(AL11:AL110>0,1,0))/1000","v":0},{"$f":"SUM(E11:E110*AI11:AI110)*(IF(AK11:AK110>0,1,0)+IF(AM11:AM110>0,1,0))/1000","v":0},{"$f":"AF7+AG7","v":0},{"$f":"SUM(AI11:AI110)","v":0},{"$f":"SUM(C11:C110*E11:E110*G11:G110)/1000/1000","v":0}]
[null,"název dílce:","x = délka:",null,"y = šířka:",null,"počet",null,"tloušťka ABS",null,null,null,"tloušťka ABS",null,null,null,"tloušťka ABS",null,null,null,"tloušťka ABS",null,null,null,"síla hrany v mm:",null,null,null,"poznámka"]
[null,null,"(po létech)",null,"(napříč létům)",null,"kusů:",null,0,0.5,1,2,0,0.5,1,2,0,0.5,1,2,0,0.5,1,2,"x","x","y","y",null,null,"Název","Délka","Šířka","Směr řezu","Počet","ABS 1","ABS 2","ABS 3","ABS 4","Poznámka"]
[null,null,"zadat",null,"zadat",null,"zadat",null,"označení pravým tlačítkem nebo lib.znak",null,null,null,null,null,null,null,"označení pravým tlačítkem nebo lib.znak",null,null,null,null,null,null,null,"kontrola nebo zadat"]
[1,null,null,"mm",null,"mm",null,"ks",null,null,null,null,null,null,null,null,null,null,null,null,null,null,null,null,null,null,null,null,null,null,{"$f":"IF(B11<>\"\",B11,\"\")","v":""},{"$f":"C11+1-MAX(Y11,0.5)-MAX(Z11,0.5)","v":0},{"$f":"E11+1-MAX(AA11,0.5)-MAX(AB11,0.5)","v":0},{"$f":" IF($AH$2,\"L\",0)","v":"L"},{"$f":"G11","v":0},{"$f":"Y11","v":0},{"$f":"AA11","v":0},{"$f":"Z11","v":0},{"$f":"AB11","v":0},{"$f":"IF( AC11<>\"\",AC11,\"\")","v":""}]
[2,null,null,"mm",null,"mm",null,"ks",null,null,null,null,null,null,null,null,null,null,null,null,null,null,null,null,null,null,null,null,null,null,"",0,{"$f":"E12+1-MAX(AA12,0.5)-MAX(AB12,0.5)","v":0},{"$f":" IF($AH$2,\"L\",0)","v":"L"},{"$f":"G12","v":0},{"$f":"Y12","v":0},{"$f":"AA12","v":0},{"$f":"Z12","v":0},{"$f":"AB12","v":0},{"$f":"IF( AC12<>\"\",AC12,\"\")","v":""}]
[3,null,null,"mm",null,"mm",null,"ks",null,null,null,null,null,null,null,null,null,null,null,null,null,null,null,null,null,null,null,null,null,null,"",0,{"$f":"E13+1-MAX(AA13,0.5)-MAX(AB13,0.5)","v":0},{"$f":" IF($AH$2,\"L\",0)","v":"L"},{"$f":"G13","v":0},{"$f":"Y13","v":0},{"$f":"AA13","v":0},{"$f":"Z13","v":0},{"$f":"AB13","v":0},""]
[4,null,null,"mm",null,"mm",null,"ks",null,null,null,null,null,null,null,null,null,null,null,null,null,null,null,null,null,null,null,null,null,null,"",0,0,"L",0,0,0,0,0,""]
[5,null,null,"mm",null,"mm",null,"ks",null,null,null,null,null,null,null,null,null,null,null,null,null,null,null,null,null,null,null,null,null,null,"",0,0,"L",0,0,0,0,0,""]
[6,null,null,"mm",null,"mm",null,"ks",null,null,null,null,null,null,null,null,null,null,null,null,null,null,null,null,null,null,null,null,null,null,"",0,0,"L",0,0,0,0,0,""]
[7,null,null,"mm",null,"mm",null,"ks",null,null,null,null,null,null,null,null,null,null,null,null,null,null,null,null,null,null,null,null,null,null,"",0,0,"L",0,0,0,0,0,""]
[8,null,null,"mm",null,"mm",null,"ks",null,null,null,null,null,null,null,null,null,null,null,null,null,null,null,null,null,null,null,null,null,null,"",0,0,"L",0,0,0,0,0,""]
[9,null,null,"mm",null,"mm",null,"ks",null,null,null,null,null,null,null,null,null,null,null,null,null,null,null,null,null,null,null,null,null,null,"",0,0,"L",0,0,0,0,0,""]
[10,null,null,"mm",null,"mm",null,"ks",null,null,null,null,null,null,null,null,null,null,null,null,null,null,null,null,null,null,null,null,null,null,"",0,0,"L",0,0,0,0,0,""]
[11,null,null,"mm",null,"mm",null,"ks",null,null,null,null,null,null,null,null,null,null,null,null,null,null,null,null,null,null,null,null,null,null,"",0,0,"L",0,0,0,0,0,""]
[12,null,null,"mm",null,"mm",null,"ks",null,null,null,null,null,null,null,null,null,null,null,null,null,null,null,null,null,null,null,null,null,null,"",0,0,"L",0,0,0,0,0,""]
[13,null,null,"mm",null,"mm",null,"ks",null,null,null,null,null,null,null,null,null,null,null,null,null,null,null,null,null,null,null,null,null,null,"",0,0,"L",0,0,0,0,0,""]
[14,null,null,"mm",null,"mm",null,"ks",null,null,null,null,null,null,null,null,null,null,null,null,null,null,null,null,null,null,null,null,null,null,"",0,0,"L",0,0,0,0,0,""]
[15,null,null,"mm",null,"mm",null,"ks",null,null,null,null,null,null,null,null,null,null,null,null,null,null,null,null,null,null,null,null,null,null,"",0,0,"L",0,0,0,0,0,""]
[16,null,null,"mm",null,"mm",null,"ks",null,null,null,null,null,null,null,null,null,null,null,null,null,null,null,null,null,null,null,null,null,null,"",0,0,"L",0,0,0,0,0,""]
[17,null,null,"mm",null,"mm",null,"ks",null,null,null,null,null,null,null,null,null,null,null,null,null,null,null,null,null,null,null,null,null,null,"",0,0,"L",0,0,0,0,0,""]
[18,null,null,"mm",null,"mm",null,"ks",null,null,null,null,null,null,null,null,null,null,null,null,null,null,null,null,null,null,null,null,null,null,"",0,0,"L",0,0,0,0,0,""]
[19,null,null,"mm",null,"mm",null,"ks",null,null,null,null,null,null,null,null,null,null,null,null,null,null,null,null,null,null,null,null,null,null,"",0,0,"L",0,0,0,0,0,""]
[20,null,null,"mm",null,"mm",null,"ks",null,null,null,null,null,null,null,null,null,null,null,null,null,null,null,null,null,null,null,null,null,null,"",0,0,"L",0,0,0,0,0,""]
[21,null,null,"mm",null,"mm",null,"ks",null,null,null,null,null,null,null,null,null,null,null,null,null,null,null,null,null,null,null,null,null,null,"",0,0,"L",0,0,0,0,0,""]
[22,null,null,"mm",null,"mm",null,"ks",null,null,null,null,null,null,null,null,null,null,null,null,null,null,null,null,null,null,null,null,null,null,"",0,0,"L",0,0,0,0,0,""]
[23,null,null,"mm",null,"mm",null,"ks",null,null,null,null,null,null,null,null,null,null,null,null,null,null,null,null,null,null,null,null,null,null,"",0,0,"L",0,0,0,0,0,""]
[24,null,null,"mm",null,"mm",null,"ks",null,null,null,null,null,null,null,null,null,null,null,null,null,null,null,null,null,null,null,null,null,null,"",0,0,"L",0,0,0,0,0,""]
[25,null,null,"mm",null,"mm",null,"ks",null,null,null,null,null,null,null,null,null,null,null,null,null,null,null,null,null,null,null,null,null,null,"",0,0,"L",0,0,0,0,0,""]
[26,null,null,"mm",null,"mm",null,"ks",null,null,null,null,null,null,null,null,null,null,null,null,null,null,null,null,null,null,null,null,null,null,"",0,0,"L",0,0,0,0,0,""]
[27,null,null,"mm",null,"mm",null,"ks",null,null,null,null,null,null,null,null,null,null,null,null,null,null,null,null,null,null,null,null,null,null,"",0,0,"L",0,0,0,0,0,""]
[28,null,null,"mm",null,"mm",null,"ks",null,null,null,null,null,null,null,null,null,null,null,null,null,null,null,null,null,null,null,null,null,null,"",0,0,"L",0,0,0,0,0,""]
[29,null,null,"mm",null,"mm",null,"ks",null,null,null,null,null,null,null,null,null,null,null,null,null,null,null,null,null,null,null,null,null,null,"",0,0,"L",0,0,0,0,0,""]
[30,null,null,"mm",null,"mm",null,"ks",null,null,null,null,null,null,null,null,null,null,null,null,null,null,null,null,null,null,null,null,null,null,"",0,0,"L",0,0,0,0,0,""]
[31,null,null,"mm",null,"mm",null,"ks",null,null,null,null,null,null,null,null,null,null,null,null,null,null,null,null,null,null,null,null,null,null,"",0,0,"L",0,0,0,0,0,""]
[32,null,null,"mm",null,"mm",null,"ks",null,null,null,null,null,null,null,null,null,null,null,null,null,null,null,null,null,null,null,null,null,null,"",0,0,"L",0,0,0,0,0,""]
[33,null,null,"mm",null,"mm",null,"ks",null,null,null,null,null,null,null,null,null,null,null,null,null,null,null,null,null,null,null,null,null,null,{"$f":"IF(B43<>\"\",B43,\"\")","v":""},0,0,"L",0,0,0,0,0,""]
[34,null,null,"mm",null,"mm",null,"ks",null,null,null,null,null,null,null,null,null,null,null,null,null,null,null,null,null,null,null,null,null,null,"",0,0,"L",0,0,0,0,0,""]
[35,null,null,"mm",null,"mm",null,"ks",null,null,null,null,null,null,null,null,null,null,null,null,null,null,null,null,null,null,null,null,null,null,"",0,0,"L",0,0,0,0,0,""]
[36,null,null,"mm",null,"mm",null,"ks",null,null,null,null,null,null,null,null,null,null,null,null,null,null,null,null,null,null,null,null,null,null,"",0,0,"L",0,0,0,0,0,""]
[37,null,null,"mm",null,"mm",null,"ks",null,null,null,null,null,null,null,null,null,null,null,null,null,null,null,null,null,null,null,null,null,null,"",0,0,"L",0,0,0,0,0,""]
[38,null,null,"mm",null,"mm",null,"ks",null,null,null,null,null,null,null,null,null,null,null,null,null,null,null,null,null,null,null,null,null,null,"",0,0,"L",0,0,0,0,0,""]
[39,null,null,"mm",null,"mm",null,"ks",null,null,null,null,null,null,null,null,null,null,null,null,null,null,null,null,null,null,null,null,null,null,"",0,0,"L",0,0,0,0,0,""]
[40,null,null,"mm",null,"mm",null,"ks",null,null,null,null,null,null,null,null,null,null,null,null,null,null,null,null,null,null,null,null,null,null,"",0,0,"L",0,0,0,0,0,""]
[41,null,null,"mm",null,"mm",null,"ks",null,null,null,null,null,null,null,null,null,null,null,null,null,null,null,null,null,null,null,null,null,null,"",0,0,"L",0,0,0,0,0,""]
[42,null,null,"mm",null,"mm",null,"ks",null,null,null,null,null,null,null,null,null,null,null,null,null,null,null,null,null,null,null,null,null,null,"",0,0,"L",0,0,0,0,0,""]
[43,null,null,"mm",null,"mm",null,"ks",null,null,null,null,null,null,null,null,null,null,null,null,null,null,null,null,null,null,null,null,null,null,"",0,0,"L",0,0,0,0,0,""]
[44,null,null,"mm",null,"mm",null,"ks",null,null,null,null,null,null,null,null,null,null,null,null,null,null,null,null,null,null,null,null,null,null,"",0,0,"L",0,0,0,0,0,""]
[45,null,null,"mm",null,"mm",null,"ks",null,null,null,null,null,null,null,null,null,null,null,null,null,null,null,null,null,null,null,null,null,null,"",0,0,"L",0,0,0,0,0,""]
[46,null,null,"mm",null,"mm",null,"ks",null,null,null,null,null,null,null,null,null,null,null,null,null,null,null,null,null,null,null,null,null,null,"",0,0,"L",0,0,0,0,0,""]
[47,null,null,"mm",null,"mm",null,"ks",null,null,null,null,null,null,null,null,null,null,null,null,null,null,null,null,null,null,null,null,null,null,"",0,0,"L",0,0,0,0,0,""]
[48,null,null,"mm",null,"mm",null,"ks",null,null,null,null,null,null,null,null,null,null,null,null,null,null,null,null,null,null,null,null,null,null,"",0,0,"L",0,0,0,0,0,""]
[49,null,null,"mm",null,"mm",null,"ks",null,null,null,null,null,null,null,null,null,null,null,null,null,null,null,null,null,null,null,null,null,null,"",0,0,"L",0,0,0,0,0,""]
[50,null,null,"mm",null,"mm",null,"ks",null,null,null,null,null,null,null,null,null,null,null,null,null,null,null,null,null,null,null,null,null,null,"",0,0,"L",0,0,0,0,0,""]
[51,null,null,"mm",null,"mm",null,"ks",null,null,null,null,null,null,null,null,null,null,null,null,null,null,null,null,null,null,null,null,null,null,"",0,0,"L",0,0,0,0,0,""]
[52,null,null,"mm",null,"mm",null,"ks",null,null,null,null,null,null,null,null,null,null,null,null,null,null,null,null,null,null,null,null,null,null,"",0,0,"L",0,0,0,0,0,""]
[53,null,null,"mm",null,"mm",null,"ks",null,null,null,null,null,null,null,null,null,null,null,null,null,null,null,null,null,null,null,null,null,null,"",0,0,"L",0,0,0,0,0,""]
[54,null,null,"mm",null,"mm",null,"ks",null,null,null,null,null,null,null,null,null,null,null,null,null,null,null,null,null,null,null,null,null,null,"",0,0,"L",0,0,0,0,0,""]
[55,null,null,"mm",null,"mm",null,"ks",null,null,null,null,null,null,null,null,null,null,null,null,null,null,null,null,null,null,null,null,null,null,"",0,0,"L",0,0,0,0,0,""]
[56,null,null,"mm",null,"mm",null,"ks",null,null,null,null,null,null,null,null,null,null,null,null,null,null,null,null,null,null,null,null,null,null,"",0,0,"L",0,0,0,0,0,""]
[57,null,null,"mm",null,"mm",null,"ks",null,null,null,null,null,null,null,null,null,null,null,null,null,null,null,null,null,null,null,null,null,null,"",0,0,"L",0,0,0,0,0,""]
[58,null,null,"mm",null,"mm",null,"ks",null,null,null,null,null,null,null,null,null,null,null,null,null,null,null,null,null,null,null,null,null,null,"",0,0,"L",0,0,0,0,0,""]
[59,null,null,"mm",null,"mm",null,"ks",null,null,null,null,null,null,null,null,null,null,null,null,null,null,null,null,null,null,null,null,null,null,"",0,0,"L",0,0,0,0,0,""]
[60,null,null,"mm",null,"mm",null,"ks",null,null,null,null,null,null,null,null,null,null,null,null,null,null,null,null,null,null,null,null,null,null,"",0,0,"L",0,0,0,0,0,""]
[61,null,null,"mm",null,"mm",null,"ks",null,null,null,null,null,null,null,null,null,null,null,null,null,null,null,null,null,null,null,null,null,null,"",0,0,"L",0,0,0,0,0,""]
[62,null,null,"mm",null,"mm",null,"ks",null,null,null,null,null,null,null,null,null,null,null,null,null,null,null,null,null,null,null,null,null,null,"",0,0,"L",0,0,0,0,0,""]
[63,null,null,"mm",null,"mm",null,"ks",null,null,null,null,null,null,null,null,null,null,null,null,null,null,null,null,null,null,null,null,null,null,"",0,0,"L",0,0,0,0,0,""]
[64,null,null,"mm",null,"mm",null,"ks",null,null,null,null,null,null,null,null,null,null,null,null,null,null,null,null,null,null,null,null,null,null,"",0,0,"L",0,0,0,0,0,""]
[65,null,null,"mm",null,"mm",null,"ks",null,null,null,null,null,null,null,null,null,null,null,null,null,null,null,null,null,null,null,null,null,null,{"$f":"IF(B75<>\"\",B75,\"\")","v":""},{"$f":"C75+1-MAX(Y75,0.5)-MAX(Z75,0.5)","v":0},0,"L",0,0,0,0,0,""]
[66,null,null,"mm",null,"mm",null,"ks",null,null,null,null,null,null,null,null,null,null,null,null,null,null,null,null,null,null,null,null,null,null,"",0,0,"L",0,0,0,0,0,{"$f":"IF( AC76<>\"\",AC76,\"\")","v":""}]
[67,null,null,"mm",null,"mm",null,"ks",null,null,null,null,null,null,null,null,null,null,null,null,null,null,null,null,null,null,null,null,null,null,"",0,{"$f":"E77+1-MAX(AA77,0.5)-MAX(AB77,0.5)","v":0},{"$f":" IF($AH$2,\"L\",0)","v":"L"},{"$f":"G77","v":0},{"$f":"Y77","v":0},{"$f":"AA77","v":0},{"$f":"Z77","v":0},{"$f":"AB77","v":0},""]
[68,null,null,"mm",null,"mm",null,"ks",null,null,null,null,null,null,null,null,null,null,null,null,null,null,null,null,null,null,null,null,null,null,"",0,0,"L",0,0,0,0,0,""]
[69,null,null,"mm",null,"mm",null,"ks",null,null,null,null,null,null,null,null,null,null,null,null,null,null,null,null,null,null,null,null,null,null,"",0,0,"L",0,0,0,0,0,""]
[70,null,null,"mm",null,"mm",null,"ks",null,null,null,null,null,null,null,null,null,null,null,null,null,null,null,null,null,null,null,null,null,null,"",0,0,"L",0,0,0,0,0,""]
[71,null,null,"mm",null,"mm",null,"ks",null,null,null,null,null,null,null,null,null,null,null,null,null,null,null,null,null,null,null,null,null,null,"",0,0,"L",0,0,0,0,0,""]
[72,null,null,"mm",null,"mm",null,"ks",null,null,null,null,null,null,null,null,null,null,null,null,null,null,null,null,null,null,null,null,null,null,"",0,0,"L",0,0,0,0,0,""]
[73,null,null,"mm",null,"mm",null,"ks",null,null,null,null,null,null,null,null,null,null,null,null,null,null,null,null,null,null,null,null,null,null,"",0,0,"L",0,0,0,0,0,""]
[74,null,null,"mm",null,"mm",null,"ks",null,null,null,null,null,null,null,null,null,null,null,null,null,null,null,null,null,null,null,null,null,null,"",0,0,"L",0,0,0,0,0,""]
[75,null,null,"mm",null,"mm",null,"ks",null,null,null,null,null,null,null,null,null,null,null,null,null,null,null,null,null,null,null,null,null,null,"",0,0,"L",0,0,0,0,0,""]
[76,null,null,"mm",null,"mm",null,"ks",null,null,null,null,null,null,null,null,null,null,null,null,null,null,null,null,null,null,null,null,null,null,"",0,0,"L",0,0,0,0,0,""]
[77,null,null,"mm",null,"mm",null,"ks",null,null,null,null,null,null,null,null,null,null,null,null,null,null,null,null,null,null,null,null,null,null,"",0,0,"L",0,0,0,0,0,""]
[78,null,null,"mm",null,"mm",null,"ks",null,null,null,null,null,null,null,null,null,null,null,null,null,null,null,null,null,null,null,null,null,null,"",0,0,"L",0,0,0,0,0,""]
[79,null,null,"mm",null,"mm",null,"ks",null,null,null,null,null,null,null,null,null,null,null,null,null,null,null,null,null,null,null,null,null,null,"",0,0,"L",0,0,0,0,0,""]
[80,null,null,"mm",null,"mm",null,"ks",null,null,null,null,null,null,null,null,null,null,null,null,null,null,null,null,null,null,null,null,null,null,"",0,0,"L",0,0,0,0,0,""]
[81,null,null,"mm",null,"mm",null,"ks",null,null,null,null,null,null,null,null,null,null,null,null,null,null,null,null,null,null,null,null,null,null,"",0,0,"L",0,0,0,0,0,""]
[82,null,null,"mm",null,"mm",null,"ks",null,null,null,null,null,null,null,null,null,null,null,null,null,null,null,null,null,null,null,null,null,null,"",0,0,"L",0,0,0,0,0,""]
[83,null,null,"mm",null,"mm",null,"ks",null,null,null,null,null,null,null,null,null,null,null,null,null,null,null,null,null,null,null,null,null,null,"",0,0,"L",0,0,0,0,0,""]
[84,null,null,"mm",null,"mm",null,"ks",null,null,null,null,null,null,null,null,null,null,null,null,null,null,null,null,null,null,null,null,null,null,"",0,0,"L",0,0,0,0,0,""]
[85,null,null,"mm",null,"mm",null,"ks",null,null,null,null,null,null,null,null,null,null,null,null,null,null,null,null,null,null,null,null,null,null,"",0,0,"L",0,0,0,0,0,""]
[86,null,null,"mm",null,"mm",null,"ks",null,null,null,null,null,null,null,null,null,null,null,null,null,null,null,null,null,null,null,null,null,null,"",0,0,"L",0,0,0,0,0,""]
[87,null,null,"mm",null,"mm",null,"ks",null,null,null,null,null,null,null,null,null,null,null,null,null,null,null,null,null,null,null,null,null,null,"",0,0,"L",0,0,0,0,0,""]
[88,null,null,"mm",null,"mm",null,"ks",null,null,null,null,null,null,null,null,null,null,null,null,null,null,null,null,null,null,null,null,null,null,"",0,0,"L",0,0,0,0,0,""]
[89,null,null,"mm",null,"mm",null,"ks",null,null,null,null,null,null,null,null,null,null,null,null,null,null,null,null,null,null,null,null,null,null,"",0,0,"L",0,0,0,0,0,""]
[90,null,null,"mm",null,"mm",null,"ks",null,null,null,null,null,null,null,null,null,null,null,null,null,null,null,null,null,null,null,null,null,null,"",0,0,"L",0,0,0,0,0,""]
[91,null,null,"mm",null,"mm",null,"ks",null,null,null,null,null,null,null,null,null,null,null,null,null,null,null,null,null,null,null,null,null,null,"",0,0,"L",0,0,0,0,0,""]
[92,null,null,"mm",null,"mm",null,"ks",null,null,null,null,null,null,null,null,null,null,null,null,null,null,null,null,null,null,null,null,null,null,"",0,0,"L",0,0,0,0,0,""]
[93,null,null,"mm",null,"mm",null,"ks",null,null,null,null,null,null,null,null,null,null,null,null,null,null,null,null,null,null,null,null,null,null,"",0,0,"L",0,0,0,0,0,""]
[94,null,null,"mm",null,"mm",null,"ks",null,null,null,null,null,null,null,null,null,null,null,null,null,null,null,null,null,null,null,null,null,null,"",0,0,"L",0,0,0,0,0,""]
[95,null,null,"mm",null,"mm",null,"ks",null,null,null,null,null,null,null,null,null,null,null,null,null,null,null,null,null,null,null,null,null,null,"",0,0,"L",0,0,0,0,0,""]
[96,null,null,"mm",null,"mm",null,"ks",null,null,null,null,null,null,null,null,null,null,null,null,null,null,null,null,null,null,null,null,null,null,"",0,0,"L",0,0,0,0,0,""]
[97,null,null,"mm",null,"mm",null,"ks",null,null,null,null,null,null,null,null,null,null,null,null,null,null,null,null,null,null,null,null,null,null,"",0,0,"L",0,0,0,0,0,""]
[98,null,null,"mm",null,"mm",null,"ks",null,null,null,null,null,null,null,null,null,null,null,null,null,null,null,null,null,null,null,null,null,null,"",0,0,"L",0,0,0,0,0,""]
[99,null,null,"mm",null,"mm",null,"ks",null,null,null,null,null,null,null,null,null,null,null,null,null,null,null,null,null,null,null,null,null,null,"",0,0,"L",0,0,0,0,0,""]
[100,null,null,"mm",null,"mm",null,"ks",null,null,null,null,null,null,null,null,null,null,null,null,null,null,null,null,null,null,null,null,null,null,"",0,0,"L",0,0,0,0,0,""]

{"sheet":"List 4","index":4,"n_rows":110,"n_cols":40,"rows_kept":110,"cut":false,"hidden":false,"merged":[[9,8,9,15],[9,16,9,23],[9,24,9,27],[7,16,7,19],[7,20,7,23],[7,24,7,27],[7,28,8,28],[8,2,8,3],[8,4,8,5],[8,6,8,7],[7,1,8,1],[7,2,7,3],[7,4,7,5],[7,6,7,7],[7,8,7,11],[7,12,7,15],[1,1,1,2],[1,4,1,10],[1,12,1,16],[2,1,2,2],[2,4,2,10],[2,12,2,16]]}
[]
[null,"Název materiálu:",null,null,"Tloušťka materiálu:",null,null,null,null,null,null,null,"Kód Demos trade:",null,null,null,null,null,null,null,null,null,null,null,null,null,null,null,null,null,null,null,"Struktura:",true]
[null,null,null,null,null,null,null,null,null,null,null,null,null,null,null,null,null,null,null,null,null,null,null,null,null,null,null,null,null,null,null,null,"Bez struk:",false]
[]
[null,null,null,null,null,null,null,null,null,null,null,null,null,null,null,null,null,null,null,null,null,null,null,null,null,null,null,null,null,null,"Souhrn:"]
[null,null,null,null,null,null,null,null,null,null,null,null,null,null,null,null,null,null,null,null,null,null,null,null,null,null,null,null,null,null,"Položek","Délka ABS","Šířka ABS","ABS celkem","Kusy","Obsah"]
[null,null,null,null,null,null,null,null,null,null,null,null,null,null,null,null,null,null,null,null,null,null,null,null,null,null,null,null,null,null,{"$f":"100-COUNTBLANK(AE11:AE110)","v":0},{"$f":"SUM(C11:C110*AI11:AI110)*(IF(AJ11:AJ110>0,1,0)+IF(AL11:AL110>0,1,0))/1000","v":0},{"$f":"SUM(E11:E110*AI11:AI110)*(IF(AK11:AK110>0,1,0)+IF(AM11:AM110>0,1,0))/1000","v":0},{"$f":"AF7+AG7","v":0},{"$f":"SUM(AI11:AI110)","v":0},{"$f":"SUM(C11:C110*E11:E110*G11:G110)/1000/1000","v":0}]
[null,"název dílce:","x = délka:",null,"y = šířka:",null,"počet",null,"tloušťka ABS",null,null,null,"tloušťka ABS",null,null,null,"tloušťka ABS",null,null,null,"tloušťka ABS",null,null,null,"síla hrany v mm:",null,null,null,"poznámka"]
[null,null,"(po létech)",null,"(napříč létům)",null,"kusů:",null,0,0.5,1,2,0,0.5,1,2,0,0.5,1,2,0,0.5,1,2,"x","x","y","y",null,null,"Název","Délka","Šířka","Směr řezu","Počet","ABS 1","ABS 2","ABS 3","ABS 4","Poznámka"]
[null,null,"zadat",null,"zadat",null,"zadat",null,"označení pravým tlačítkem nebo lib.znak",null,null,null,null,null,null,null,"označení pravým tlačítkem nebo lib.znak",null,null,null,null,null,null,null,"kontrola nebo zadat"]
[1,null,null,"mm",null,"mm",null,"ks",null,null,null,null,null,null,null,null,null,null,null,null,null,null,null,null,null,null,null,null,null,null,{"$f":"IF(B11<>\"\",B11,\"\")","v":""},{"$f":"C11+1-MAX(Y11,0.5)-MAX(Z11,0.5)","v":0},{"$f":"E11+1-MAX(AA11,0.5)-MAX(AB11,0.5)","v":0},{"$f":" IF($AH$2,\"L\",0)","v":"L"},{"$f":"G11","v":0},{"$f":"Y11","v":0},{"$f":"AA11","v":0},{"$f":"Z11","v":0},{"$f":"AB11","v":0},{"$f":"IF( AC11<>\"\",AC11,\"\")","v":""}]
[2,null,null,"mm",null,"mm",null,"ks",null,null,null,null,null,null,null,null,null,null,null,null,null,null,null,null,null,null,null,null,null,null,"",0,{"$f":"E12+1-MAX(AA12,0.5)-MAX(AB12,0.5)","v":0},{"$f":" IF($AH$2,\"L\",0)","v":"L"},{"$f":"G12","v":0},{"$f":"Y12","v":0},{"$f":"AA12","v":0},{"$f":"Z12","v":0},{"$f":"AB12","v":0},{"$f":"IF( AC12<>\"\",AC12,\"\")","v":""}]
[3,null,null,"mm",null,"mm",null,"ks",null,null,null,null,null,null,null,null,null,null,null,null,null,null,null,null,null,null,null,null,null,null,"",0,{"$f":"E13+1-MAX(AA13,0.5)-MAX(AB13,0.5)","v":0},{"$f":" IF($AH$2,\"L\",0)","v":"L"},{"$f":"G13","v":0},{"$f":"Y13","v":0},{"$f":"AA13","v":0},{"$f":"Z13","v":0},{"$f":"AB13","v":0},""]
[4,null,null,"mm",null,"mm",null,"ks",null,null,null,null,null,null,null,null,null,null,null,null,null,null,null,null,null,null,null,null,null,null,"",0,0,"L",0,0,0,0,0,""]
[5,null,null,"mm",null,"mm",null,"ks",null,null,null,null,null,null,null,null,null,null,null,null,null,null,null,null,null,null,null,null,null,null,"",0,0,"L",0,0,0,0,0,""]
[6,null,null,"mm",null,"mm",null,"ks",null,null,null,null,null,null,null,null,null,null,null,null,null,null,null,null,null,null,null,null,null,null,"",0,0,"L",0,0,0,0,0,""]
[7,null,null,"mm",null,"mm",null,"ks",null,null,null,null,null,null,null,null,null,null,null,null,null,null,null,null,null,null,null,null,null,null,"",0,0,"L",0,0,0,0,0,""]
[8,null,null,"mm",null,"mm",null,"ks",null,null,null,null,null,null,null,null,null,null,null,null,null,null,null,null,null,null,null,null,null,null,"",0,0,"L",0,0,0,0,0,""]
[9,null,null,"mm",null,"mm",null,"ks",null,null,null,null,null,null,null,null,null,null,null,null,null,null,null,null,null,null,null,null,null,null,"",0,0,"L",0,0,0,0,0,""]
[10,null,null,"mm",null,"mm",null,"ks",null,null,null,null,null,null,null,null,null,null,null,null,null,null,null,null,null,null,null,null,null,null,"",0,0,"L",0,0,0,0,0,""]
[11,null,null,"mm",null,"mm",null,"ks",null,null,null,null,null,null,null,null,null,null,null,null,null,null,null,null,null,null,null,null,null,null,"",0,0,"L",0,0,0,0,0,""]
[12,null,null,"mm",null,"mm",null,"ks",null,null,null,null,null,null,null,null,null,null,null,null,null,null,null,null,null,null,null,null,null,null,"",0,0,"L",0,0,0,0,0,""]
[13,null,null,"mm",null,"mm",null,"ks",null,null,null,null,null,null,null,null,null,null,null,null,null,null,null,null,null,null,null,null,null,null,"",0,0,"L",0,0,0,0,0,""]
[14,null,null,"mm",null,"mm",null,"ks",null,null,null,null,null,null,null,null,null,null,null,null,null,null,null,null,null,null,null,null,null,null,"",0,0,"L",0,0,0,0,0,""]
[15,null,null,"mm",null,"mm",null,"ks",null,null,null,null,null,null,null,null,null,null,null,null,null,null,null,null,null,null,null,null,null,null,"",0,0,"L",0,0,0,0,0,""]
[16,null,null,"mm",null,"mm",null,"ks",null,null,null,null,null,null,null,null,null,null,null,null,null,null,null,null,null,null,null,null,null,null,"",0,0,"L",0,0,0,0,0,""]
[17,null,null,"mm",null,"mm",null,"ks",null,null,null,null,null,null,null,null,null,null,null,null,null,null,null,null,null,null,null,null,null,null,"",0,0,"L",0,0,0,0,0,""]
[18,null,null,"mm",null,"mm",null,"ks",null,null,null,null,null,null,null,null,null,null,null,null,null,null,null,null,null,null,null,null,null,null,"",0,0,"L",0,0,0,0,0,""]
[19,null,null,"mm",null,"mm",null,"ks",null,null,null,null,null,null,null,null,null,null,null,null,null,null,null,null,null,null,null,null,null,null,"",0,0,"L",0,0,0,0,0,""]
[20,null,null,"mm",null,"mm",null,"ks",null,null,null,null,null,null,null,null,null,null,null,null,null,null,null,null,null,null,null,null,null,null,"",0,0,"L",0,0,0,0,0,""]
[21,null,null,"mm",null,"mm",null,"ks",null,null,null,null,null,null,null,null,null,null,null,null,null,null,null,null,null,null,null,null,null,null,"",0,0,"L",0,0,0,0,0,""]
[22,null,null,"mm",null,"mm",null,"ks",null,null,null,null,null,null,null,null,null,null,null,null,null,null,null,null,null,null,null,null,null,null,"",0,0,"L",0,0,0,0,0,""]
[23,null,null,"mm",null,"mm",null,"ks",null,null,null,null,null,null,null,null,null,null,null,null,null,null,null,null,null,null,null,null,null,null,"",0,0,"L",0,0,0,0,0,""]
[24,null,null,"mm",null,"mm",null,"ks",null,null,null,null,null,null,null,null,null,null,null,null,null,null,null,null,null,null,null,null,null,null,"",0,0,"L",0,0,0,0,0,""]
[25,null,null,"mm",null,"mm",null,"ks",null,null,null,null,null,null,null,null,null,null,null,null,null,null,null,null,null,null,null,null,null,null,"",0,0,"L",0,0,0,0,0,""]
[26,null,null,"mm",null,"mm",null,"ks",null,null,null,null,null,null,null,null,null,null,null,null,null,null,null,null,null,null,null,null,null,null,"",0,0,"L",0,0,0,0,0,""]
[27,null,null,"mm",null,"mm",null,"ks",null,null,null,null,null,null,null,null,null,null,null,null,null,null,null,null,null,null,null,null,null,null,"",0,0,"L",0,0,0,0,0,""]
[28,null,null,"mm",null,"mm",null,"ks",null,null,null,null,null,null,null,null,null,null,null,null,null,null,null,null,null,null,null,null,null,null,"",0,0,"L",0,0,0,0,0,""]
[29,null,null,"mm",null,"mm",null,"ks",null,null,null,null,null,null,null,null,null,null,null,null,null,null,null,null,null,null,null,null,null,null,"",0,0,"L",0,0,0,0,0,""]
[30,null,null,"mm",null,"mm",null,"ks",null,null,null,null,null,null,null,null,null,null,null,null,null,null,null,null,null,null,null,null,null,null,"",0,0,"L",0,0,0,0,0,""]
[31,null,null,"mm",null,"mm",null,"ks",null,null,null,null,null,null,null,null,null,null,null,null,null,null,null,null,null,null,null,null,null,null,"",0,0,"L",0,0,0,0,0,""]
[32,null,null,"mm",null,"mm",null,"ks",null,null,null,null,null,null,null,null,null,null,null,null,null,null,null,null,null,null,null,null,null,null,"",0,0,"L",0,0,0,0,0,""]
[33,null,null,"mm",null,"mm",null,"ks",null,null,null,null,null,null,null,null,null,null,null,null,null,null,null,null,null,null,null,null,null,null,{"$f":"IF(B43<>\"\",B43,\"\")","v":""},0,0,"L",0,0,0,0,0,""]
[34,null,null,"mm",null,"mm",null,"ks",null,null,null,null,null,null,null,null,null,null,null,null,null,null,null,null,null,null,null,null,null,null,"",0,0,"L",0,0,0,0,0,""]
[35,null,null,"mm",null,"mm",null,"ks",null,null,null,null,null,null,null,null,null,null,null,null,null,null,null,null,null,null,null,null,null,null,"",0,0,"L",0,0,0,0,0,""]
[36,null,null,"mm",null,"mm",null,"ks",null,null,null,null,null,null,null,null,null,null,null,null,null,null,null,null,null,null,null,null,null,null,"",0,0,"L",0,0,0,0,0,""]
[37,null,null,"mm",null,"mm",null,"ks",null,null,null,null,null,null,null,null,null,null,null,null,null,null,null,null,null,null,null,null,null,null,"",0,0,"L",0,0,0,0,0,""]
[38,null,null,"mm",null,"mm",null,"ks",null,null,null,null,null,null,null,null,null,null,null,null,null,null,null,null,null,null,null,null,null,null,"",0,0,"L",0,0,0,0,0,""]
[39,null,null,"mm",null,"mm",null,"ks",null,null,null,null,null,null,null,null,null,null,null,null,null,null,null,null,null,null,null,null,null,null,"",0,0,"L",0,0,0,0,0,""]
[40,null,null,"mm",null,"mm",null,"ks",null,null,null,null,null,null,null,null,null,null,null,null,null,null,null,null,null,null,null,null,null,null,"",0,0,"L",0,0,0,0,0,""]
[41,null,null,"mm",null,"mm",null,"ks",null,null,null,null,null,null,null,null,null,null,null,null,null,null,null,null,null,null,null,null,null,null,"",0,0,"L",0,0,0,0,0,""]
[42,null,null,"mm",null,"mm",null,"ks",null,null,null,null,null,null,null,null,null,null,null,null,null,null,null,null,null,null,null,null,null,null,"",0,0,"L",0,0,0,0,0,""]
[43,null,null,"mm",null,"mm",null,"ks",null,null,null,null,null,null,null,null,null,null,null,null,null,null,null,null,null,null,null,null,null,null,"",0,0,"L",0,0,0,0,0,""]
[44,null,null,"mm",null,"mm",null,"ks",null,null,null,null,null,null,null,null,null,null,null,null,null,null,null,null,null,null,null,null,null,null,"",0,0,"L",0,0,0,0,0,""]
[45,null,null,"mm",null,"mm",null,"ks",null,null,null,null,null,null,null,null,null,null,null,null,null,null,null,null,null,null,null,null,null,null,"",0,0,"L",0,0,0,0,0,""]
[46,null,null,"mm",null,"mm",null,"ks",null,null,null,null,null,null,null,null,null,null,null,null,null,null,null,null,null,null,null,null,null,null,"",0,0,"L",0,0,0,0,0,""]
[47,null,null,"mm",null,"mm",null,"ks",null,null,null,null,null,null,null,null,null,null,null,null,null,null,null,null,null,null,null,null,null,null,"",0,0,"L",0,0,0,0,0,""]
[48,null,null,"mm",null,"mm",null,"ks",null,null,null,null,null,null,null,null,null,null,null,null,null,null,null,null,null,null,null,null,null,null,"",0,0,"L",0,0,0,0,0,""]
[49,null,null,"mm",null,"mm",null,"ks",null,null,null,null,null,null,null,null,null,null,null,null,null,null,null,null,null,null,null,null,null,null,"",0,0,"L",0,0,0,0,0,""]
[50,null,null,"mm",null,"mm",null,"ks",null,null,null,null,null,null,null,null,null,null,null,null,null,null,null,null,null,null,null,null,null,null,"",0,0,"L",0,0,0,0,0,""]
[51,null,null,"mm",null,"mm",null,"ks",null,null,null,null,null,null,null,null,null,null,null,null,null,null,null,null,null,null,null,null,null,null,"",0,0,"L",0,0,0,0,0,""]
[52,null,null,"mm",null,"mm",null,"ks",null,null,null,null,null,null,null,null,null,null,null,null,null,null,null,null,null,null,null,null,null,null,"",0,0,"L",0,0,0,0,0,""]
[53,null,null,"mm",null,"mm",null,"ks",null,null,null,null,null,null,null,null,null,null,null,null,null,null,null,null,null,null,null,null,null,null,"",0,0,"L",0,0,0,0,0,""]
[54,null,null,"mm",null,"mm",null,"ks",null,null,null,null,null,null,null,null,null,null,null,null,null,null,null,null,null,null,null,null,null,null,"",0,0,"L",0,0,0,0,0,""]
[55,null,null,"mm",null,"mm",null,"ks",null,null,null,null,null,null,null,null,null,null,null,null,null,null,null,null,null,null,null,null,null,null,"",0,0,"L",0,0,0,0,0,""]
[56,null,null,"mm",null,"mm",null,"ks",null,null,null,null,null,null,null,null,null,null,null,null,null,null,null,null,null,null,null,null,null,null,"",0,0,"L",0,0,0,0,0,""]
[57,null,null,"mm",null,"mm",null,"ks",null,null,null,null,null,null,null,null,null,null,null,null,null,null,null,null,null,null,null,null,null,null,"",0,0,"L",0,0,0,0,0,""]
[58,null,null,"mm",null,"mm",null,"ks",null,null,null,null,null,null,null,null,null,null,null,null,null,null,null,null,null,null,null,null,null,null,"",0,0,"L",0,0,0,0,0,""]
[59,null,null,"mm",null,"mm",null,"ks",null,null,null,null,null,null,null,null,null,null,null,null,null,null,null,null,null,null,null,null,null,null,"",0,0,"L",0,0,0,0,0,""]
[60,null,null,"mm",null,"mm",null,"ks",null,null,null,null,null,null,null,null,null,null,null,null,null,null,null,null,null,null,null,null,null,null,"",0,0,"L",0,0,0,0,0,""]
[61,null,null,"mm",null,"mm",null,"ks",null,null,null,null,null,null,null,null,null,null,null,null,null,null,null,null,null,null,null,null,null,null,"",0,0,"L",0,0,0,0,0,""]
[62,null,null,"mm",null,"mm",null,"ks",null,null,null,null,null,null,null,null,null,null,null,null,null,null,null,null,null,null,null,null,null,null,"",0,0,"L",0,0,0,0,0,""]
[63,null,null,"mm",null,"mm",null,"ks",null,null,null,null,null,null,null,null,null,null,null,null,null,null,null,null,null,null,null,null,null,null,"",0,0,"L",0,0,0,0,0,""]
[64,null,null,"mm",null,"mm",null,"ks",null,null,null,null,null,null,null,null,null,null,null,null,null,null,null,null,null,null,null,null,null,null,"",0,0,"L",0,0,0,0,0,""]
[65,null,null,"mm",null,"mm",null,"ks",null,null,null,null,null,null,null,null,null,null,null,null,null,null,null,null,null,null,null,null,null,null,{"$f":"IF(B75<>\"\",B75,\"\")","v":""},{"$f":"C75+1-MAX(Y75,0.5)-MAX(Z75,0.5)","v":0},0,"L",0,0,0,0,0,""]
[66,null,null,"mm",null,"mm",null,"ks",null,null,null,null,null,null,null,null,null,null,null,null,null,null,null,null,null,null,null,null,null,null,"",0,0,"L",0,0,0,0,0,{"$f":"IF( AC76<>\"\",AC76,\"\")","v":""}]
[67,null,null,"mm",null,"mm",null,"ks",null,null,null,null,null,null,null,null,null,null,null,null,null,null,null,null,null,null,null,null,null,null,"",0,{"$f":"E77+1-MAX(AA77,0.5)-MAX(AB77,0.5)","v":0},{"$f":" IF($AH$2,\"L\",0)","v":"L"},{"$f":"G77","v":0},{"$f":"Y77","v":0},{"$f":"AA77","v":0},{"$f":"Z77","v":0},{"$f":"AB77","v":0},""]
[68,null,null,"mm",null,"mm",null,"ks",null,null,null,null,null,null,null,null,null,null,null,null,null,null,null,null,null,null,null,null,null,null,"",0,0,"L",0,0,0,0,0,""]
[69,null,null,"mm",null,"mm",null,"ks",null,null,null,null,null,null,null,null,null,null,null,null,null,null,null,null,null,null,null,null,null,null,"",0,0,"L",0,0,0,0,0,""]
[70,null,null,"mm",null,"mm",null,"ks",null,null,null,null,null,null,null,null,null,null,null,null,null,null,null,null,null,null,null,null,null,null,"",0,0,"L",0,0,0,0,0,""]
[71,null,null,"mm",null,"mm",null,"ks",null,null,null,null,null,null,null,null,null,null,null,null,null,null,null,null,null,null,null,null,null,null,"",0,0,"L",0,0,0,0,0,""]
[72,null,null,"mm",null,"mm",null,"ks",null,null,null,null,null,null,null,null,null,null,null,null,null,null,null,null,null,null,null,null,null,null,"",0,0,"L",0,0,0,0,0,""]
[73,null,null,"mm",null,"mm",null,"ks",null,null,null,null,null,null,null,null,null,null,null,null,null,null,null,null,null,null,null,null,null,null,"",0,0,"L",0,0,0,0,0,""]
[74,null,null,"mm",null,"mm",null,"ks",null,null,null,null,null,null,null,null,null,null,null,null,null,null,null,null,null,null,null,null,null,null,"",0,0,"L",0,0,0,0,0,""]
[75,null,null,"mm",null,"mm",null,"ks",null,null,null,null,null,null,null,null,null,null,null,null,null,null,null,null,null,null,null,null,null,null,"",0,0,"L",0,0,0,0,0,""]
[76,null,null,"mm",null,"mm",null,"ks",null,null,null,null,null,null,null,null,null,null,null,null,null,null,null,null,null,null,null,null,null,null,"",0,0,"L",0,0,0,0,0,""]
[77,null,null,"mm",null,"mm",null,"ks",null,null,null,null,null,null,null,null,null,null,null,null,null,null,null,null,null,null,null,null,null,null,"",0,0,"L",0,0,0,0,0,""]
[78,null,null,"mm",null,"mm",null,"ks",null,null,null,null,null,null,null,null,null,null,null,null,null,null,null,null,null,null,null,null,null,null,"",0,0,"L",0,0,0,0,0,""]
[79,null,null,"mm",null,"mm",null,"ks",null,null,null,null,null,null,null,null,null,null,null,null,null,null,null,null,null,null,null,null,null,null,"",0,0,"L",0,0,0,0,0,""]
[80,null,null,"mm",null,"mm",null,"ks",null,null,null,null,null,null,null,null,null,null,null,null,null,null,null,null,null,null,null,null,null,null,"",0,0,"L",0,0,0,0,0,""]
[81,null,null,"mm",null,"mm",null,"ks",null,null,null,null,null,null,null,null,null,null,null,null,null,null,null,null,null,null,null,null,null,null,"",0,0,"L",0,0,0,0,0,""]
[82,null,null,"mm",null,"mm",null,"ks",null,null,null,null,null,null,null,null,null,null,null,null,null,null,null,null,null,null,null,null,null,null,"",0,0,"L",0,0,0,0,0,""]
[83,null,null,"mm",null,"mm",null,"ks",null,null,null,null,null,null,null,null,null,null,null,null,null,null,null,null,null,null,null,null,null,null,"",0,0,"L",0,0,0,0,0,""]
[84,null,null,"mm",null,"mm",null,"ks",null,null,null,null,null,null,null,null,null,null,null,null,null,null,null,null,null,null,null,null,null,null,"",0,0,"L",0,0,0,0,0,""]
[85,null,null,"mm",null,"mm",null,"ks",null,null,null,null,null,null,null,null,null,null,null,null,null,null,null,null,null,null,null,null,null,null,"",0,0,"L",0,0,0,0,0,""]
[86,null,null,"mm",null,"mm",null,"ks",null,null,null,null,null,null,null,null,null,null,null,null,null,null,null,null,null,null,null,null,null,null,"",0,0,"L",0,0,0,0,0,""]
[87,null,null,"mm",null,"mm",null,"ks",null,null,null,null,null,null,null,null,null,null,null,null,null,null,null,null,null,null,null,null,null,null,"",0,0,"L",0,0,0,0,0,""]
[88,null,null,"mm",null,"mm",null,"ks",null,null,null,null,null,null,null,null,null,null,null,null,null,null,null,null,null,null,null,null,null,null,"",0,0,"L",0,0,0,0,0,""]
[89,null,null,"mm",null,"mm",null,"ks",null,null,null,null,null,null,null,null,null,null,null,null,null,null,null,null,null,null,null,null,null,null,"",0,0,"L",0,0,0,0,0,""]
[90,null,null,"mm",null,"mm",null,"ks",null,null,null,null,null,null,null,null,null,null,null,null,null,null,null,null,null,null,null,null,null,null,"",0,0,"L",0,0,0,0,0,""]
[91,null,null,"mm",null,"mm",null,"ks",null,null,null,null,null,null,null,null,null,null,null,null,null,null,null,null,null,null,null,null,null,null,"",0,0,"L",0,0,0,0,0,""]
[92,null,null,"mm",null,"mm",null,"ks",null,null,null,null,null,null,null,null,null,null,null,null,null,null,null,null,null,null,null,null,null,null,"",0,0,"L",0,0,0,0,0,""]
[93,null,null,"mm",null,"mm",null,"ks",null,null,null,null,null,null,null,null,null,null,null,null,null,null,null,null,null,null,null,null,null,null,"",0,0,"L",0,0,0,0,0,""]
[94,null,null,"mm",null,"mm",null,"ks",null,null,null,null,null,null,null,null,null,null,null,null,null,null,null,null,null,null,null,null,null,null,"",0,0,"L",0,0,0,0,0,""]
[95,null,null,"mm",null,"mm",null,"ks",null,null,null,null,null,null,null,null,null,null,null,null,null,null,null,null,null,null,null,null,null,null,"",0,0,"L",0,0,0,0,0,""]
[96,null,null,"mm",null,"mm",null,"ks",null,null,null,null,null,null,null,null,null,null,null,null,null,null,null,null,null,null,null,null,null,null,"",0,0,"L",0,0,0,0,0,""]
[97,null,null,"mm",null,"mm",null,"ks",null,null,null,null,null,null,null,null,null,null,null,null,null,null,null,null,null,null,null,null,null,null,"",0,0,"L",0,0,0,0,0,""]
[98,null,null,"mm",null,"mm",null,"ks",null,null,null,null,null,null,null,null,null,null,null,null,null,null,null,null,null,null,null,null,null,null,"",0,0,"L",0,0,0,0,0,""]
[99,null,null,"mm",null,"mm",null,"ks",null,null,null,null,null,null,null,null,null,null,null,null,null,null,null,null,null,null,null,null,null,null,"",0,0,"L",0,0,0,0,0,""]
[100,null,null,"mm",null,"mm",null,"ks",null,null,null,null,null,null,null,null,null,null,null,null,null,null,null,null,null,null,null,null,null,null,"",0,0,"L",0,0,0,0,0,""]

{"sheet":"List 5","index":5,"n_rows":110,"n_cols":40,"rows_kept":110,"cut":false,"hidden":false,"merged":[[9,8,9,15],[9,16,9,23],[9,24,9,27],[7,16,7,19],[7,20,7,23],[7,24,7,27],[7,28,8,28],[8,2,8,3],[8,4,8,5],[8,6,8,7],[7,1,8,1],[7,2,7,3],[7,4,7,5],[7,6,7,7],[7,8,7,11],[7,12,7,15],[1,1,1,2],[1,4,1,10],[1,12,1,16],[2,1,2,2],[2,4,2,10],[2,12,2,16]]}
[]
[null,"Název materiálu:",null,null,"Tloušťka materiálu:",null,null,null,null,null,null,null,"Kód Demos trade:",null,null,null,null,null,null,null,null,null,null,null,null,null,null,null,null,null,null,null,"Struktura:",true]
[null,null,null,null,null,null,null,null,null,null,null,null,null,null,null,null,null,null,null,null,null,null,null,null,null,null,null,null,null,null,null,null,"Bez struk:",false]
[]
[null,null,null,null,null,null,null,null,null,null,null,null,null,null,null,null,null,null,null,null,null,null,null,null,null,null,null,null,null,null,"Souhrn:"]
[null,null,null,null,null,null,null,null,null,null,null,null,null,null,null,null,null,null,null,null,null,null,null,null,null,null,null,null,null,null,"Položek","Délka ABS","Šířka ABS","ABS celkem","Kusy","Obsah"]
[null,null,null,null,null,null,null,null,null,null,null,null,null,null,null,null,null,null,null,null,null,null,null,null,null,null,null,null,null,null,{"$f":"100-COUNTBLANK(AE11:AE110)","v":0},{"$f":"SUM(C11:C110*AI11:AI110)*(IF(AJ11:AJ110>0,1,0)+IF(AL11:AL110>0,1,0))/1000","v":0},{"$f":"SUM(E11:E110*AI11:AI110)*(IF(AK11:AK110>0,1,0)+IF(AM11:AM110>0,1,0))/1000","v":0},{"$f":"AF7+AG7","v":0},{"$f":"SUM(AI11:AI110)","v":0},{"$f":"SUM(C11:C110*E11:E110*G11:G110)/1000/1000","v":0}]
[null,"název dílce:","x = délka:",null,"y = šířka:",null,"počet",null,"tloušťka ABS",null,null,null,"tloušťka ABS",null,null,null,"tloušťka ABS",null,null,null,"tloušťka ABS",null,null,null,"síla hrany v mm:",null,null,null,"poznámka"]
[null,null,"(po létech)",null,"(napříč létům)",null,"kusů:",null,0,0.5,1,2,0,0.5,1,2,0,0.5,1,2,0,0.5,1,2,"x","x","y","y",null,null,"Název","Délka","Šířka","Směr řezu","Počet","ABS 1","ABS 2","ABS 3","ABS 4","Poznámka"]
[null,null,"zadat",null,"zadat",null,"zadat",null,"označení pravým tlačítkem nebo lib.znak",null,null,null,null,null,null,null,"označení pravým tlačítkem nebo lib.znak",null,null,null,null,null,null,null,"kontrola nebo zadat"]
[1,null,null,"mm",null,"mm",null,"ks",null,null,null,null,null,null,null,null,null,null,null,null,null,null,null,null,null,null,null,null,null,null,{"$f":"IF(B11<>\"\",B11,\"\")","v":""},{"$f":"C11+1-MAX(Y11,0.5)-MAX(Z11,0.5)","v":0},{"$f":"E11+1-MAX(AA11,0.5)-MAX(AB11,0.5)","v":0},{"$f":" IF($AH$2,\"L\",0)","v":"L"},{"$f":"G11","v":0},{"$f":"Y11","v":0},{"$f":"AA11","v":0},{"$f":"Z11","v":0},{"$f":"AB11","v":0},{"$f":"IF( AC11<>\"\",AC11,\"\")","v":""}]
[2,null,null,"mm",null,"mm",null,"ks",null,null,null,null,null,null,null,null,null,null,null,null,null,null,null,null,null,null,null,null,null,null,"",0,{"$f":"E12+1-MAX(AA12,0.5)-MAX(AB12,0.5)","v":0},{"$f":" IF($AH$2,\"L\",0)","v":"L"},{"$f":"G12","v":0},{"$f":"Y12","v":0},{"$f":"AA12","v":0},{"$f":"Z12","v":0},{"$f":"AB12","v":0},{"$f":"IF( AC12<>\"\",AC12,\"\")","v":""}]
[3,null,null,"mm",null,"mm",null,"ks",null,null,null,null,null,null,null,null,null,null,null,null,null,null,null,null,null,null,null,null,null,null,"",0,{"$f":"E13+1-MAX(AA13,0.5)-MAX(AB13,0.5)","v":0},{"$f":" IF($AH$2,\"L\",0)","v":"L"},{"$f":"G13","v":0},{"$f":"Y13","v":0},{"$f":"AA13","v":0},{"$f":"Z13","v":0},{"$f":"AB13","v":0},""]
[4,null,null,"mm",null,"mm",null,"ks",null,null,null,null,null,null,null,null,null,null,null,null,null,null,null,null,null,null,null,null,null,null,"",0,0,"L",0,0,0,0,0,""]
[5,null,null,"mm",null,"mm",null,"ks",null,null,null,null,null,null,null,null,null,null,null,null,null,null,null,null,null,null,null,null,null,null,"",0,0,"L",0,0,0,0,0,""]
[6,null,null,"mm",null,"mm",null,"ks",null,null,null,null,null,null,null,null,null,null,null,null,null,null,null,null,null,null,null,null,null,null,"",0,0,"L",0,0,0,0,0,""]
[7,null,null,"mm",null,"mm",null,"ks",null,null,null,null,null,null,null,null,null,null,null,null,null,null,null,null,null,null,null,null,null,null,"",0,0,"L",0,0,0,0,0,""]
[8,null,null,"mm",null,"mm",null,"ks",null,null,null,null,null,null,null,null,null,null,null,null,null,null,null,null,null,null,null,null,null,null,"",0,0,"L",0,0,0,0,0,""]
[9,null,null,"mm",null,"mm",null,"ks",null,null,null,null,null,null,null,null,null,null,null,null,null,null,null,null,null,null,null,null,null,null,"",0,0,"L",0,0,0,0,0,""]
[10,null,null,"mm",null,"mm",null,"ks",null,null,null,null,null,null,null,null,null,null,null,null,null,null,null,null,null,null,null,null,null,null,"",0,0,"L",0,0,0,0,0,""]
[11,null,null,"mm",null,"mm",null,"ks",null,null,null,null,null,null,null,null,null,null,null,null,null,null,null,null,null,null,null,null,null,null,"",0,0,"L",0,0,0,0,0,""]
[12,null,null,"mm",null,"mm",null,"ks",null,null,null,null,null,null,null,null,null,null,null,null,null,null,null,null,null,null,null,null,null,null,"",0,0,"L",0,0,0,0,0,""]
[13,null,null,"mm",null,"mm",null,"ks",null,null,null,null,null,null,null,null,null,null,null,null,null,null,null,null,null,null,null,null,null,null,"",0,0,"L",0,0,0,0,0,""]
[14,null,null,"mm",null,"mm",null,"ks",null,null,null,null,null,null,null,null,null,null,null,null,null,null,null,null,null,null,null,null,null,null,"",0,0,"L",0,0,0,0,0,""]
[15,null,null,"mm",null,"mm",null,"ks",null,null,null,null,null,null,null,null,null,null,null,null,null,null,null,null,null,null,null,null,null,null,"",0,0,"L",0,0,0,0,0,""]
[16,null,null,"mm",null,"mm",null,"ks",null,null,null,null,null,null,null,null,null,null,null,null,null,null,null,null,null,null,null,null,null,null,"",0,0,"L",0,0,0,0,0,""]
[17,null,null,"mm",null,"mm",null,"ks",null,null,null,null,null,null,null,null,null,null,null,null,null,null,null,null,null,null,null,null,null,null,"",0,0,"L",0,0,0,0,0,""]
[18,null,null,"mm",null,"mm",null,"ks",null,null,null,null,null,null,null,null,null,null,null,null,null,null,null,null,null,null,null,null,null,null,"",0,0,"L",0,0,0,0,0,""]
[19,null,null,"mm",null,"mm",null,"ks",null,null,null,null,null,null,null,null,null,null,null,null,null,null,null,null,null,null,null,null,null,null,"",0,0,"L",0,0,0,0,0,""]
[20,null,null,"mm",null,"mm",null,"ks",null,null,null,null,null,null,null,null,null,null,null,null,null,null,null,null,null,null,null,null,null,null,"",0,0,"L",0,0,0,0,0,""]
[21,null,null,"mm",null,"mm",null,"ks",null,null,null,null,null,null,null,null,null,null,null,null,null,null,null,null,null,null,null,null,null,null,"",0,0,"L",0,0,0,0,0,""]
[22,null,null,"mm",null,"mm",null,"ks",null,null,null,null,null,null,null,null,null,null,null,null,null,null,null,null,null,null,null,null,null,null,"",0,0,"L",0,0,0,0,0,""]
[23,null,null,"mm",null,"mm",null,"ks",null,null,null,null,null,null,null,null,null,null,null,null,null,null,null,null,null,null,null,null,null,null,"",0,0,"L",0,0,0,0,0,""]
[24,null,null,"mm",null,"mm",null,"ks",null,null,null,null,null,null,null,null,null,null,null,null,null,null,null,null,null,null,null,null,null,null,"",0,0,"L",0,0,0,0,0,""]
[25,null,null,"mm",null,"mm",null,"ks",null,null,null,null,null,null,null,null,null,null,null,null,null,null,null,null,null,null,null,null,null,null,"",0,0,"L",0,0,0,0,0,""]
[26,null,null,"mm",null,"mm",null,"ks",null,null,null,null,null,null,null,null,null,null,null,null,null,null,null,null,null,null,null,null,null,null,"",0,0,"L",0,0,0,0,0,""]
[27,null,null,"mm",null,"mm",null,"ks",null,null,null,null,null,null,null,null,null,null,null,null,null,null,null,null,null,null,null,null,null,null,"",0,0,"L",0,0,0,0,0,""]
[28,null,null,"mm",null,"mm",null,"ks",null,null,null,null,null,null,null,null,null,null,null,null,null,null,null,null,null,null,null,null,null,null,"",0,0,"L",0,0,0,0,0,""]
[29,null,null,"mm",null,"mm",null,"ks",null,null,null,null,null,null,null,null,null,null,null,null,null,null,null,null,null,null,null,null,null,null,"",0,0,"L",0,0,0,0,0,""]
[30,null,null,"mm",null,"mm",null,"ks",null,null,null,null,null,null,null,null,null,null,null,null,null,null,null,null,null,null,null,null,null,null,"",0,0,"L",0,0,0,0,0,""]
[31,null,null,"mm",null,"mm",null,"ks",null,null,null,null,null,null,null,null,null,null,null,null,null,null,null,null,null,null,null,null,null,null,"",0,0,"L",0,0,0,0,0,""]
[32,null,null,"mm",null,"mm",null,"ks",null,null,null,null,null,null,null,null,null,null,null,null,null,null,null,null,null,null,null,null,null,null,"",0,0,"L",0,0,0,0,0,""]
[33,null,null,"mm",null,"mm",null,"ks",null,null,null,null,null,null,null,null,null,null,null,null,null,null,null,null,null,null,null,null,null,null,{"$f":"IF(B43<>\"\",B43,\"\")","v":""},0,0,"L",0,0,0,0,0,""]
[34,null,null,"mm",null,"mm",null,"ks",null,null,null,null,null,null,null,null,null,null,null,null,null,null,null,null,null,null,null,null,null,null,"",0,0,"L",0,0,0,0,0,""]
[35,null,null,"mm",null,"mm",null,"ks",null,null,null,null,null,null,null,null,null,null,null,null,null,null,null,null,null,null,null,null,null,null,"",0,0,"L",0,0,0,0,0,""]
[36,null,null,"mm",null,"mm",null,"ks",null,null,null,null,null,null,null,null,null,null,null,null,null,null,null,null,null,null,null,null,null,null,"",0,0,"L",0,0,0,0,0,""]
[37,null,null,"mm",null,"mm",null,"ks",null,null,null,null,null,null,null,null,null,null,null,null,null,null,null,null,null,null,null,null,null,null,"",0,0,"L",0,0,0,0,0,""]
[38,null,null,"mm",null,"mm",null,"ks",null,null,null,null,null,null,null,null,null,null,null,null,null,null,null,null,null,null,null,null,null,null,"",0,0,"L",0,0,0,0,0,""]
[39,null,null,"mm",null,"mm",null,"ks",null,null,null,null,null,null,null,null,null,null,null,null,null,null,null,null,null,null,null,null,null,null,"",0,0,"L",0,0,0,0,0,""]
[40,null,null,"mm",null,"mm",null,"ks",null,null,null,null,null,null,null,null,null,null,null,null,null,null,null,null,null,null,null,null,null,null,"",0,0,"L",0,0,0,0,0,""]
[41,null,null,"mm",null,"mm",null,"ks",null,null,null,null,null,null,null,null,null,null,null,null,null,null,null,null,null,null,null,null,null,null,"",0,0,"L",0,0,0,0,0,""]
[42,null,null,"mm",null,"mm",null,"ks",null,null,null,null,null,null,null,null,null,null,null,null,null,null,null,null,null,null,null,null,null,null,"",0,0,"L",0,0,0,0,0,""]
[43,null,null,"mm",null,"mm",null,"ks",null,null,null,null,null,null,null,null,null,null,null,null,null,null,null,null,null,null,null,null,null,null,"",0,0,"L",0,0,0,0,0,""]
[44,null,null,"mm",null,"mm",null,"ks",null,null,null,null,null,null,null,null,null,null,null,null,null,null,null,null,null,null,null,null,null,null,"",0,0,"L",0,0,0,0,0,""]
[45,null,null,"mm",null,"mm",null,"ks",null,null,null,null,null,null,null,null,null,null,null,null,null,null,null,null,null,null,null,null,null,null,"",0,0,"L",0,0,0,0,0,""]
[46,null,null,"mm",null,"mm",null,"ks",null,null,null,null,null,null,null,null,null,null,null,null,null,null,null,null,null,null,null,null,null,null,"",0,0,"L",0,0,0,0,0,""]
[47,null,null,"mm",null,"mm",null,"ks",null,null,null,null,null,null,null,null,null,null,null,null,null,null,null,null,null,null,null,null,null,null,"",0,0,"L",0,0,0,0,0,""]
[48,null,null,"mm",null,"mm",null,"ks",null,null,null,null,null,null,null,null,null,null,null,null,null,null,null,null,null,null,null,null,null,null,"",0,0,"L",0,0,0,0,0,""]
[49,null,null,"mm",null,"mm",null,"ks",null,null,null,null,null,null,null,null,null,null,null,null,null,null,null,null,null,null,null,null,null,null,"",0,0,"L",0,0,0,0,0,""]
[50,null,null,"mm",null,"mm",null,"ks",null,null,null,null,null,null,null,null,null,null,null,null,null,null,null,null,null,null,null,null,null,null,"",0,0,"L",0,0,0,0,0,""]
[51,null,null,"mm",null,"mm",null,"ks",null,null,null,null,null,null,null,null,null,null,null,null,null,null,null,null,null,null,null,null,null,null,"",0,0,"L",0,0,0,0,0,""]
[52,null,null,"mm",null,"mm",null,"ks",null,null,null,null,null,null,null,null,null,null,null,null,null,null,null,null,null,null,null,null,null,null,"",0,0,"L",0,0,0,0,0,""]
[53,null,null,"mm",null,"mm",null,"ks",null,null,null,null,null,null,null,null,null,null,null,null,null,null,null,null,null,null,null,null,null,null,"",0,0,"L",0,0,0,0,0,""]
[54,null,null,"mm",null,"mm",null,"ks",null,null,null,null,null,null,null,null,null,null,null,null,null,null,null,null,null,null,null,null,null,null,"",0,0,"L",0,0,0,0,0,""]
[55,null,null,"mm",null,"mm",null,"ks",null,null,null,null,null,null,null,null,null,null,null,null,null,null,null,null,null,null,null,null,null,null,"",0,0,"L",0,0,0,0,0,""]
[56,null,null,"mm",null,"mm",null,"ks",null,null,null,null,null,null,null,null,null,null,null,null,null,null,null,null,null,null,null,null,null,null,"",0,0,"L",0,0,0,0,0,""]
[57,null,null,"mm",null,"mm",null,"ks",null,null,null,null,null,null,null,null,null,null,null,null,null,null,null,null,null,null,null,null,null,null,"",0,0,"L",0,0,0,0,0,""]
[58,null,null,"mm",null,"mm",null,"ks",null,null,null,null,null,null,null,null,null,null,null,null,null,null,null,null,null,null,null,null,null,null,"",0,0,"L",0,0,0,0,0,""]
[59,null,null,"mm",null,"mm",null,"ks",null,null,null,null,null,null,null,null,null,null,null,null,null,null,null,null,null,null,null,null,null,null,"",0,0,"L",0,0,0,0,0,""]
[60,null,null,"mm",null,"mm",null,"ks",null,null,null,null,null,null,null,null,null,null,null,null,null,null,null,null,null,null,null,null,null,null,"",0,0,"L",0,0,0,0,0,""]
[61,null,null,"mm",null,"mm",null,"ks",null,null,null,null,null,null,null,null,null,null,null,null,null,null,null,null,null,null,null,null,null,null,"",0,0,"L",0,0,0,0,0,""]
[62,null,null,"mm",null,"mm",null,"ks",null,null,null,null,null,null,null,null,null,null,null,null,null,null,null,null,null,null,null,null,null,null,"",0,0,"L",0,0,0,0,0,""]
[63,null,null,"mm",null,"mm",null,"ks",null,null,null,null,null,null,null,null,null,null,null,null,null,null,null,null,null,null,null,null,null,null,"",0,0,"L",0,0,0,0,0,""]
[64,null,null,"mm",null,"mm",null,"ks",null,null,null,null,null,null,null,null,null,null,null,null,null,null,null,null,null,null,null,null,null,null,"",0,0,"L",0,0,0,0,0,""]
[65,null,null,"mm",null,"mm",null,"ks",null,null,null,null,null,null,null,null,null,null,null,null,null,null,null,null,null,null,null,null,null,null,{"$f":"IF(B75<>\"\",B75,\"\")","v":""},{"$f":"C75+1-MAX(Y75,0.5)-MAX(Z75,0.5)","v":0},0,"L",0,0,0,0,0,""]
[66,null,null,"mm",null,"mm",null,"ks",null,null,null,null,null,null,null,null,null,null,null,null,null,null,null,null,null,null,null,null,null,null,"",0,0,"L",0,0,0,0,0,{"$f":"IF( AC76<>\"\",AC76,\"\")","v":""}]
[67,null,null,"mm",null,"mm",null,"ks",null,null,null,null,null,null,null,null,null,null,null,null,null,null,null,null,null,null,null,null,null,null,"",0,{"$f":"E77+1-MAX(AA77,0.5)-MAX(AB77,0.5)","v":0},{"$f":" IF($AH$2,\"L\",0)","v":"L"},{"$f":"G77","v":0},{"$f":"Y77","v":0},{"$f":"AA77","v":0},{"$f":"Z77","v":0},{"$f":"AB77","v":0},""]
[68,null,null,"mm",null,"mm",null,"ks",null,null,null,null,null,null,null,null,null,null,null,null,null,null,null,null,null,null,null,null,null,null,"",0,0,"L",0,0,0,0,0,""]
[69,null,null,"mm",null,"mm",null,"ks",null,null,null,null,null,null,null,null,null,null,null,null,null,null,null,null,null,null,null,null,null,null,"",0,0,"L",0,0,0,0,0,""]
[70,null,null,"mm",null,"mm",null,"ks",null,null,null,null,null,null,null,null,null,null,null,null,null,null,null,null,null,null,null,null,null,null,"",0,0,"L",0,0,0,0,0,""]
[71,null,null,"mm",null,"mm",null,"ks",null,null,null,null,null,null,null,null,null,null,null,null,null,null,null,null,null,null,null,null,null,null,"",0,0,"L",0,0,0,0,0,""]
[72,null,null,"mm",null,"mm",null,"ks",null,null,null,null,null,null,null,null,null,null,null,null,null,null,null,null,null,null,null,null,null,null,"",0,0,"L",0,0,0,0,0,""]
[73,null,null,"mm",null,"mm",null,"ks",null,null,null,null,null,null,null,null,null,null,null,null,null,null,null,null,null,null,null,null,null,null,"",0,0,"L",0,0,0,0,0,""]
[74,null,null,"mm",null,"mm",null,"ks",null,null,null,null,null,null,null,null,null,null,null,null,null,null,null,null,null,null,null,null,null,null,"",0,0,"L",0,0,0,0,0,""]
[75,null,null,"mm",null,"mm",null,"ks",null,null,null,null,null,null,null,null,null,null,null,null,null,null,null,null,null,null,null,null,null,null,"",0,0,"L",0,0,0,0,0,""]
[76,null,null,"mm",null,"mm",null,"ks",null,null,null,null,null,null,null,null,null,null,null,null,null,null,null,null,null,null,null,null,null,null,"",0,0,"L",0,0,0,0,0,""]
[77,null,null,"mm",null,"mm",null,"ks",null,null,null,null,null,null,null,null,null,null,null,null,null,null,null,null,null,null,null,null,null,null,"",0,0,"L",0,0,0,0,0,""]
[78,null,null,"mm",null,"mm",null,"ks",null,null,null,null,null,null,null,null,null,null,null,null,null,null,null,null,null,null,null,null,null,null,"",0,0,"L",0,0,0,0,0,""]
[79,null,null,"mm",null,"mm",null,"ks",null,null,null,null,null,null,null,null,null,null,null,null,null,null,null,null,null,null,null,null,null,null,"",0,0,"L",0,0,0,0,0,""]
[80,null,null,"mm",null,"mm",null,"ks",null,null,null,null,null,null,null,null,null,null,null,null,null,null,null,null,null,null,null,null,null,null,"",0,0,"L",0,0,0,0,0,""]
[81,null,null,"mm",null,"mm",null,"ks",null,null,null,null,null,null,null,null,null,null,null,null,null,null,null,null,null,null,null,null,null,null,"",0,0,"L",0,0,0,0,0,""]
[82,null,null,"mm",null,"mm",null,"ks",null,null,null,null,null,null,null,null,null,null,null,null,null,null,null,null,null,null,null,null,null,null,"",0,0,"L",0,0,0,0,0,""]
[83,null,null,"mm",null,"mm",null,"ks",null,null,null,null,null,null,null,null,null,null,null,null,null,null,null,null,null,null,null,null,null,null,"",0,0,"L",0,0,0,0,0,""]
[84,null,null,"mm",null,"mm",null,"ks",null,null,null,null,null,null,null,null,null,null,null,null,null,null,null,null,null,null,null,null,null,null,"",0,0,"L",0,0,0,0,0,""]
[85,null,null,"mm",null,"mm",null,"ks",null,null,null,null,null,null,null,null,null,null,null,null,null,null,null,null,null,null,null,null,null,null,"",0,0,"L",0,0,0,0,0,""]
[86,null,null,"mm",null,"mm",null,"ks",null,null,null,null,null,null,null,null,null,null,null,null,null,null,null,null,null,null,null,null,null,null,"",0,0,"L",0,0,0,0,0,""]
[87,null,null,"mm",null,"mm",null,"ks",null,null,null,null,null,null,null,null,null,null,null,null,null,null,null,null,null,null,null,null,null,null,"",0,0,"L",0,0,0,0,0,""]
[88,null,null,"mm",null,"mm",null,"ks",null,null,null,null,null,null,null,null,null,null,null,null,null,null,null,null,null,null,null,null,null,null,"",0,0,"L",0,0,0,0,0,""]
[89,null,null,"mm",null,"mm",null,"ks",null,null,null,null,null,null,null,null,null,null,null,null,null,null,null,null,null,null,null,null,null,null,"",0,0,"L",0,0,0,0,0,""]
[90,null,null,"mm",null,"mm",null,"ks",null,null,null,null,null,null,null,null,null,null,null,null,null,null,null,null,null,null,null,null,null,null,"",0,0,"L",0,0,0,0,0,""]
[91,null,null,"mm",null,"mm",null,"ks",null,null,null,null,null,null,null,null,null,null,null,null,null,null,null,null,null,null,null,null,null,null,"",0,0,"L",0,0,0,0,0,""]
[92,null,null,"mm",null,"mm",null,"ks",null,null,null,null,null,null,null,null,null,null,null,null,null,null,null,null,null,null,null,null,null,null,"",0,0,"L",0,0,0,0,0,""]
[93,null,null,"mm",null,"mm",null,"ks",null,null,null,null,null,null,null,null,null,null,null,null,null,null,null,null,null,null,null,null,null,null,"",0,0,"L",0,0,0,0,0,""]
[94,null,null,"mm",null,"mm",null,"ks",null,null,null,null,null,null,null,null,null,null,null,null,null,null,null,null,null,null,null,null,null,null,"",0,0,"L",0,0,0,0,0,""]
[95,null,null,"mm",null,"mm",null,"ks",null,null,null,null,null,null,null,null,null,null,null,null,null,null,null,null,null,null,null,null,null,null,"",0,0,"L",0,0,0,0,0,""]
[96,null,null,"mm",null,"mm",null,"ks",null,null,null,null,null,null,null,null,null,null,null,null,null,null,null,null,null,null,null,null,null,null,"",0,0,"L",0,0,0,0,0,""]
[97,null,null,"mm",null,"mm",null,"ks",null,null,null,null,null,null,null,null,null,null,null,null,null,null,null,null,null,null,null,null,null,null,"",0,0,"L",0,0,0,0,0,""]
[98,null,null,"mm",null,"mm",null,"ks",null,null,null,null,null,null,null,null,null,null,null,null,null,null,null,null,null,null,null,null,null,null,"",0,0,"L",0,0,0,0,0,""]
[99,null,null,"mm",null,"mm",null,"ks",null,null,null,null,null,null,null,null,null,null,null,null,null,null,null,null,null,null,null,null,null,null,"",0,0,"L",0,0,0,0,0,""]
[100,null,null,"mm",null,"mm",null,"ks",null,null,null,null,null,null,null,null,null,null,null,null,null,null,null,null,null,null,null,null,null,null,"",0,0,"L",0,0,0,0,0,""]

{"sheet":"List 6","index":6,"n_rows":110,"n_cols":40,"rows_kept":110,"cut":false,"hidden":false,"merged":[[9,8,9,15],[9,16,9,23],[9,24,9,27],[7,16,7,19],[7,20,7,23],[7,24,7,27],[7,28,8,28],[8,2,8,3],[8,4,8,5],[8,6,8,7],[7,1,8,1],[7,2,7,3],[7,4,7,5],[7,6,7,7],[7,8,7,11],[7,12,7,15],[1,1,1,2],[1,4,1,10],[1,12,1,16],[2,1,2,2],[2,4,2,10],[2,12,2,16]]}
[]
[null,"Název materiálu:",null,null,"Tloušťka materiálu:",null,null,null,null,null,null,null,"Kód Demos trade:",null,null,null,null,null,null,null,null,null,null,null,null,null,null,null,null,null,null,null,"Struktura:",true]
[null,null,null,null,null,null,null,null,null,null,null,null,null,null,null,null,null,null,null,null,null,null,null,null,null,null,null,null,null,null,null,null,"Bez struk:",false]
[]
[null,null,null,null,null,null,null,null,null,null,null,null,null,null,null,null,null,null,null,null,null,null,null,null,null,null,null,null,null,null,"Souhrn:"]
[null,null,null,null,null,null,null,null,null,null,null,null,null,null,null,null,null,null,null,null,null,null,null,null,null,null,null,null,null,null,"Položek","Délka ABS","Šířka ABS","ABS celkem","Kusy","Obsah"]
[null,null,null,null,null,null,null,null,null,null,null,null,null,null,null,null,null,null,null,null,null,null,null,null,null,null,null,null,null,null,{"$f":"100-COUNTBLANK(AE11:AE110)","v":0},{"$f":"SUM(C11:C110*AI11:AI110)*(IF(AJ11:AJ110>0,1,0)+IF(AL11:AL110>0,1,0))/1000","v":0},{"$f":"SUM(E11:E110*AI11:AI110)*(IF(AK11:AK110>0,1,0)+IF(AM11:AM110>0,1,0))/1000","v":0},{"$f":"AF7+AG7","v":0},{"$f":"SUM(AI11:AI110)","v":0},{"$f":"SUM(C11:C110*E11:E110*G11:G110)/1000/1000","v":0}]
[null,"název dílce:","x = délka:",null,"y = šířka:",null,"počet",null,"tloušťka ABS",null,null,null,"tloušťka ABS",null,null,null,"tloušťka ABS",null,null,null,"tloušťka ABS",null,null,null,"síla hrany v mm:",null,null,null,"poznámka"]
[null,null,"(po létech)",null,"(napříč létům)",null,"kusů:",null,0,0.5,1,2,0,0.5,1,2,0,0.5,1,2,0,0.5,1,2,"x","x","y","y",null,null,"Název","Délka","Šířka","Směr řezu","Počet","ABS 1","ABS 2","ABS 3","ABS 4","Poznámka"]
[null,null,"zadat",null,"zadat",null,"zadat",null,"označení pravým tlačítkem nebo lib.znak",null,null,null,null,null,null,null,"označení pravým tlačítkem nebo lib.znak",null,null,null,null,null,null,null,"kontrola nebo zadat"]
[1,null,null,"mm",null,"mm",null,"ks",null,null,null,null,null,null,null,null,null,null,null,null,null,null,null,null,null,null,null,null,null,null,{"$f":"IF(B11<>\"\",B11,\"\")","v":""},{"$f":"C11+1-MAX(Y11,0.5)-MAX(Z11,0.5)","v":0},{"$f":"E11+1-MAX(AA11,0.5)-MAX(AB11,0.5)","v":0},{"$f":" IF($AH$2,\"L\",0)","v":"L"},{"$f":"G11","v":0},{"$f":"Y11","v":0},{"$f":"AA11","v":0},{"$f":"Z11","v":0},{"$f":"AB11","v":0},{"$f":"IF( AC11<>\"\",AC11,\"\")","v":""}]
[2,null,null,"mm",null,"mm",null,"ks",null,null,null,null,null,null,null,null,null,null,null,null,null,null,null,null,null,null,null,null,null,null,"",0,{"$f":"E12+1-MAX(AA12,0.5)-MAX(AB12,0.5)","v":0},{"$f":" IF($AH$2,\"L\",0)","v":"L"},{"$f":"G12","v":0},{"$f":"Y12","v":0},{"$f":"AA12","v":0},{"$f":"Z12","v":0},{"$f":"AB12","v":0},{"$f":"IF( AC12<>\"\",AC12,\"\")","v":""}]
[3,null,null,"mm",null,"mm",null,"ks",null,null,null,null,null,null,null,null,null,null,null,null,null,null,null,null,null,null,null,null,null,null,"",0,{"$f":"E13+1-MAX(AA13,0.5)-MAX(AB13,0.5)","v":0},{"$f":" IF($AH$2,\"L\",0)","v":"L"},{"$f":"G13","v":0},{"$f":"Y13","v":0},{"$f":"AA13","v":0},{"$f":"Z13","v":0},{"$f":"AB13","v":0},""]
[4,null,null,"mm",null,"mm",null,"ks",null,null,null,null,null,null,null,null,null,null,null,null,null,null,null,null,null,null,null,null,null,null,"",0,0,"L",0,0,0,0,0,""]
[5,null,null,"mm",null,"mm",null,"ks",null,null,null,null,null,null,null,null,null,null,null,null,null,null,null,null,null,null,null,null,null,null,"",0,0,"L",0,0,0,0,0,""]
[6,null,null,"mm",null,"mm",null,"ks",null,null,null,null,null,null,null,null,null,null,null,null,null,null,null,null,null,null,null,null,null,null,"",0,0,"L",0,0,0,0,0,""]
[7,null,null,"mm",null,"mm",null,"ks",null,null,null,null,null,null,null,null,null,null,null,null,null,null,null,null,null,null,null,null,null,null,"",0,0,"L",0,0,0,0,0,""]
[8,null,null,"mm",null,"mm",null,"ks",null,null,null,null,null,null,null,null,null,null,null,null,null,null,null,null,null,null,null,null,null,null,"",0,0,"L",0,0,0,0,0,""]
[9,null,null,"mm",null,"mm",null,"ks",null,null,null,null,null,null,null,null,null,null,null,null,null,null,null,null,null,null,null,null,null,null,"",0,0,"L",0,0,0,0,0,""]
[10,null,null,"mm",null,"mm",null,"ks",null,null,null,null,null,null,null,null,null,null,null,null,null,null,null,null,null,null,null,null,null,null,"",0,0,"L",0,0,0,0,0,""]
[11,null,null,"mm",null,"mm",null,"ks",null,null,null,null,null,null,null,null,null,null,null,null,null,null,null,null,null,null,null,null,null,null,"",0,0,"L",0,0,0,0,0,""]
[12,null,null,"mm",null,"mm",null,"ks",null,null,null,null,null,null,null,null,null,null,null,null,null,null,null,null,null,null,null,null,null,null,"",0,0,"L",0,0,0,0,0,""]
[13,null,null,"mm",null,"mm",null,"ks",null,null,null,null,null,null,null,null,null,null,null,null,null,null,null,null,null,null,null,null,null,null,"",0,0,"L",0,0,0,0,0,""]
[14,null,null,"mm",null,"mm",null,"ks",null,null,null,null,null,null,null,null,null,null,null,null,null,null,null,null,null,null,null,null,null,null,"",0,0,"L",0,0,0,0,0,""]
[15,null,null,"mm",null,"mm",null,"ks",null,null,null,null,null,null,null,null,null,null,null,null,null,null,null,null,null,null,null,null,null,null,"",0,0,"L",0,0,0,0,0,""]
[16,null,null,"mm",null,"mm",null,"ks",null,null,null,null,null,null,null,null,null,null,null,null,null,null,null,null,null,null,null,null,null,null,"",0,0,"L",0,0,0,0,0,""]
[17,null,null,"mm",null,"mm",null,"ks",null,null,null,null,null,null,null,null,null,null,null,null,null,null,null,null,null,null,null,null,null,null,"",0,0,"L",0,0,0,0,0,""]
[18,null,null,"mm",null,"mm",null,"ks",null,null,null,null,null,null,null,null,null,null,null,null,null,null,null,null,null,null,null,null,null,null,"",0,0,"L",0,0,0,0,0,""]
[19,null,null,"mm",null,"mm",null,"ks",null,null,null,null,null,null,null,null,null,null,null,null,null,null,null,null,null,null,null,null,null,null,"",0,0,"L",0,0,0,0,0,""]
[20,null,null,"mm",null,"mm",null,"ks",null,null,null,null,null,null,null,null,null,null,null,null,null,null,null,null,null,null,null,null,null,null,"",0,0,"L",0,0,0,0,0,""]
[21,null,null,"mm",null,"mm",null,"ks",null,null,null,null,null,null,null,null,null,null,null,null,null,null,null,null,null,null,null,null,null,null,"",0,0,"L",0,0,0,0,0,""]
[22,null,null,"mm",null,"mm",null,"ks",null,null,null,null,null,null,null,null,null,null,null,null,null,null,null,null,null,null,null,null,null,null,"",0,0,"L",0,0,0,0,0,""]
[23,null,null,"mm",null,"mm",null,"ks",null,null,null,null,null,null,null,null,null,null,null,null,null,null,null,null,null,null,null,null,null,null,"",0,0,"L",0,0,0,0,0,""]
[24,null,null,"mm",null,"mm",null,"ks",null,null,null,null,null,null,null,null,null,null,null,null,null,null,null,null,null,null,null,null,null,null,"",0,0,"L",0,0,0,0,0,""]
[25,null,null,"mm",null,"mm",null,"ks",null,null,null,null,null,null,null,null,null,null,null,null,null,null,null,null,null,null,null,null,null,null,"",0,0,"L",0,0,0,0,0,""]
[26,null,null,"mm",null,"mm",null,"ks",null,null,null,null,null,null,null,null,null,null,null,null,null,null,null,null,null,null,null,null,null,null,"",0,0,"L",0,0,0,0,0,""]
[27,null,null,"mm",null,"mm",null,"ks",null,null,null,null,null,null,null,null,null,null,null,null,null,null,null,null,null,null,null,null,null,null,"",0,0,"L",0,0,0,0,0,""]
[28,null,null,"mm",null,"mm",null,"ks",null,null,null,null,null,null,null,null,null,null,null,null,null,null,null,null,null,null,null,null,null,null,"",0,0,"L",0,0,0,0,0,""]
[29,null,null,"mm",null,"mm",null,"ks",null,null,null,null,null,null,null,null,null,null,null,null,null,null,null,null,null,null,null,null,null,null,"",0,0,"L",0,0,0,0,0,""]
[30,null,null,"mm",null,"mm",null,"ks",null,null,null,null,null,null,null,null,null,null,null,null,null,null,null,null,null,null,null,null,null,null,"",0,0,"L",0,0,0,0,0,""]
[31,null,null,"mm",null,"mm",null,"ks",null,null,null,null,null,null,null,null,null,null,null,null,null,null,null,null,null,null,null,null,null,null,"",0,0,"L",0,0,0,0,0,""]
[32,null,null,"mm",null,"mm",null,"ks",null,null,null,null,null,null,null,null,null,null,null,null,null,null,null,null,null,null,null,null,null,null,"",0,0,"L",0,0,0,0,0,""]
[33,null,null,"mm",null,"mm",null,"ks",null,null,null,null,null,null,null,null,null,null,null,null,null,null,null,null,null,null,null,null,null,null,{"$f":"IF(B43<>\"\",B43,\"\")","v":""},0,0,"L",0,0,0,0,0,""]
[34,null,null,"mm",null,"mm",null,"ks",null,null,null,null,null,null,null,null,null,null,null,null,null,null,null,null,null,null,null,null,null,null,"",0,0,"L",0,0,0,0,0,""]
[35,null,null,"mm",null,"mm",null,"ks",null,null,null,null,null,null,null,null,null,null,null,null,null,null,null,null,null,null,null,null,null,null,"",0,0,"L",0,0,0,0,0,""]
[36,null,null,"mm",null,"mm",null,"ks",null,null,null,null,null,null,null,null,null,null,null,null,null,null,null,null,null,null,null,null,null,null,"",0,0,"L",0,0,0,0,0,""]
[37,null,null,"mm",null,"mm",null,"ks",null,null,null,null,null,null,null,null,null,null,null,null,null,null,null,null,null,null,null,null,null,null,"",0,0,"L",0,0,0,0,0,""]
[38,null,null,"mm",null,"mm",null,"ks",null,null,null,null,null,null,null,null,null,null,null,null,null,null,null,null,null,null,null,null,null,null,"",0,0,"L",0,0,0,0,0,""]
[39,null,null,"mm",null,"mm",null,"ks",null,null,null,null,null,null,null,null,null,null,null,null,null,null,null,null,null,null,null,null,null,null,"",0,0,"L",0,0,0,0,0,""]
[40,null,null,"mm",null,"mm",null,"ks",null,null,null,null,null,null,null,null,null,null,null,null,null,null,null,null,null,null,null,null,null,null,"",0,0,"L",0,0,0,0,0,""]
[41,null,null,"mm",null,"mm",null,"ks",null,null,null,null,null,null,null,null,null,null,null,null,null,null,null,null,null,null,null,null,null,null,"",0,0,"L",0,0,0,0,0,""]
[42,null,null,"mm",null,"mm",null,"ks",null,null,null,null,null,null,null,null,null,null,null,null,null,null,null,null,null,null,null,null,null,null,"",0,0,"L",0,0,0,0,0,""]
[43,null,null,"mm",null,"mm",null,"ks",null,null,null,null,null,null,null,null,null,null,null,null,null,null,null,null,null,null,null,null,null,null,"",0,0,"L",0,0,0,0,0,""]
[44,null,null,"mm",null,"mm",null,"ks",null,null,null,null,null,null,null,null,null,null,null,null,null,null,null,null,null,null,null,null,null,null,"",0,0,"L",0,0,0,0,0,""]
[45,null,null,"mm",null,"mm",null,"ks",null,null,null,null,null,null,null,null,null,null,null,null,null,null,null,null,null,null,null,null,null,null,"",0,0,"L",0,0,0,0,0,""]
[46,null,null,"mm",null,"mm",null,"ks",null,null,null,null,null,null,null,null,null,null,null,null,null,null,null,null,null,null,null,null,null,null,"",0,0,"L",0,0,0,0,0,""]
[47,null,null,"mm",null,"mm",null,"ks",null,null,null,null,null,null,null,null,null,null,null,null,null,null,null,null,null,null,null,null,null,null,"",0,0,"L",0,0,0,0,0,""]
[48,null,null,"mm",null,"mm",null,"ks",null,null,null,null,null,null,null,null,null,null,null,null,null,null,null,null,null,null,null,null,null,null,"",0,0,"L",0,0,0,0,0,""]
[49,null,null,"mm",null,"mm",null,"ks",null,null,null,null,null,null,null,null,null,null,null,null,null,null,null,null,null,null,null,null,null,null,"",0,0,"L",0,0,0,0,0,""]
[50,null,null,"mm",null,"mm",null,"ks",null,null,null,null,null,null,null,null,null,null,null,null,null,null,null,null,null,null,null,null,null,null,"",0,0,"L",0,0,0,0,0,""]
[51,null,null,"mm",null,"mm",null,"ks",null,null,null,null,null,null,null,null,null,null,null,null,null,null,null,null,null,null,null,null,null,null,"",0,0,"L",0,0,0,0,0,""]
[52,null,null,"mm",null,"mm",null,"ks",null,null,null,null,null,null,null,null,null,null,null,null,null,null,null,null,null,null,null,null,null,null,"",0,0,"L",0,0,0,0,0,""]
[53,null,null,"mm",null,"mm",null,"ks",null,null,null,null,null,null,null,null,null,null,null,null,null,null,null,null,null,null,null,null,null,null,"",0,0,"L",0,0,0,0,0,""]
[54,null,null,"mm",null,"mm",null,"ks",null,null,null,null,null,null,null,null,null,null,null,null,null,null,null,null,null,null,null,null,null,null,"",0,0,"L",0,0,0,0,0,""]
[55,null,null,"mm",null,"mm",null,"ks",null,null,null,null,null,null,null,null,null,null,null,null,null,null,null,null,null,null,null,null,null,null,"",0,0,"L",0,0,0,0,0,""]
[56,null,null,"mm",null,"mm",null,"ks",null,null,null,null,null,null,null,null,null,null,null,null,null,null,null,null,null,null,null,null,null,null,"",0,0,"L",0,0,0,0,0,""]
[57,null,null,"mm",null,"mm",null,"ks",null,null,null,null,null,null,null,null,null,null,null,null,null,null,null,null,null,null,null,null,null,null,"",0,0,"L",0,0,0,0,0,""]
[58,null,null,"mm",null,"mm",null,"ks",null,null,null,null,null,null,null,null,null,null,null,null,null,null,null,null,null,null,null,null,null,null,"",0,0,"L",0,0,0,0,0,""]
[59,null,null,"mm",null,"mm",null,"ks",null,null,null,null,null,null,null,null,null,null,null,null,null,null,null,null,null,null,null,null,null,null,"",0,0,"L",0,0,0,0,0,""]
[60,null,null,"mm",null,"mm",null,"ks",null,null,null,null,null,null,null,null,null,null,null,null,null,null,null,null,null,null,null,null,null,null,"",0,0,"L",0,0,0,0,0,""]
[61,null,null,"mm",null,"mm",null,"ks",null,null,null,null,null,null,null,null,null,null,null,null,null,null,null,null,null,null,null,null,null,null,"",0,0,"L",0,0,0,0,0,""]
[62,null,null,"mm",null,"mm",null,"ks",null,null,null,null,null,null,null,null,null,null,null,null,null,null,null,null,null,null,null,null,null,null,"",0,0,"L",0,0,0,0,0,""]
[63,null,null,"mm",null,"mm",null,"ks",null,null,null,null,null,null,null,null,null,null,null,null,null,null,null,null,null,null,null,null,null,null,"",0,0,"L",0,0,0,0,0,""]
[64,null,null,"mm",null,"mm",null,"ks",null,null,null,null,null,null,null,null,null,null,null,null,null,null,null,null,null,null,null,null,null,null,"",0,0,"L",0,0,0,0,0,""]
[65,null,null,"mm",null,"mm",null,"ks",null,null,null,null,null,null,null,null,null,null,null,null,null,null,null,null,null,null,null,null,null,null,{"$f":"IF(B75<>\"\",B75,\"\")","v":""},{"$f":"C75+1-MAX(Y75,0.5)-MAX(Z75,0.5)","v":0},0,"L",0,0,0,0,0,""]
[66,null,null,"mm",null,"mm",null,"ks",null,null,null,null,null,null,null,null,null,null,null,null,null,null,null,null,null,null,null,null,null,null,"",0,0,"L",0,0,0,0,0,{"$f":"IF( AC76<>\"\",AC76,\"\")","v":""}]
[67,null,null,"mm",null,"mm",null,"ks",null,null,null,null,null,null,null,null,null,null,null,null,null,null,null,null,null,null,null,null,null,null,"",0,{"$f":"E77+1-MAX(AA77,0.5)-MAX(AB77,0.5)","v":0},{"$f":" IF($AH$2,\"L\",0)","v":"L"},{"$f":"G77","v":0},{"$f":"Y77","v":0},{"$f":"AA77","v":0},{"$f":"Z77","v":0},{"$f":"AB77","v":0},""]
[68,null,null,"mm",null,"mm",null,"ks",null,null,null,null,null,null,null,null,null,null,null,null,null,null,null,null,null,null,null,null,null,null,"",0,0,"L",0,0,0,0,0,""]
[69,null,null,"mm",null,"mm",null,"ks",null,null,null,null,null,null,null,null,null,null,null,null,null,null,null,null,null,null,null,null,null,null,"",0,0,"L",0,0,0,0,0,""]
[70,null,null,"mm",null,"mm",null,"ks",null,null,null,null,null,null,null,null,null,null,null,null,null,null,null,null,null,null,null,null,null,null,"",0,0,"L",0,0,0,0,0,""]
[71,null,null,"mm",null,"mm",null,"ks",null,null,null,null,null,null,null,null,null,null,null,null,null,null,null,null,null,null,null,null,null,null,"",0,0,"L",0,0,0,0,0,""]
[72,null,null,"mm",null,"mm",null,"ks",null,null,null,null,null,null,null,null,null,null,null,null,null,null,null,null,null,null,null,null,null,null,"",0,0,"L",0,0,0,0,0,""]
[73,null,null,"mm",null,"mm",null,"ks",null,null,null,null,null,null,null,null,null,null,null,null,null,null,null,null,null,null,null,null,null,null,"",0,0,"L",0,0,0,0,0,""]
[74,null,null,"mm",null,"mm",null,"ks",null,null,null,null,null,null,null,null,null,null,null,null,null,null,null,null,null,null,null,null,null,null,"",0,0,"L",0,0,0,0,0,""]
[75,null,null,"mm",null,"mm",null,"ks",null,null,null,null,null,null,null,null,null,null,null,null,null,null,null,null,null,null,null,null,null,null,"",0,0,"L",0,0,0,0,0,""]
[76,null,null,"mm",null,"mm",null,"ks",null,null,null,null,null,null,null,null,null,null,null,null,null,null,null,null,null,null,null,null,null,null,"",0,0,"L",0,0,0,0,0,""]
[77,null,null,"mm",null,"mm",null,"ks",null,null,null,null,null,null,null,null,null,null,null,null,null,null,null,null,null,null,null,null,null,null,"",0,0,"L",0,0,0,0,0,""]
[78,null,null,"mm",null,"mm",null,"ks",null,null,null,null,null,null,null,null,null,null,null,null,null,null,null,null,null,null,null,null,null,null,"",0,0,"L",0,0,0,0,0,""]
[79,null,null,"mm",null,"mm",null,"ks",null,null,null,null,null,null,null,null,null,null,null,null,null,null,null,null,null,null,null,null,null,null,"",0,0,"L",0,0,0,0,0,""]
[80,null,null,"mm",null,"mm",null,"ks",null,null,null,null,null,null,null,null,null,null,null,null,null,null,null,null,null,null,null,null,null,null,"",0,0,"L",0,0,0,0,0,""]
[81,null,null,"mm",null,"mm",null,"ks",null,null,null,null,null,null,null,null,null,null,null,null,null,null,null,null,null,null,null,null,null,null,"",0,0,"L",0,0,0,0,0,""]
[82,null,null,"mm",null,"mm",null,"ks",null,null,null,null,null,null,null,null,null,null,null,null,null,null,null,null,null,null,null,null,null,null,"",0,0,"L",0,0,0,0,0,""]
[83,null,null,"mm",null,"mm",null,"ks",null,null,null,null,null,null,null,null,null,null,null,null,null,null,null,null,null,null,null,null,null,null,"",0,0,"L",0,0,0,0,0,""]
[84,null,null,"mm",null,"mm",null,"ks",null,null,null,null,null,null,null,null,null,null,null,null,null,null,null,null,null,null,null,null,null,null,"",0,0,"L",0,0,0,0,0,""]
[85,null,null,"mm",null,"mm",null,"ks",null,null,null,null,null,null,null,null,null,null,null,null,null,null,null,null,null,null,null,null,null,null,"",0,0,"L",0,0,0,0,0,""]
[86,null,null,"mm",null,"mm",null,"ks",null,null,null,null,null,null,null,null,null,null,null,null,null,null,null,null,null,null,null,null,null,null,"",0,0,"L",0,0,0,0,0,""]
[87,null,null,"mm",null,"mm",null,"ks",null,null,null,null,null,null,null,null,null,null,null,null,null,null,null,null,null,null,null,null,null,null,"",0,0,"L",0,0,0,0,0,""]
[88,null,null,"mm",null,"mm",null,"ks",null,null,null,null,null,null,null,null,null,null,null,null,null,null,null,null,null,null,null,null,null,null,"",0,0,"L",0,0,0,0,0,""]
[89,null,null,"mm",null,"mm",null,"ks",null,null,null,null,null,null,null,null,null,null,null,null,null,null,null,null,null,null,null,null,null,null,"",0,0,"L",0,0,0,0,0,""]
[90,null,null,"mm",null,"mm",null,"ks",null,null,null,null,null,null,null,null,null,null,null,null,null,null,null,null,null,null,null,null,null,null,"",0,0,"L",0,0,0,0,0,""]
[91,null,null,"mm",null,"mm",null,"ks",null,null,null,null,null,null,null,null,null,null,null,null,null,null,null,null,null,null,null,null,null,null,"",0,0,"L",0,0,0,0,0,""]
[92,null,null,"mm",null,"mm",null,"ks",null,null,null,null,null,null,null,null,null,null,null,null,null,null,null,null,null,null,null,null,null,null,"",0,0,"L",0,0,0,0,0,""]
[93,null,null,"mm",null,"mm",null,"ks",null,null,null,null,null,null,null,null,null,null,null,null,null,null,null,null,null,null,null,null,null,null,"",0,0,"L",0,0,0,0,0,""]
[94,null,null,"mm",null,"mm",null,"ks",null,null,null,null,null,null,null,null,null,null,null,null,null,null,null,null,null,null,null,null,null,null,"",0,0,"L",0,0,0,0,0,""]
[95,null,null,"mm",null,"mm",null,"ks",null,null,null,null,null,null,null,null,null,null,null,null,null,null,null,null,null,null,null,null,null,null,"",0,0,"L",0,0,0,0,0,""]
[96,null,null,"mm",null,"mm",null,"ks",null,null,null,null,null,null,null,null,null,null,null,null,null,null,null,null,null,null,null,null,null,null,"",0,0,"L",0,0,0,0,0,""]
[97,null,null,"mm",null,"mm",null,"ks",null,null,null,null,null,null,null,null,null,null,null,null,null,null,null,null,null,null,null,null,null,null,"",0,0,"L",0,0,0,0,0,""]
[98,null,null,"mm",null,"mm",null,"ks",null,null,null,null,null,null,null,null,null,null,null,null,null,null,null,null,null,null,null,null,null,null,"",0,0,"L",0,0,0,0,0,""]
[99,null,null,"mm",null,"mm",null,"ks",null,null,null,null,null,null,null,null,null,null,null,null,null,null,null,null,null,null,null,null,null,null,"",0,0,"L",0,0,0,0,0,""]
[100,null,null,"mm",null,"mm",null,"ks",null,null,null,null,null,null,null,null,null,null,null,null,null,null,null,null,null,null,null,null,null,null,"",0,0,"L",0,0,0,0,0,""]

{"sheet":"List 7","index":7,"n_rows":110,"n_cols":40,"rows_kept":110,"cut":false,"hidden":false,"merged":[[9,8,9,15],[9,16,9,23],[9,24,9,27],[7,16,7,19],[7,20,7,23],[7,24,7,27],[7,28,8,28],[8,2,8,3],[8,4,8,5],[8,6,8,7],[7,1,8,1],[7,2,7,3],[7,4,7,5],[7,6,7,7],[7,8,7,11],[7,12,7,15],[1,1,1,2],[1,4,1,10],[1,12,1,16],[2,1,2,2],[2,4,2,10],[2,12,2,16]]}
[]
[null,"Název materiálu:",null,null,"Tloušťka materiálu:",null,null,null,null,null,null,null,"Kód Demos trade:",null,null,null,null,null,null,null,null,null,null,null,null,null,null,null,null,null,null,null,"Struktura:",true]
[null,null,null,null,null,null,null,null,null,null,null,null,null,null,null,null,null,null,null,null,null,null,null,null,null,null,null,null,null,null,null,null,"Bez struk:",false]
[]
[null,null,null,null,null,null,null,null,null,null,null,null,null,null,null,null,null,null,null,null,null,null,null,null,null,null,null,null,null,null,"Souhrn:"]
[null,null,null,null,null,null,null,null,null,null,null,null,null,null,null,null,null,null,null,null,null,null,null,null,null,null,null,null,null,null,"Položek","Délka ABS","Šířka ABS","ABS celkem","Kusy","Obsah"]
[null,null,null,null,null,null,null,null,null,null,null,null,null,null,null,null,null,null,null,null,null,null,null,null,null,null,null,null,null,null,{"$f":"100-COUNTBLANK(AE11:AE110)","v":0},{"$f":"SUM(C11:C110*AI11:AI110)*(IF(AJ11:AJ110>0,1,0)+IF(AL11:AL110>0,1,0))/1000","v":0},{"$f":"SUM(E11:E110*AI11:AI110)*(IF(AK11:AK110>0,1,0)+IF(AM11:AM110>0,1,0))/1000","v":0},{"$f":"AF7+AG7","v":0},{"$f":"SUM(AI11:AI110)","v":0},{"$f":"SUM(C11:C110*E11:E110*G11:G110)/1000/1000","v":0}]
[null,"název dílce:","x = délka:",null,"y = šířka:",null,"počet",null,"tloušťka ABS",null,null,null,"tloušťka ABS",null,null,null,"tloušťka ABS",null,null,null,"tloušťka ABS",null,null,null,"síla hrany v mm:",null,null,null,"poznámka"]
[null,null,"(po létech)",null,"(napříč létům)",null,"kusů:",null,0,0.5,1,2,0,0.5,1,2,0,0.5,1,2,0,0.5,1,2,"x","x","y","y",null,null,"Název","Délka","Šířka","Směr řezu","Počet","ABS 1","ABS 2","ABS 3","ABS 4","Poznámka"]
[null,null,"zadat",null,"zadat",null,"zadat",null,"označení pravým tlačítkem nebo lib.znak",null,null,null,null,null,null,null,"označení pravým tlačítkem nebo lib.znak",null,null,null,null,null,null,null,"kontrola nebo zadat"]
[1,null,null,"mm",null,"mm",null,"ks",null,null,null,null,null,null,null,null,null,null,null,null,null,null,null,null,null,null,null,null,null,null,{"$f":"IF(B11<>\"\",B11,\"\")","v":""},{"$f":"C11+1-MAX(Y11,0.5)-MAX(Z11,0.5)","v":0},{"$f":"E11+1-MAX(AA11,0.5)-MAX(AB11,0.5)","v":0},{"$f":" IF($AH$2,\"L\",0)","v":"L"},{"$f":"G11","v":0},{"$f":"Y11","v":0},{"$f":"AA11","v":0},{"$f":"Z11","v":0},{"$f":"AB11","v":0},{"$f":"IF( AC11<>\"\",AC11,\"\")","v":""}]
[2,null,null,"mm",null,"mm",null,"ks",null,null,null,null,null,null,null,null,null,null,null,null,null,null,null,null,null,null,null,null,null,null,"",0,{"$f":"E12+1-MAX(AA12,0.5)-MAX(AB12,0.5)","v":0},{"$f":" IF($AH$2,\"L\",0)","v":"L"},{"$f":"G12","v":0},{"$f":"Y12","v":0},{"$f":"AA12","v":0},{"$f":"Z12","v":0},{"$f":"AB12","v":0},{"$f":"IF( AC12<>\"\",AC12,\"\")","v":""}]
[3,null,null,"mm",null,"mm",null,"ks",null,null,null,null,null,null,null,null,null,null,null,null,null,null,null,null,null,null,null,null,null,null,"",0,{"$f":"E13+1-MAX(AA13,0.5)-MAX(AB13,0.5)","v":0},{"$f":" IF($AH$2,\"L\",0)","v":"L"},{"$f":"G13","v":0},{"$f":"Y13","v":0},{"$f":"AA13","v":0},{"$f":"Z13","v":0},{"$f":"AB13","v":0},""]
[4,null,null,"mm",null,"mm",null,"ks",null,null,null,null,null,null,null,null,null,null,null,null,null,null,null,null,null,null,null,null,null,null,"",0,0,"L",0,0,0,0,0,""]
[5,null,null,"mm",null,"mm",null,"ks",null,null,null,null,null,null,null,null,null,null,null,null,null,null,null,null,null,null,null,null,null,null,"",0,0,"L",0,0,0,0,0,""]
[6,null,null,"mm",null,"mm",null,"ks",null,null,null,null,null,null,null,null,null,null,null,null,null,null,null,null,null,null,null,null,null,null,"",0,0,"L",0,0,0,0,0,""]
[7,null,null,"mm",null,"mm",null,"ks",null,null,null,null,null,null,null,null,null,null,null,null,null,null,null,null,null,null,null,null,null,null,"",0,0,"L",0,0,0,0,0,""]
[8,null,null,"mm",null,"mm",null,"ks",null,null,null,null,null,null,null,null,null,null,null,null,null,null,null,null,null,null,null,null,null,null,"",0,0,"L",0,0,0,0,0,""]
[9,null,null,"mm",null,"mm",null,"ks",null,null,null,null,null,null,null,null,null,null,null,null,null,null,null,null,null,null,null,null,null,null,"",0,0,"L",0,0,0,0,0,""]
[10,null,null,"mm",null,"mm",null,"ks",null,null,null,null,null,null,null,null,null,null,null,null,null,null,null,null,null,null,null,null,null,null,"",0,0,"L",0,0,0,0,0,""]
[11,null,null,"mm",null,"mm",null,"ks",null,null,null,null,null,null,null,null,null,null,null,null,null,null,null,null,null,null,null,null,null,null,"",0,0,"L",0,0,0,0,0,""]
[12,null,null,"mm",null,"mm",null,"ks",null,null,null,null,null,null,null,null,null,null,null,null,null,null,null,null,null,null,null,null,null,null,"",0,0,"L",0,0,0,0,0,""]
[13,null,null,"mm",null,"mm",null,"ks",null,null,null,null,null,null,null,null,null,null,null,null,null,null,null,null,null,null,null,null,null,null,"",0,0,"L",0,0,0,0,0,""]
[14,null,null,"mm",null,"mm",null,"ks",null,null,null,null,null,null,null,null,null,null,null,null,null,null,null,null,null,null,null,null,null,null,"",0,0,"L",0,0,0,0,0,""]
[15,null,null,"mm",null,"mm",null,"ks",null,null,null,null,null,null,null,null,null,null,null,null,null,null,null,null,null,null,null,null,null,null,"",0,0,"L",0,0,0,0,0,""]
[16,null,null,"mm",null,"mm",null,"ks",null,null,null,null,null,null,null,null,null,null,null,null,null,null,null,null,null,null,null,null,null,null,"",0,0,"L",0,0,0,0,0,""]
[17,null,null,"mm",null,"mm",null,"ks",null,null,null,null,null,null,null,null,null,null,null,null,null,null,null,null,null,null,null,null,null,null,"",0,0,"L",0,0,0,0,0,""]
[18,null,null,"mm",null,"mm",null,"ks",null,null,null,null,null,null,null,null,null,null,null,null,null,null,null,null,null,null,null,null,null,null,"",0,0,"L",0,0,0,0,0,""]
[19,null,null,"mm",null,"mm",null,"ks",null,null,null,null,null,null,null,null,null,null,null,null,null,null,null,null,null,null,null,null,null,null,"",0,0,"L",0,0,0,0,0,""]
[20,null,null,"mm",null,"mm",null,"ks",null,null,null,null,null,null,null,null,null,null,null,null,null,null,null,null,null,null,null,null,null,null,"",0,0,"L",0,0,0,0,0,""]
[21,null,null,"mm",null,"mm",null,"ks",null,null,null,null,null,null,null,null,null,null,null,null,null,null,null,null,null,null,null,null,null,null,"",0,0,"L",0,0,0,0,0,""]
[22,null,null,"mm",null,"mm",null,"ks",null,null,null,null,null,null,null,null,null,null,null,null,null,null,null,null,null,null,null,null,null,null,"",0,0,"L",0,0,0,0,0,""]
[23,null,null,"mm",null,"mm",null,"ks",null,null,null,null,null,null,null,null,null,null,null,null,null,null,null,null,null,null,null,null,null,null,"",0,0,"L",0,0,0,0,0,""]
[24,null,null,"mm",null,"mm",null,"ks",null,null,null,null,null,null,null,null,null,null,null,null,null,null,null,null,null,null,null,null,null,null,"",0,0,"L",0,0,0,0,0,""]
[25,null,null,"mm",null,"mm",null,"ks",null,null,null,null,null,null,null,null,null,null,null,null,null,null,null,null,null,null,null,null,null,null,"",0,0,"L",0,0,0,0,0,""]
[26,null,null,"mm",null,"mm",null,"ks",null,null,null,null,null,null,null,null,null,null,null,null,null,null,null,null,null,null,null,null,null,null,"",0,0,"L",0,0,0,0,0,""]
[27,null,null,"mm",null,"mm",null,"ks",null,null,null,null,null,null,null,null,null,null,null,null,null,null,null,null,null,null,null,null,null,null,"",0,0,"L",0,0,0,0,0,""]
[28,null,null,"mm",null,"mm",null,"ks",null,null,null,null,null,null,null,null,null,null,null,null,null,null,null,null,null,null,null,null,null,null,"",0,0,"L",0,0,0,0,0,""]
[29,null,null,"mm",null,"mm",null,"ks",null,null,null,null,null,null,null,null,null,null,null,null,null,null,null,null,null,null,null,null,null,null,"",0,0,"L",0,0,0,0,0,""]
[30,null,null,"mm",null,"mm",null,"ks",null,null,null,null,null,null,null,null,null,null,null,null,null,null,null,null,null,null,null,null,null,null,"",0,0,"L",0,0,0,0,0,""]
[31,null,null,"mm",null,"mm",null,"ks",null,null,null,null,null,null,null,null,null,null,null,null,null,null,null,null,null,null,null,null,null,null,"",0,0,"L",0,0,0,0,0,""]
[32,null,null,"mm",null,"mm",null,"ks",null,null,null,null,null,null,null,null,null,null,null,null,null,null,null,null,null,null,null,null,null,null,"",0,0,"L",0,0,0,0,0,""]
[33,null,null,"mm",null,"mm",null,"ks",null,null,null,null,null,null,null,null,null,null,null,null,null,null,null,null,null,null,null,null,null,null,{"$f":"IF(B43<>\"\",B43,\"\")","v":""},0,0,"L",0,0,0,0,0,""]
[34,null,null,"mm",null,"mm",null,"ks",null,null,null,null,null,null,null,null,null,null,null,null,null,null,null,null,null,null,null,null,null,null,"",0,0,"L",0,0,0,0,0,""]
[35,null,null,"mm",null,"mm",null,"ks",null,null,null,null,null,null,null,null,null,null,null,null,null,null,null,null,null,null,null,null,null,null,"",0,0,"L",0,0,0,0,0,""]
[36,null,null,"mm",null,"mm",null,"ks",null,null,null,null,null,null,null,null,null,null,null,null,null,null,null,null,null,null,null,null,null,null,"",0,0,"L",0,0,0,0,0,""]
[37,null,null,"mm",null,"mm",null,"ks",null,null,null,null,null,null,null,null,null,null,null,null,null,null,null,null,null,null,null,null,null,null,"",0,0,"L",0,0,0,0,0,""]
[38,null,null,"mm",null,"mm",null,"ks",null,null,null,null,null,null,null,null,null,null,null,null,null,null,null,null,null,null,null,null,null,null,"",0,0,"L",0,0,0,0,0,""]
[39,null,null,"mm",null,"mm",null,"ks",null,null,null,null,null,null,null,null,null,null,null,null,null,null,null,null,null,null,null,null,null,null,"",0,0,"L",0,0,0,0,0,""]
[40,null,null,"mm",null,"mm",null,"ks",null,null,null,null,null,null,null,null,null,null,null,null,null,null,null,null,null,null,null,null,null,null,"",0,0,"L",0,0,0,0,0,""]
[41,null,null,"mm",null,"mm",null,"ks",null,null,null,null,null,null,null,null,null,null,null,null,null,null,null,null,null,null,null,null,null,null,"",0,0,"L",0,0,0,0,0,""]
[42,null,null,"mm",null,"mm",null,"ks",null,null,null,null,null,null,null,null,null,null,null,null,null,null,null,null,null,null,null,null,null,null,"",0,0,"L",0,0,0,0,0,""]
[43,null,null,"mm",null,"mm",null,"ks",null,null,null,null,null,null,null,null,null,null,null,null,null,null,null,null,null,null,null,null,null,null,"",0,0,"L",0,0,0,0,0,""]
[44,null,null,"mm",null,"mm",null,"ks",null,null,null,null,null,null,null,null,null,null,null,null,null,null,null,null,null,null,null,null,null,null,"",0,0,"L",0,0,0,0,0,""]
[45,null,null,"mm",null,"mm",null,"ks",null,null,null,null,null,null,null,null,null,null,null,null,null,null,null,null,null,null,null,null,null,null,"",0,0,"L",0,0,0,0,0,""]
[46,null,null,"mm",null,"mm",null,"ks",null,null,null,null,null,null,null,null,null,null,null,null,null,null,null,null,null,null,null,null,null,null,"",0,0,"L",0,0,0,0,0,""]
[47,null,null,"mm",null,"mm",null,"ks",null,null,null,null,null,null,null,null,null,null,null,null,null,null,null,null,null,null,null,null,null,null,"",0,0,"L",0,0,0,0,0,""]
[48,null,null,"mm",null,"mm",null,"ks",null,null,null,null,null,null,null,null,null,null,null,null,null,null,null,null,null,null,null,null,null,null,"",0,0,"L",0,0,0,0,0,""]
[49,null,null,"mm",null,"mm",null,"ks",null,null,null,null,null,null,null,null,null,null,null,null,null,null,null,null,null,null,null,null,null,null,"",0,0,"L",0,0,0,0,0,""]
[50,null,null,"mm",null,"mm",null,"ks",null,null,null,null,null,null,null,null,null,null,null,null,null,null,null,null,null,null,null,null,null,null,"",0,0,"L",0,0,0,0,0,""]
[51,null,null,"mm",null,"mm",null,"ks",null,null,null,null,null,null,null,null,null,null,null,null,null,null,null,null,null,null,null,null,null,null,"",0,0,"L",0,0,0,0,0,""]
[52,null,null,"mm",null,"mm",null,"ks",null,null,null,null,null,null,null,null,null,null,null,null,null,null,null,null,null,null,null,null,null,null,"",0,0,"L",0,0,0,0,0,""]
[53,null,null,"mm",null,"mm",null,"ks",null,null,null,null,null,null,null,null,null,null,null,null,null,null,null,null,null,null,null,null,null,null,"",0,0,"L",0,0,0,0,0,""]
[54,null,null,"mm",null,"mm",null,"ks",null,null,null,null,null,null,null,null,null,null,null,null,null,null,null,null,null,null,null,null,null,null,"",0,0,"L",0,0,0,0,0,""]
[55,null,null,"mm",null,"mm",null,"ks",null,null,null,null,null,null,null,null,null,null,null,null,null,null,null,null,null,null,null,null,null,null,"",0,0,"L",0,0,0,0,0,""]
[56,null,null,"mm",null,"mm",null,"ks",null,null,null,null,null,null,null,null,null,null,null,null,null,null,null,null,null,null,null,null,null,null,"",0,0,"L",0,0,0,0,0,""]
[57,null,null,"mm",null,"mm",null,"ks",null,null,null,null,null,null,null,null,null,null,null,null,null,null,null,null,null,null,null,null,null,null,"",0,0,"L",0,0,0,0,0,""]
[58,null,null,"mm",null,"mm",null,"ks",null,null,null,null,null,null,null,null,null,null,null,null,null,null,null,null,null,null,null,null,null,null,"",0,0,"L",0,0,0,0,0,""]
[59,null,null,"mm",null,"mm",null,"ks",null,null,null,null,null,null,null,null,null,null,null,null,null,null,null,null,null,null,null,null,null,null,"",0,0,"L",0,0,0,0,0,""]
[60,null,null,"mm",null,"mm",null,"ks",null,null,null,null,null,null,null,null,null,null,null,null,null,null,null,null,null,null,null,null,null,null,"",0,0,"L",0,0,0,0,0,""]
[61,null,null,"mm",null,"mm",null,"ks",null,null,null,null,null,null,null,null,null,null,null,null,null,null,null,null,null,null,null,null,null,null,"",0,0,"L",0,0,0,0,0,""]
[62,null,null,"mm",null,"mm",null,"ks",null,null,null,null,null,null,null,null,null,null,null,null,null,null,null,null,null,null,null,null,null,null,"",0,0,"L",0,0,0,0,0,""]
[63,null,null,"mm",null,"mm",null,"ks",null,null,null,null,null,null,null,null,null,null,null,null,null,null,null,null,null,null,null,null,null,null,"",0,0,"L",0,0,0,0,0,""]
[64,null,null,"mm",null,"mm",null,"ks",null,null,null,null,null,null,null,null,null,null,null,null,null,null,null,null,null,null,null,null,null,null,"",0,0,"L",0,0,0,0,0,""]
[65,null,null,"mm",null,"mm",null,"ks",null,null,null,null,null,null,null,null,null,null,null,null,null,null,null,null,null,null,null,null,null,null,{"$f":"IF(B75<>\"\",B75,\"\")","v":""},{"$f":"C75+1-MAX(Y75,0.5)-MAX(Z75,0.5)","v":0},0,"L",0,0,0,0,0,""]
[66,null,null,"mm",null,"mm",null,"ks",null,null,null,null,null,null,null,null,null,null,null,null,null,null,null,null,null,null,null,null,null,null,"",0,0,"L",0,0,0,0,0,{"$f":"IF( AC76<>\"\",AC76,\"\")","v":""}]
[67,null,null,"mm",null,"mm",null,"ks",null,null,null,null,null,null,null,null,null,null,null,null,null,null,null,null,null,null,null,null,null,null,"",0,{"$f":"E77+1-MAX(AA77,0.5)-MAX(AB77,0.5)","v":0},{"$f":" IF($AH$2,\"L\",0)","v":"L"},{"$f":"G77","v":0},{"$f":"Y77","v":0},{"$f":"AA77","v":0},{"$f":"Z77","v":0},{"$f":"AB77","v":0},""]
[68,null,null,"mm",null,"mm",null,"ks",null,null,null,null,null,null,null,null,null,null,null,null,null,null,null,null,null,null,null,null,null,null,"",0,0,"L",0,0,0,0,0,""]
[69,null,null,"mm",null,"mm",null,"ks",null,null,null,null,null,null,null,null,null,null,null,null,null,null,null,null,null,null,null,null,null,null,"",0,0,"L",0,0,0,0,0,""]
[70,null,null,"mm",null,"mm",null,"ks",null,null,null,null,null,null,null,null,null,null,null,null,null,null,null,null,null,null,null,null,null,null,"",0,0,"L",0,0,0,0,0,""]
[71,null,null,"mm",null,"mm",null,"ks",null,null,null,null,null,null,null,null,null,null,null,null,null,null,null,null,null,null,null,null,null,null,"",0,0,"L",0,0,0,0,0,""]
[72,null,null,"mm",null,"mm",null,"ks",null,null,null,null,null,null,null,null,null,null,null,null,null,null,null,null,null,null,null,null,null,null,"",0,0,"L",0,0,0,0,0,""]
[73,null,null,"mm",null,"mm",null,"ks",null,null,null,null,null,null,null,null,null,null,null,null,null,null,null,null,null,null,null,null,null,null,"",0,0,"L",0,0,0,0,0,""]
[74,null,null,"mm",null,"mm",null,"ks",null,null,null,null,null,null,null,null,null,null,null,null,null,null,null,null,null,null,null,null,null,null,"",0,0,"L",0,0,0,0,0,""]
[75,null,null,"mm",null,"mm",null,"ks",null,null,null,null,null,null,null,null,null,null,null,null,null,null,null,null,null,null,null,null,null,null,"",0,0,"L",0,0,0,0,0,""]
[76,null,null,"mm",null,"mm",null,"ks",null,null,null,null,null,null,null,null,null,null,null,null,null,null,null,null,null,null,null,null,null,null,"",0,0,"L",0,0,0,0,0,""]
[77,null,null,"mm",null,"mm",null,"ks",null,null,null,null,null,null,null,null,null,null,null,null,null,null,null,null,null,null,null,null,null,null,"",0,0,"L",0,0,0,0,0,""]
[78,null,null,"mm",null,"mm",null,"ks",null,null,null,null,null,null,null,null,null,null,null,null,null,null,null,null,null,null,null,null,null,null,"",0,0,"L",0,0,0,0,0,""]
[79,null,null,"mm",null,"mm",null,"ks",null,null,null,null,null,null,null,null,null,null,null,null,null,null,null,null,null,null,null,null,null,null,"",0,0,"L",0,0,0,0,0,""]
[80,null,null,"mm",null,"mm",null,"ks",null,null,null,null,null,null,null,null,null,null,null,null,null,null,null,null,null,null,null,null,null,null,"",0,0,"L",0,0,0,0,0,""]
[81,null,null,"mm",null,"mm",null,"ks",null,null,null,null,null,null,null,null,null,null,null,null,null,null,null,null,null,null,null,null,null,null,"",0,0,"L",0,0,0,0,0,""]
[82,null,null,"mm",null,"mm",null,"ks",null,null,null,null,null,null,null,null,null,null,null,null,null,null,null,null,null,null,null,null,null,null,"",0,0,"L",0,0,0,0,0,""]
[83,null,null,"mm",null,"mm",null,"ks",null,null,null,null,null,null,null,null,null,null,null,null,null,null,null,null,null,null,null,null,null,null,"",0,0,"L",0,0,0,0,0,""]
[84,null,null,"mm",null,"mm",null,"ks",null,null,null,null,null,null,null,null,null,null,null,null,null,null,null,null,null,null,null,null,null,null,"",0,0,"L",0,0,0,0,0,""]
[85,null,null,"mm",null,"mm",null,"ks",null,null,null,null,null,null,null,null,null,null,null,null,null,null,null,null,null,null,null,null,null,null,"",0,0,"L",0,0,0,0,0,""]
[86,null,null,"mm",null,"mm",null,"ks",null,null,null,null,null,null,null,null,null,null,null,null,null,null,null,null,null,null,null,null,null,null,"",0,0,"L",0,0,0,0,0,""]
[87,null,null,"mm",null,"mm",null,"ks",null,null,null,null,null,null,null,null,null,null,null,null,null,null,null,null,null,null,null,null,null,null,"",0,0,"L",0,0,0,0,0,""]
[88,null,null,"mm",null,"mm",null,"ks",null,null,null,null,null,null,null,null,null,null,null,null,null,null,null,null,null,null,null,null,null,null,"",0,0,"L",0,0,0,0,0,""]
[89,null,null,"mm",null,"mm",null,"ks",null,null,null,null,null,null,null,null,null,null,null,null,null,null,null,null,null,null,null,null,null,null,"",0,0,"L",0,0,0,0,0,""]
[90,null,null,"mm",null,"mm",null,"ks",null,null,null,null,null,null,null,null,null,null,null,null,null,null,null,null,null,null,null,null,null,null,"",0,0,"L",0,0,0,0,0,""]
[91,null,null,"mm",null,"mm",null,"ks",null,null,null,null,null,null,null,null,null,null,null,null,null,null,null,null,null,null,null,null,null,null,"",0,0,"L",0,0,0,0,0,""]
[92,null,null,"mm",null,"mm",null,"ks",null,null,null,null,null,null,null,null,null,null,null,null,null,null,null,null,null,null,null,null,null,null,"",0,0,"L",0,0,0,0,0,""]
[93,null,null,"mm",null,"mm",null,"ks",null,null,null,null,null,null,null,null,null,null,null,null,null,null,null,null,null,null,null,null,null,null,"",0,0,"L",0,0,0,0,0,""]
[94,null,null,"mm",null,"mm",null,"ks",null,null,null,null,null,null,null,null,null,null,null,null,null,null,null,null,null,null,null,null,null,null,"",0,0,"L",0,0,0,0,0,""]
[95,null,null,"mm",null,"mm",null,"ks",null,null,null,null,null,null,null,null,null,null,null,null,null,null,null,null,null,null,null,null,null,null,"",0,0,"L",0,0,0,0,0,""]
[96,null,null,"mm",null,"mm",null,"ks",null,null,null,null,null,null,null,null,null,null,null,null,null,null,null,null,null,null,null,null,null,null,"",0,0,"L",0,0,0,0,0,""]
[97,null,null,"mm",null,"mm",null,"ks",null,null,null,null,null,null,null,null,null,null,null,null,null,null,null,null,null,null,null,null,null,null,"",0,0,"L",0,0,0,0,0,""]
[98,null,null,"mm",null,"mm",null,"ks",null,null,null,null,null,null,null,null,null,null,null,null,null,null,null,null,null,null,null,null,null,null,"",0,0,"L",0,0,0,0,0,""]
[99,null,null,"mm",null,"mm",null,"ks",null,null,null,null,null,null,null,null,null,null,null,null,null,null,null,null,null,null,null,null,null,null,"",0,0,"L",0,0,0,0,0,""]
[100,null,null,"mm",null,"mm",null,"ks",null,null,null,null,null,null,null,null,null,null,null,null,null,null,null,null,null,null,null,null,null,null,"",0,0,"L",0,0,0,0,0,""]

{"sheet":"List 8","index":8,"n_rows":110,"n_cols":40,"rows_kept":110,"cut":false,"hidden":false,"merged":[[9,8,9,15],[9,16,9,23],[9,24,9,27],[7,16,7,19],[7,20,7,23],[7,24,7,27],[7,28,8,28],[8,2,8,3],[8,4,8,5],[8,6,8,7],[7,1,8,1],[7,2,7,3],[7,4,7,5],[7,6,7,7],[7,8,7,11],[7,12,7,15],[1,1,1,2],[1,4,1,10],[1,12,1,16],[2,1,2,2],[2,4,2,10],[2,12,2,16]]}
[]
[null,"Název materiálu:",null,null,"Tloušťka materiálu:",null,null,null,null,null,null,null,"Kód Demos trade:",null,null,null,null,null,null,null,null,null,null,null,null,null,null,null,null,null,null,null,"Struktura:",true]
[null,null,null,null,null,null,null,null,null,null,null,null,null,null,null,null,null,null,null,null,null,null,null,null,null,null,null,null,null,null,null,null,"Bez struk:",false]
[]
[null,null,null,null,null,null,null,null,null,null,null,null,null,null,null,null,null,null,null,null,null,null,null,null,null,null,null,null,null,null,"Souhrn:"]
[null,null,null,null,null,null,null,null,null,null,null,null,null,null,null,null,null,null,null,null,null,null,null,null,null,null,null,null,null,null,"Položek","Délka ABS","Šířka ABS","ABS celkem","Kusy","Obsah"]
[null,null,null,null,null,null,null,null,null,null,null,null,null,null,null,null,null,null,null,null,null,null,null,null,null,null,null,null,null,null,{"$f":"100-COUNTBLANK(AE11:AE110)","v":0},{"$f":"SUM(C11:C110*AI11:AI110)*(IF(AJ11:AJ110>0,1,0)+IF(AL11:AL110>0,1,0))/1000","v":0},{"$f":"SUM(E11:E110*AI11:AI110)*(IF(AK11:AK110>0,1,0)+IF(AM11:AM110>0,1,0))/1000","v":0},{"$f":"AF7+AG7","v":0},{"$f":"SUM(AI11:AI110)","v":0},{"$f":"SUM(C11:C110*E11:E110*G11:G110)/1000/1000","v":0}]
[null,"název dílce:","x = délka:",null,"y = šířka:",null,"počet",null,"tloušťka ABS",null,null,null,"tloušťka ABS",null,null,null,"tloušťka ABS",null,null,null,"tloušťka ABS",null,null,null,"síla hrany v mm:",null,null,null,"poznámka"]
[null,null,"(po létech)",null,"(napříč létům)",null,"kusů:",null,0,0.5,1,2,0,0.5,1,2,0,0.5,1,2,0,0.5,1,2,"x","x","y","y",null,null,"Název","Délka","Šířka","Směr řezu","Počet","ABS 1","ABS 2","ABS 3","ABS 4","Poznámka"]
[null,null,"zadat",null,"zadat",null,"zadat",null,"označení pravým tlačítkem nebo lib.znak",null,null,null,null,null,null,null,"označení pravým tlačítkem nebo lib.znak",null,null,null,null,null,null,null,"kontrola nebo zadat"]
[1,null,null,"mm",null,"mm",null,"ks",null,null,null,null,null,null,null,null,null,null,null,null,null,null,null,null,null,null,null,null,null,null,{"$f":"IF(B11<>\"\",B11,\"\")","v":""},{"$f":"C11+1-MAX(Y11,0.5)-MAX(Z11,0.5)","v":0},{"$f":"E11+1-MAX(AA11,0.5)-MAX(AB11,0.5)","v":0},{"$f":" IF($AH$2,\"L\",0)","v":"L"},{"$f":"G11","v":0},{"$f":"Y11","v":0},{"$f":"AA11","v":0},{"$f":"Z11","v":0},{"$f":"AB11","v":0},{"$f":"IF( AC11<>\"\",AC11,\"\")","v":""}]
[2,null,null,"mm",null,"mm",null,"ks",null,null,null,null,null,null,null,null,null,null,null,null,null,null,null,null,null,null,null,null,null,null,"",0,{"$f":"E12+1-MAX(AA12,0.5)-MAX(AB12,0.5)","v":0},{"$f":" IF($AH$2,\"L\",0)","v":"L"},{"$f":"G12","v":0},{"$f":"Y12","v":0},{"$f":"AA12","v":0},{"$f":"Z12","v":0},{"$f":"AB12","v":0},{"$f":"IF( AC12<>\"\",AC12,\"\")","v":""}]
[3,null,null,"mm",null,"mm",null,"ks",null,null,null,null,null,null,null,null,null,null,null,null,null,null,null,null,null,null,null,null,null,null,"",0,{"$f":"E13+1-MAX(AA13,0.5)-MAX(AB13,0.5)","v":0},{"$f":" IF($AH$2,\"L\",0)","v":"L"},{"$f":"G13","v":0},{"$f":"Y13","v":0},{"$f":"AA13","v":0},{"$f":"Z13","v":0},{"$f":"AB13","v":0},""]
[4,null,null,"mm",null,"mm",null,"ks",null,null,null,null,null,null,null,null,null,null,null,null,null,null,null,null,null,null,null,null,null,null,"",0,0,"L",0,0,0,0,0,""]
[5,null,null,"mm",null,"mm",null,"ks",null,null,null,null,null,null,null,null,null,null,null,null,null,null,null,null,null,null,null,null,null,null,"",0,0,"L",0,0,0,0,0,""]
[6,null,null,"mm",null,"mm",null,"ks",null,null,null,null,null,null,null,null,null,null,null,null,null,null,null,null,null,null,null,null,null,null,"",0,0,"L",0,0,0,0,0,""]
[7,null,null,"mm",null,"mm",null,"ks",null,null,null,null,null,null,null,null,null,null,null,null,null,null,null,null,null,null,null,null,null,null,"",0,0,"L",0,0,0,0,0,""]
[8,null,null,"mm",null,"mm",null,"ks",null,null,null,null,null,null,null,null,null,null,null,null,null,null,null,null,null,null,null,null,null,null,"",0,0,"L",0,0,0,0,0,""]
[9,null,null,"mm",null,"mm",null,"ks",null,null,null,null,null,null,null,null,null,null,null,null,null,null,null,null,null,null,null,null,null,null,"",0,0,"L",0,0,0,0,0,""]
[10,null,null,"mm",null,"mm",null,"ks",null,null,null,null,null,null,null,null,null,null,null,null,null,null,null,null,null,null,null,null,null,null,"",0,0,"L",0,0,0,0,0,""]
[11,null,null,"mm",null,"mm",null,"ks",null,null,null,null,null,null,null,null,null,null,null,null,null,null,null,null,null,null,null,null,null,null,"",0,0,"L",0,0,0,0,0,""]
[12,null,null,"mm",null,"mm",null,"ks",null,null,null,null,null,null,null,null,null,null,null,null,null,null,null,null,null,null,null,null,null,null,"",0,0,"L",0,0,0,0,0,""]
[13,null,null,"mm",null,"mm",null,"ks",null,null,null,null,null,null,null,null,null,null,null,null,null,null,null,null,null,null,null,null,null,null,"",0,0,"L",0,0,0,0,0,""]
[14,null,null,"mm",null,"mm",null,"ks",null,null,null,null,null,null,null,null,null,null,null,null,null,null,null,null,null,null,null,null,null,null,"",0,0,"L",0,0,0,0,0,""]
[15,null,null,"mm",null,"mm",null,"ks",null,null,null,null,null,null,null,null,null,null,null,null,null,null,null,null,null,null,null,null,null,null,"",0,0,"L",0,0,0,0,0,""]
[16,null,null,"mm",null,"mm",null,"ks",null,null,null,null,null,null,null,null,null,null,null,null,null,null,null,null,null,null,null,null,null,null,"",0,0,"L",0,0,0,0,0,""]
[17,null,null,"mm",null,"mm",null,"ks",null,null,null,null,null,null,null,null,null,null,null,null,null,null,null,null,null,null,null,null,null,null,"",0,0,"L",0,0,0,0,0,""]
[18,null,null,"mm",null,"mm",null,"ks",null,null,null,null,null,null,null,null,null,null,null,null,null,null,null,null,null,null,null,null,null,null,"",0,0,"L",0,0,0,0,0,""]
[19,null,null,"mm",null,"mm",null,"ks",null,null,null,null,null,null,null,null,null,null,null,null,null,null,null,null,null,null,null,null,null,null,"",0,0,"L",0,0,0,0,0,""]
[20,null,null,"mm",null,"mm",null,"ks",null,null,null,null,null,null,null,null,null,null,null,null,null,null,null,null,null,null,null,null,null,null,"",0,0,"L",0,0,0,0,0,""]
[21,null,null,"mm",null,"mm",null,"ks",null,null,null,null,null,null,null,null,null,null,null,null,null,null,null,null,null,null,null,null,null,null,"",0,0,"L",0,0,0,0,0,""]
[22,null,null,"mm",null,"mm",null,"ks",null,null,null,null,null,null,null,null,null,null,null,null,null,null,null,null,null,null,null,null,null,null,"",0,0,"L",0,0,0,0,0,""]
[23,null,null,"mm",null,"mm",null,"ks",null,null,null,null,null,null,null,null,null,null,null,null,null,null,null,null,null,null,null,null,null,null,"",0,0,"L",0,0,0,0,0,""]
[24,null,null,"mm",null,"mm",null,"ks",null,null,null,null,null,null,null,null,null,null,null,null,null,null,null,null,null,null,null,null,null,null,"",0,0,"L",0,0,0,0,0,""]
[25,null,null,"mm",null,"mm",null,"ks",null,null,null,null,null,null,null,null,null,null,null,null,null,null,null,null,null,null,null,null,null,null,"",0,0,"L",0,0,0,0,0,""]
[26,null,null,"mm",null,"mm",null,"ks",null,null,null,null,null,null,null,null,null,null,null,null,null,null,null,null,null,null,null,null,null,null,"",0,0,"L",0,0,0,0,0,""]
[27,null,null,"mm",null,"mm",null,"ks",null,null,null,null,null,null,null,null,null,null,null,null,null,null,null,null,null,null,null,null,null,null,"",0,0,"L",0,0,0,0,0,""]
[28,null,null,"mm",null,"mm",null,"ks",null,null,null,null,null,null,null,null,null,null,null,null,null,null,null,null,null,null,null,null,null,null,"",0,0,"L",0,0,0,0,0,""]
[29,null,null,"mm",null,"mm",null,"ks",null,null,null,null,null,null,null,null,null,null,null,null,null,null,null,null,null,null,null,null,null,null,"",0,0,"L",0,0,0,0,0,""]
[30,null,null,"mm",null,"mm",null,"ks",null,null,null,null,null,null,null,null,null,null,null,null,null,null,null,null,null,null,null,null,null,null,"",0,0,"L",0,0,0,0,0,""]
[31,null,null,"mm",null,"mm",null,"ks",null,null,null,null,null,null,null,null,null,null,null,null,null,null,null,null,null,null,null,null,null,null,"",0,0,"L",0,0,0,0,0,""]
[32,null,null,"mm",null,"mm",null,"ks",null,null,null,null,null,null,null,null,null,null,null,null,null,null,null,null,null,null,null,null,null,null,"",0,0,"L",0,0,0,0,0,""]
[33,null,null,"mm",null,"mm",null,"ks",null,null,null,null,null,null,null,null,null,null,null,null,null,null,null,null,null,null,null,null,null,null,{"$f":"IF(B43<>\"\",B43,\"\")","v":""},0,0,"L",0,0,0,0,0,""]
[34,null,null,"mm",null,"mm",null,"ks",null,null,null,null,null,null,null,null,null,null,null,null,null,null,null,null,null,null,null,null,null,null,"",0,0,"L",0,0,0,0,0,""]
[35,null,null,"mm",null,"mm",null,"ks",null,null,null,null,null,null,null,null,null,null,null,null,null,null,null,null,null,null,null,null,null,null,"",0,0,"L",0,0,0,0,0,""]
[36,null,null,"mm",null,"mm",null,"ks",null,null,null,null,null,null,null,null,null,null,null,null,null,null,null,null,null,null,null,null,null,null,"",0,0,"L",0,0,0,0,0,""]
[37,null,null,"mm",null,"mm",null,"ks",null,null,null,null,null,null,null,null,null,null,null,null,null,null,null,null,null,null,null,null,null,null,"",0,0,"L",0,0,0,0,0,""]
[38,null,null,"mm",null,"mm",null,"ks",null,null,null,null,null,null,null,null,null,null,null,null,null,null,null,null,null,null,null,null,null,null,"",0,0,"L",0,0,0,0,0,""]
[39,null,null,"mm",null,"mm",null,"ks",null,null,null,null,null,null,null,null,null,null,null,null,null,null,null,null,null,null,null,null,null,null,"",0,0,"L",0,0,0,0,0,""]
[40,null,null,"mm",null,"mm",null,"ks",null,null,null,null,null,null,null,null,null,null,null,null,null,null,null,null,null,null,null,null,null,null,"",0,0,"L",0,0,0,0,0,""]
[41,null,null,"mm",null,"mm",null,"ks",null,null,null,null,null,null,null,null,null,null,null,null,null,null,null,null,null,null,null,null,null,null,"",0,0,"L",0,0,0,0,0,""]
[42,null,null,"mm",null,"mm",null,"ks",null,null,null,null,null,null,null,null,null,null,null,null,null,null,null,null,null,null,null,null,null,null,"",0,0,"L",0,0,0,0,0,""]
[43,null,null,"mm",null,"mm",null,"ks",null,null,null,null,null,null,null,null,null,null,null,null,null,null,null,null,null,null,null,null,null,null,"",0,0,"L",0,0,0,0,0,""]
[44,null,null,"mm",null,"mm",null,"ks",null,null,null,null,null,null,null,null,null,null,null,null,null,null,null,null,null,null,null,null,null,null,"",0,0,"L",0,0,0,0,0,""]
[45,null,null,"mm",null,"mm",null,"ks",null,null,null,null,null,null,null,null,null,null,null,null,null,null,null,null,null,null,null,null,null,null,"",0,0,"L",0,0,0,0,0,""]
[46,null,null,"mm",null,"mm",null,"ks",null,null,null,null,null,null,null,null,null,null,null,null,null,null,null,null,null,null,null,null,null,null,"",0,0,"L",0,0,0,0,0,""]
[47,null,null,"mm",null,"mm",null,"ks",null,null,null,null,null,null,null,null,null,null,null,null,null,null,null,null,null,null,null,null,null,null,"",0,0,"L",0,0,0,0,0,""]
[48,null,null,"mm",null,"mm",null,"ks",null,null,null,null,null,null,null,null,null,null,null,null,null,null,null,null,null,null,null,null,null,null,"",0,0,"L",0,0,0,0,0,""]
[49,null,null,"mm",null,"mm",null,"ks",null,null,null,null,null,null,null,null,null,null,null,null,null,null,null,null,null,null,null,null,null,null,"",0,0,"L",0,0,0,0,0,""]
[50,null,null,"mm",null,"mm",null,"ks",null,null,null,null,null,null,null,null,null,null,null,null,null,null,null,null,null,null,null,null,null,null,"",0,0,"L",0,0,0,0,0,""]
[51,null,null,"mm",null,"mm",null,"ks",null,null,null,null,null,null,null,null,null,null,null,null,null,null,null,null,null,null,null,null,null,null,"",0,0,"L",0,0,0,0,0,""]
[52,null,null,"mm",null,"mm",null,"ks",null,null,null,null,null,null,null,null,null,null,null,null,null,null,null,null,null,null,null,null,null,null,"",0,0,"L",0,0,0,0,0,""]
[53,null,null,"mm",null,"mm",null,"ks",null,null,null,null,null,null,null,null,null,null,null,null,null,null,null,null,null,null,null,null,null,null,"",0,0,"L",0,0,0,0,0,""]
[54,null,null,"mm",null,"mm",null,"ks",null,null,null,null,null,null,null,null,null,null,null,null,null,null,null,null,null,null,null,null,null,null,"",0,0,"L",0,0,0,0,0,""]
[55,null,null,"mm",null,"mm",null,"ks",null,null,null,null,null,null,null,null,null,null,null,null,null,null,null,null,null,null,null,null,null,null,"",0,0,"L",0,0,0,0,0,""]
[56,null,null,"mm",null,"mm",null,"ks",null,null,null,null,null,null,null,null,null,null,null,null,null,null,null,null,null,null,null,null,null,null,"",0,0,"L",0,0,0,0,0,""]
[57,null,null,"mm",null,"mm",null,"ks",null,null,null,null,null,null,null,null,null,null,null,null,null,null,null,null,null,null,null,null,null,null,"",0,0,"L",0,0,0,0,0,""]
[58,null,null,"mm",null,"mm",null,"ks",null,null,null,null,null,null,null,null,null,null,null,null,null,null,null,null,null,null,null,null,null,null,"",0,0,"L",0,0,0,0,0,""]
[59,null,null,"mm",null,"mm",null,"ks",null,null,null,null,null,null,null,null,null,null,null,null,null,null,null,null,null,null,null,null,null,null,"",0,0,"L",0,0,0,0,0,""]
[60,null,null,"mm",null,"mm",null,"ks",null,null,null,null,null,null,null,null,null,null,null,null,null,null,null,null,null,null,null,null,null,null,"",0,0,"L",0,0,0,0,0,""]
[61,null,null,"mm",null,"mm",null,"ks",null,null,null,null,null,null,null,null,null,null,null,null,null,null,null,null,null,null,null,null,null,null,"",0,0,"L",0,0,0,0,0,""]
[62,null,null,"mm",null,"mm",null,"ks",null,null,null,null,null,null,null,null,null,null,null,null,null,null,null,null,null,null,null,null,null,null,"",0,0,"L",0,0,0,0,0,""]
[63,null,null,"mm",null,"mm",null,"ks",null,null,null,null,null,null,null,null,null,null,null,null,null,null,null,null,null,null,null,null,null,null,"",0,0,"L",0,0,0,0,0,""]
[64,null,null,"mm",null,"mm",null,"ks",null,null,null,null,null,null,null,null,null,null,null,null,null,null,null,null,null,null,null,null,null,null,"",0,0,"L",0,0,0,0,0,""]
[65,null,null,"mm",null,"mm",null,"ks",null,null,null,null,null,null,null,null,null,null,null,null,null,null,null,null,null,null,null,null,null,null,{"$f":"IF(B75<>\"\",B75,\"\")","v":""},{"$f":"C75+1-MAX(Y75,0.5)-MAX(Z75,0.5)","v":0},0,"L",0,0,0,0,0,""]
[66,null,null,"mm",null,"mm",null,"ks",null,null,null,null,null,null,null,null,null,null,null,null,null,null,null,null,null,null,null,null,null,null,"",0,0,"L",0,0,0,0,0,{"$f":"IF( AC76<>\"\",AC76,\"\")","v":""}]
[67,null,null,"mm",null,"mm",null,"ks",null,null,null,null,null,null,null,null,null,null,null,null,null,null,null,null,null,null,null,null,null,null,"",0,{"$f":"E77+1-MAX(AA77,0.5)-MAX(AB77,0.5)","v":0},{"$f":" IF($AH$2,\"L\",0)","v":"L"},{"$f":"G77","v":0},{"$f":"Y77","v":0},{"$f":"AA77","v":0},{"$f":"Z77","v":0},{"$f":"AB77","v":0},""]
[68,null,null,"mm",null,"mm",null,"ks",null,null,null,null,null,null,null,null,null,null,null,null,null,null,null,null,null,null,null,null,null,null,"",0,0,"L",0,0,0,0,0,""]
[69,null,null,"mm",null,"mm",null,"ks",null,null,null,null,null,null,null,null,null,null,null,null,null,null,null,null,null,null,null,null,null,null,"",0,0,"L",0,0,0,0,0,""]
[70,null,null,"mm",null,"mm",null,"ks",null,null,null,null,null,null,null,null,null,null,null,null,null,null,null,null,null,null,null,null,null,null,"",0,0,"L",0,0,0,0,0,""]
[71,null,null,"mm",null,"mm",null,"ks",null,null,null,null,null,null,null,null,null,null,null,null,null,null,null,null,null,null,null,null,null,null,"",0,0,"L",0,0,0,0,0,""]
[72,null,null,"mm",null,"mm",null,"ks",null,null,null,null,null,null,null,null,null,null,null,null,null,null,null,null,null,null,null,null,null,null,"",0,0,"L",0,0,0,0,0,""]
[73,null,null,"mm",null,"mm",null,"ks",null,null,null,null,null,null,null,null,null,null,null,null,null,null,null,null,null,null,null,null,null,null,"",0,0,"L",0,0,0,0,0,""]
[74,null,null,"mm",null,"mm",null,"ks",null,null,null,null,null,null,null,null,null,null,null,null,null,null,null,null,null,null,null,null,null,null,"",0,0,"L",0,0,0,0,0,""]
[75,null,null,"mm",null,"mm",null,"ks",null,null,null,null,null,null,null,null,null,null,null,null,null,null,null,null,null,null,null,null,null,null,"",0,0,"L",0,0,0,0,0,""]
[76,null,null,"mm",null,"mm",null,"ks",null,null,null,null,null,null,null,null,null,null,null,null,null,null,null,null,null,null,null,null,null,null,"",0,0,"L",0,0,0,0,0,""]
[77,null,null,"mm",null,"mm",null,"ks",null,null,null,null,null,null,null,null,null,null,null,null,null,null,null,null,null,null,null,null,null,null,"",0,0,"L",0,0,0,0,0,""]
[78,null,null,"mm",null,"mm",null,"ks",null,null,null,null,null,null,null,null,null,null,null,null,null,null,null,null,null,null,null,null,null,null,"",0,0,"L",0,0,0,0,0,""]
[79,null,null,"mm",null,"mm",null,"ks",null,null,null,null,null,null,null,null,null,null,null,null,null,null,null,null,null,null,null,null,null,null,"",0,0,"L",0,0,0,0,0,""]
[80,null,null,"mm",null,"mm",null,"ks",null,null,null,null,null,null,null,null,null,null,null,null,null,null,null,null,null,null,null,null,null,null,"",0,0,"L",0,0,0,0,0,""]
[81,null,null,"mm",null,"mm",null,"ks",null,null,null,null,null,null,null,null,null,null,null,null,null,null,null,null,null,null,null,null,null,null,"",0,0,"L",0,0,0,0,0,""]
[82,null,null,"mm",null,"mm",null,"ks",null,null,null,null,null,null,null,null,null,null,null,null,null,null,null,null,null,null,null,null,null,null,"",0,0,"L",0,0,0,0,0,""]
[83,null,null,"mm",null,"mm",null,"ks",null,null,null,null,null,null,null,null,null,null,null,null,null,null,null,null,null,null,null,null,null,null,"",0,0,"L",0,0,0,0,0,""]
[84,null,null,"mm",null,"mm",null,"ks",null,null,null,null,null,null,null,null,null,null,null,null,null,null,null,null,null,null,null,null,null,null,"",0,0,"L",0,0,0,0,0,""]
[85,null,null,"mm",null,"mm",null,"ks",null,null,null,null,null,null,null,null,null,null,null,null,null,null,null,null,null,null,null,null,null,null,"",0,0,"L",0,0,0,0,0,""]
[86,null,null,"mm",null,"mm",null,"ks",null,null,null,null,null,null,null,null,null,null,null,null,null,null,null,null,null,null,null,null,null,null,"",0,0,"L",0,0,0,0,0,""]
[87,null,null,"mm",null,"mm",null,"ks",null,null,null,null,null,null,null,null,null,null,null,null,null,null,null,null,null,null,null,null,null,null,"",0,0,"L",0,0,0,0,0,""]
[88,null,null,"mm",null,"mm",null,"ks",null,null,null,null,null,null,null,null,null,null,null,null,null,null,null,null,null,null,null,null,null,null,"",0,0,"L",0,0,0,0,0,""]
[89,null,null,"mm",null,"mm",null,"ks",null,null,null,null,null,null,null,null,null,null,null,null,null,null,null,null,null,null,null,null,null,null,"",0,0,"L",0,0,0,0,0,""]
[90,null,null,"mm",null,"mm",null,"ks",null,null,null,null,null,null,null,null,null,null,null,null,null,null,null,null,null,null,null,null,null,null,"",0,0,"L",0,0,0,0,0,""]
[91,null,null,"mm",null,"mm",null,"ks",null,null,null,null,null,null,null,null,null,null,null,null,null,null,null,null,null,null,null,null,null,null,"",0,0,"L",0,0,0,0,0,""]
[92,null,null,"mm",null,"mm",null,"ks",null,null,null,null,null,null,null,null,null,null,null,null,null,null,null,null,null,null,null,null,null,null,"",0,0,"L",0,0,0,0,0,""]
[93,null,null,"mm",null,"mm",null,"ks",null,null,null,null,null,null,null,null,null,null,null,null,null,null,null,null,null,null,null,null,null,null,"",0,0,"L",0,0,0,0,0,""]
[94,null,null,"mm",null,"mm",null,"ks",null,null,null,null,null,null,null,null,null,null,null,null,null,null,null,null,null,null,null,null,null,null,"",0,0,"L",0,0,0,0,0,""]
[95,null,null,"mm",null,"mm",null,"ks",null,null,null,null,null,null,null,null,null,null,null,null,null,null,null,null,null,null,null,null,null,null,"",0,0,"L",0,0,0,0,0,""]
[96,null,null,"mm",null,"mm",null,"ks",null,null,null,null,null,null,null,null,null,null,null,null,null,null,null,null,null,null,null,null,null,null,"",0,0,"L",0,0,0,0,0,""]
[97,null,null,"mm",null,"mm",null,"ks",null,null,null,null,null,null,null,null,null,null,null,null,null,null,null,null,null,null,null,null,null,null,"",0,0,"L",0,0,0,0,0,""]
[98,null,null,"mm",null,"mm",null,"ks",null,null,null,null,null,null,null,null,null,null,null,null,null,null,null,null,null,null,null,null,null,null,"",0,0,"L",0,0,0,0,0,""]
[99,null,null,"mm",null,"mm",null,"ks",null,null,null,null,null,null,null,null,null,null,null,null,null,null,null,null,null,null,null,null,null,null,"",0,0,"L",0,0,0,0,0,""]
[100,null,null,"mm",null,"mm",null,"ks",null,null,null,null,null,null,null,null,null,null,null,null,null,null,null,null,null,null,null,null,null,null,"",0,0,"L",0,0,0,0,0,""]

{"sheet":"List 9","index":9,"n_rows":110,"n_cols":40,"rows_kept":110,"cut":false,"hidden":false,"merged":[[9,8,9,15],[9,16,9,23],[9,24,9,27],[7,16,7,19],[7,20,7,23],[7,24,7,27],[7,28,8,28],[8,2,8,3],[8,4,8,5],[8,6,8,7],[7,1,8,1],[7,2,7,3],[7,4,7,5],[7,6,7,7],[7,8,7,11],[7,12,7,15],[1,1,1,2],[1,4,1,10],[1,12,1,16],[2,1,2,2],[2,4,2,10],[2,12,2,16]]}
[]
[null,"Název materiálu:",null,null,"Tloušťka materiálu:",null,null,null,null,null,null,null,"Kód Demos trade:",null,null,null,null,null,null,null,null,null,null,null,null,null,null,null,null,null,null,null,"Struktura:",true]
[null,null,null,null,null,null,null,null,null,null,null,null,null,null,null,null,null,null,null,null,null,null,null,null,null,null,null,null,null,null,null,null,"Bez struk:",false]
[]
[null,null,null,null,null,null,null,null,null,null,null,null,null,null,null,null,null,null,null,null,null,null,null,null,null,null,null,null,null,null,"Souhrn:"]
[null,null,null,null,null,null,null,null,null,null,null,null,null,null,null,null,null,null,null,null,null,null,null,null,null,null,null,null,null,null,"Položek","Délka ABS","Šířka ABS","ABS celkem","Kusy","Obsah"]
[null,null,null,null,null,null,null,null,null,null,null,null,null,null,null,null,null,null,null,null,null,null,null,null,null,null,null,null,null,null,{"$f":"100-COUNTBLANK(AE11:AE110)","v":0},{"$f":"SUM(C11:C110*AI11:AI110)*(IF(AJ11:AJ110>0,1,0)+IF(AL11:AL110>0,1,0))/1000","v":0},{"$f":"SUM(E11:E110*AI11:AI110)*(IF(AK11:AK110>0,1,0)+IF(AM11:AM110>0,1,0))/1000","v":0},{"$f":"AF7+AG7","v":0},{"$f":"SUM(AI11:AI110)","v":0},{"$f":"SUM(C11:C110*E11:E110*G11:G110)/1000/1000","v":0}]
[null,"název dílce:","x = délka:",null,"y = šířka:",null,"počet",null,"tloušťka ABS",null,null,null,"tloušťka ABS",null,null,null,"tloušťka ABS",null,null,null,"tloušťka ABS",null,null,null,"síla hrany v mm:",null,null,null,"poznámka"]
[null,null,"(po létech)",null,"(napříč létům)",null,"kusů:",null,0,0.5,1,2,0,0.5,1,2,0,0.5,1,2,0,0.5,1,2,"x","x","y","y",null,null,"Název","Délka","Šířka","Směr řezu","Počet","ABS 1","ABS 2","ABS 3","ABS 4","Poznámka"]
[null,null,"zadat",null,"zadat",null,"zadat",null,"označení pravým tlačítkem nebo lib.znak",null,null,null,null,null,null,null,"označení pravým tlačítkem nebo lib.znak",null,null,null,null,null,null,null,"kontrola nebo zadat"]
[1,null,null,"mm",null,"mm",null,"ks",null,null,null,null,null,null,null,null,null,null,null,null,null,null,null,null,null,null,null,null,null,null,{"$f":"IF(B11<>\"\",B11,\"\")","v":""},{"$f":"C11+1-MAX(Y11,0.5)-MAX(Z11,0.5)","v":0},{"$f":"E11+1-MAX(AA11,0.5)-MAX(AB11,0.5)","v":0},{"$f":" IF($AH$2,\"L\",0)","v":"L"},{"$f":"G11","v":0},{"$f":"Y11","v":0},{"$f":"AA11","v":0},{"$f":"Z11","v":0},{"$f":"AB11","v":0},{"$f":"IF( AC11<>\"\",AC11,\"\")","v":""}]
[2,null,null,"mm",null,"mm",null,"ks",null,null,null,null,null,null,null,null,null,null,null,null,null,null,null,null,null,null,null,null,null,null,"",0,{"$f":"E12+1-MAX(AA12,0.5)-MAX(AB12,0.5)","v":0},{"$f":" IF($AH$2,\"L\",0)","v":"L"},{"$f":"G12","v":0},{"$f":"Y12","v":0},{"$f":"AA12","v":0},{"$f":"Z12","v":0},{"$f":"AB12","v":0},{"$f":"IF( AC12<>\"\",AC12,\"\")","v":""}]
[3,null,null,"mm",null,"mm",null,"ks",null,null,null,null,null,null,null,null,null,null,null,null,null,null,null,null,null,null,null,null,null,null,"",0,{"$f":"E13+1-MAX(AA13,0.5)-MAX(AB13,0.5)","v":0},{"$f":" IF($AH$2,\"L\",0)","v":"L"},{"$f":"G13","v":0},{"$f":"Y13","v":0},{"$f":"AA13","v":0},{"$f":"Z13","v":0},{"$f":"AB13","v":0},""]
[4,null,null,"mm",null,"mm",null,"ks",null,null,null,null,null,null,null,null,null,null,null,null,null,null,null,null,null,null,null,null,null,null,"",0,0,"L",0,0,0,0,0,""]
[5,null,null,"mm",null,"mm",null,"ks",null,null,null,null,null,null,null,null,null,null,null,null,null,null,null,null,null,null,null,null,null,null,"",0,0,"L",0,0,0,0,0,""]
[6,null,null,"mm",null,"mm",null,"ks",null,null,null,null,null,null,null,null,null,null,null,null,null,null,null,null,null,null,null,null,null,null,"",0,0,"L",0,0,0,0,0,""]
[7,null,null,"mm",null,"mm",null,"ks",null,null,null,null,null,null,null,null,null,null,null,null,null,null,null,null,null,null,null,null,null,null,"",0,0,"L",0,0,0,0,0,""]
[8,null,null,"mm",null,"mm",null,"ks",null,null,null,null,null,null,null,null,null,null,null,null,null,null,null,null,null,null,null,null,null,null,"",0,0,"L",0,0,0,0,0,""]
[9,null,null,"mm",null,"mm",null,"ks",null,null,null,null,null,null,null,null,null,null,null,null,null,null,null,null,null,null,null,null,null,null,"",0,0,"L",0,0,0,0,0,""]
[10,null,null,"mm",null,"mm",null,"ks",null,null,null,null,null,null,null,null,null,null,null,null,null,null,null,null,null,null,null,null,null,null,"",0,0,"L",0,0,0,0,0,""]
[11,null,null,"mm",null,"mm",null,"ks",null,null,null,null,null,null,null,null,null,null,null,null,null,null,null,null,null,null,null,null,null,null,"",0,0,"L",0,0,0,0,0,""]
[12,null,null,"mm",null,"mm",null,"ks",null,null,null,null,null,null,null,null,null,null,null,null,null,null,null,null,null,null,null,null,null,null,"",0,0,"L",0,0,0,0,0,""]
[13,null,null,"mm",null,"mm",null,"ks",null,null,null,null,null,null,null,null,null,null,null,null,null,null,null,null,null,null,null,null,null,null,"",0,0,"L",0,0,0,0,0,""]
[14,null,null,"mm",null,"mm",null,"ks",null,null,null,null,null,null,null,null,null,null,null,null,null,null,null,null,null,null,null,null,null,null,"",0,0,"L",0,0,0,0,0,""]
[15,null,null,"mm",null,"mm",null,"ks",null,null,null,null,null,null,null,null,null,null,null,null,null,null,null,null,null,null,null,null,null,null,"",0,0,"L",0,0,0,0,0,""]
[16,null,null,"mm",null,"mm",null,"ks",null,null,null,null,null,null,null,null,null,null,null,null,null,null,null,null,null,null,null,null,null,null,"",0,0,"L",0,0,0,0,0,""]
[17,null,null,"mm",null,"mm",null,"ks",null,null,null,null,null,null,null,null,null,null,null,null,null,null,null,null,null,null,null,null,null,null,"",0,0,"L",0,0,0,0,0,""]
[18,null,null,"mm",null,"mm",null,"ks",null,null,null,null,null,null,null,null,null,null,null,null,null,null,null,null,null,null,null,null,null,null,"",0,0,"L",0,0,0,0,0,""]
[19,null,null,"mm",null,"mm",null,"ks",null,null,null,null,null,null,null,null,null,null,null,null,null,null,null,null,null,null,null,null,null,null,"",0,0,"L",0,0,0,0,0,""]
[20,null,null,"mm",null,"mm",null,"ks",null,null,null,null,null,null,null,null,null,null,null,null,null,null,null,null,null,null,null,null,null,null,"",0,0,"L",0,0,0,0,0,""]
[21,null,null,"mm",null,"mm",null,"ks",null,null,null,null,null,null,null,null,null,null,null,null,null,null,null,null,null,null,null,null,null,null,"",0,0,"L",0,0,0,0,0,""]
[22,null,null,"mm",null,"mm",null,"ks",null,null,null,null,null,null,null,null,null,null,null,null,null,null,null,null,null,null,null,null,null,null,"",0,0,"L",0,0,0,0,0,""]
[23,null,null,"mm",null,"mm",null,"ks",null,null,null,null,null,null,null,null,null,null,null,null,null,null,null,null,null,null,null,null,null,null,"",0,0,"L",0,0,0,0,0,""]
[24,null,null,"mm",null,"mm",null,"ks",null,null,null,null,null,null,null,null,null,null,null,null,null,null,null,null,null,null,null,null,null,null,"",0,0,"L",0,0,0,0,0,""]
[25,null,null,"mm",null,"mm",null,"ks",null,null,null,null,null,null,null,null,null,null,null,null,null,null,null,null,null,null,null,null,null,null,"",0,0,"L",0,0,0,0,0,""]
[26,null,null,"mm",null,"mm",null,"ks",null,null,null,null,null,null,null,null,null,null,null,null,null,null,null,null,null,null,null,null,null,null,"",0,0,"L",0,0,0,0,0,""]
[27,null,null,"mm",null,"mm",null,"ks",null,null,null,null,null,null,null,null,null,null,null,null,null,null,null,null,null,null,null,null,null,null,"",0,0,"L",0,0,0,0,0,""]
[28,null,null,"mm",null,"mm",null,"ks",null,null,null,null,null,null,null,null,null,null,null,null,null,null,null,null,null,null,null,null,null,null,"",0,0,"L",0,0,0,0,0,""]
[29,null,null,"mm",null,"mm",null,"ks",null,null,null,null,null,null,null,null,null,null,null,null,null,null,null,null,null,null,null,null,null,null,"",0,0,"L",0,0,0,0,0,""]
[30,null,null,"mm",null,"mm",null,"ks",null,null,null,null,null,null,null,null,null,null,null,null,null,null,null,null,null,null,null,null,null,null,"",0,0,"L",0,0,0,0,0,""]
[31,null,null,"mm",null,"mm",null,"ks",null,null,null,null,null,null,null,null,null,null,null,null,null,null,null,null,null,null,null,null,null,null,"",0,0,"L",0,0,0,0,0,""]
[32,null,null,"mm",null,"mm",null,"ks",null,null,null,null,null,null,null,null,null,null,null,null,null,null,null,null,null,null,null,null,null,null,"",0,0,"L",0,0,0,0,0,""]
[33,null,null,"mm",null,"mm",null,"ks",null,null,null,null,null,null,null,null,null,null,null,null,null,null,null,null,null,null,null,null,null,null,{"$f":"IF(B43<>\"\",B43,\"\")","v":""},0,0,"L",0,0,0,0,0,""]
[34,null,null,"mm",null,"mm",null,"ks",null,null,null,null,null,null,null,null,null,null,null,null,null,null,null,null,null,null,null,null,null,null,"",0,0,"L",0,0,0,0,0,""]
[35,null,null,"mm",null,"mm",null,"ks",null,null,null,null,null,null,null,null,null,null,null,null,null,null,null,null,null,null,null,null,null,null,"",0,0,"L",0,0,0,0,0,""]
[36,null,null,"mm",null,"mm",null,"ks",null,null,null,null,null,null,null,null,null,null,null,null,null,null,null,null,null,null,null,null,null,null,"",0,0,"L",0,0,0,0,0,""]
[37,null,null,"mm",null,"mm",null,"ks",null,null,null,null,null,null,null,null,null,null,null,null,null,null,null,null,null,null,null,null,null,null,"",0,0,"L",0,0,0,0,0,""]
[38,null,null,"mm",null,"mm",null,"ks",null,null,null,null,null,null,null,null,null,null,null,null,null,null,null,null,null,null,null,null,null,null,"",0,0,"L",0,0,0,0,0,""]
[39,null,null,"mm",null,"mm",null,"ks",null,null,null,null,null,null,null,null,null,null,null,null,null,null,null,null,null,null,null,null,null,null,"",0,0,"L",0,0,0,0,0,""]
[40,null,null,"mm",null,"mm",null,"ks",null,null,null,null,null,null,null,null,null,null,null,null,null,null,null,null,null,null,null,null,null,null,"",0,0,"L",0,0,0,0,0,""]
[41,null,null,"mm",null,"mm",null,"ks",null,null,null,null,null,null,null,null,null,null,null,null,null,null,null,null,null,null,null,null,null,null,"",0,0,"L",0,0,0,0,0,""]
[42,null,null,"mm",null,"mm",null,"ks",null,null,null,null,null,null,null,null,null,null,null,null,null,null,null,null,null,null,null,null,null,null,"",0,0,"L",0,0,0,0,0,""]
[43,null,null,"mm",null,"mm",null,"ks",null,null,null,null,null,null,null,null,null,null,null,null,null,null,null,null,null,null,null,null,null,null,"",0,0,"L",0,0,0,0,0,""]
[44,null,null,"mm",null,"mm",null,"ks",null,null,null,null,null,null,null,null,null,null,null,null,null,null,null,null,null,null,null,null,null,null,"",0,0,"L",0,0,0,0,0,""]
[45,null,null,"mm",null,"mm",null,"ks",null,null,null,null,null,null,null,null,null,null,null,null,null,null,null,null,null,null,null,null,null,null,"",0,0,"L",0,0,0,0,0,""]
[46,null,null,"mm",null,"mm",null,"ks",null,null,null,null,null,null,null,null,null,null,null,null,null,null,null,null,null,null,null,null,null,null,"",0,0,"L",0,0,0,0,0,""]
[47,null,null,"mm",null,"mm",null,"ks",null,null,null,null,null,null,null,null,null,null,null,null,null,null,null,null,null,null,null,null,null,null,"",0,0,"L",0,0,0,0,0,""]
[48,null,null,"mm",null,"mm",null,"ks",null,null,null,null,null,null,null,null,null,null,null,null,null,null,null,null,null,null,null,null,null,null,"",0,0,"L",0,0,0,0,0,""]
[49,null,null,"mm",null,"mm",null,"ks",null,null,null,null,null,null,null,null,null,null,null,null,null,null,null,null,null,null,null,null,null,null,"",0,0,"L",0,0,0,0,0,""]
[50,null,null,"mm",null,"mm",null,"ks",null,null,null,null,null,null,null,null,null,null,null,null,null,null,null,null,null,null,null,null,null,null,"",0,0,"L",0,0,0,0,0,""]
[51,null,null,"mm",null,"mm",null,"ks",null,null,null,null,null,null,null,null,null,null,null,null,null,null,null,null,null,null,null,null,null,null,"",0,0,"L",0,0,0,0,0,""]
[52,null,null,"mm",null,"mm",null,"ks",null,null,null,null,null,null,null,null,null,null,null,null,null,null,null,null,null,null,null,null,null,null,"",0,0,"L",0,0,0,0,0,""]
[53,null,null,"mm",null,"mm",null,"ks",null,null,null,null,null,null,null,null,null,null,null,null,null,null,null,null,null,null,null,null,null,null,"",0,0,"L",0,0,0,0,0,""]
[54,null,null,"mm",null,"mm",null,"ks",null,null,null,null,null,null,null,null,null,null,null,null,null,null,null,null,null,null,null,null,null,null,"",0,0,"L",0,0,0,0,0,""]
[55,null,null,"mm",null,"mm",null,"ks",null,null,null,null,null,null,null,null,null,null,null,null,null,null,null,null,null,null,null,null,null,null,"",0,0,"L",0,0,0,0,0,""]
[56,null,null,"mm",null,"mm",null,"ks",null,null,null,null,null,null,null,null,null,null,null,null,null,null,null,null,null,null,null,null,null,null,"",0,0,"L",0,0,0,0,0,""]
[57,null,null,"mm",null,"mm",null,"ks",null,null,null,null,null,null,null,null,null,null,null,null,null,null,null,null,null,null,null,null,null,null,"",0,0,"L",0,0,0,0,0,""]
[58,null,null,"mm",null,"mm",null,"ks",null,null,null,null,null,null,null,null,null,null,null,null,null,null,null,null,null,null,null,null,null,null,"",0,0,"L",0,0,0,0,0,""]
[59,null,null,"mm",null,"mm",null,"ks",null,null,null,null,null,null,null,null,null,null,null,null,null,null,null,null,null,null,null,null,null,null,"",0,0,"L",0,0,0,0,0,""]
[60,null,null,"mm",null,"mm",null,"ks",null,null,null,null,null,null,null,null,null,null,null,null,null,null,null,null,null,null,null,null,null,null,"",0,0,"L",0,0,0,0,0,""]
[61,null,null,"mm",null,"mm",null,"ks",null,null,null,null,null,null,null,null,null,null,null,null,null,null,null,null,null,null,null,null,null,null,"",0,0,"L",0,0,0,0,0,""]
[62,null,null,"mm",null,"mm",null,"ks",null,null,null,null,null,null,null,null,null,null,null,null,null,null,null,null,null,null,null,null,null,null,"",0,0,"L",0,0,0,0,0,""]
[63,null,null,"mm",null,"mm",null,"ks",null,null,null,null,null,null,null,null,null,null,null,null,null,null,null,null,null,null,null,null,null,null,"",0,0,"L",0,0,0,0,0,""]
[64,null,null,"mm",null,"mm",null,"ks",null,null,null,null,null,null,null,null,null,null,null,null,null,null,null,null,null,null,null,null,null,null,"",0,0,"L",0,0,0,0,0,""]
[65,null,null,"mm",null,"mm",null,"ks",null,null,null,null,null,null,null,null,null,null,null,null,null,null,null,null,null,null,null,null,null,null,{"$f":"IF(B75<>\"\",B75,\"\")","v":""},{"$f":"C75+1-MAX(Y75,0.5)-MAX(Z75,0.5)","v":0},0,"L",0,0,0,0,0,""]
[66,null,null,"mm",null,"mm",null,"ks",null,null,null,null,null,null,null,null,null,null,null,null,null,null,null,null,null,null,null,null,null,null,"",0,0,"L",0,0,0,0,0,{"$f":"IF( AC76<>\"\",AC76,\"\")","v":""}]
[67,null,null,"mm",null,"mm",null,"ks",null,null,null,null,null,null,null,null,null,null,null,null,null,null,null,null,null,null,null,null,null,null,"",0,{"$f":"E77+1-MAX(AA77,0.5)-MAX(AB77,0.5)","v":0},{"$f":" IF($AH$2,\"L\",0)","v":"L"},{"$f":"G77","v":0},{"$f":"Y77","v":0},{"$f":"AA77","v":0},{"$f":"Z77","v":0},{"$f":"AB77","v":0},""]
[68,null,null,"mm",null,"mm",null,"ks",null,null,null,null,null,null,null,null,null,null,null,null,null,null,null,null,null,null,null,null,null,null,"",0,0,"L",0,0,0,0,0,""]
[69,null,null,"mm",null,"mm",null,"ks",null,null,null,null,null,null,null,null,null,null,null,null,null,null,null,null,null,null,null,null,null,null,"",0,0,"L",0,0,0,0,0,""]
[70,null,null,"mm",null,"mm",null,"ks",null,null,null,null,null,null,null,null,null,null,null,null,null,null,null,null,null,null,null,null,null,null,"",0,0,"L",0,0,0,0,0,""]
[71,null,null,"mm",null,"mm",null,"ks",null,null,null,null,null,null,null,null,null,null,null,null,null,null,null,null,null,null,null,null,null,null,"",0,0,"L",0,0,0,0,0,""]
[72,null,null,"mm",null,"mm",null,"ks",null,null,null,null,null,null,null,null,null,null,null,null,null,null,null,null,null,null,null,null,null,null,"",0,0,"L",0,0,0,0,0,""]
[73,null,null,"mm",null,"mm",null,"ks",null,null,null,null,null,null,null,null,null,null,null,null,null,null,null,null,null,null,null,null,null,null,"",0,0,"L",0,0,0,0,0,""]
[74,null,null,"mm",null,"mm",null,"ks",null,null,null,null,null,null,null,null,null,null,null,null,null,null,null,null,null,null,null,null,null,null,"",0,0,"L",0,0,0,0,0,""]
[75,null,null,"mm",null,"mm",null,"ks",null,null,null,null,null,null,null,null,null,null,null,null,null,null,null,null,null,null,null,null,null,null,"",0,0,"L",0,0,0,0,0,""]
[76,null,null,"mm",null,"mm",null,"ks",null,null,null,null,null,null,null,null,null,null,null,null,null,null,null,null,null,null,null,null,null,null,"",0,0,"L",0,0,0,0,0,""]
[77,null,null,"mm",null,"mm",null,"ks",null,null,null,null,null,null,null,null,null,null,null,null,null,null,null,null,null,null,null,null,null,null,"",0,0,"L",0,0,0,0,0,""]
[78,null,null,"mm",null,"mm",null,"ks",null,null,null,null,null,null,null,null,null,null,null,null,null,null,null,null,null,null,null,null,null,null,"",0,0,"L",0,0,0,0,0,""]
[79,null,null,"mm",null,"mm",null,"ks",null,null,null,null,null,null,null,null,null,null,null,null,null,null,null,null,null,null,null,null,null,null,"",0,0,"L",0,0,0,0,0,""]
[80,null,null,"mm",null,"mm",null,"ks",null,null,null,null,null,null,null,null,null,null,null,null,null,null,null,null,null,null,null,null,null,null,"",0,0,"L",0,0,0,0,0,""]
[81,null,null,"mm",null,"mm",null,"ks",null,null,null,null,null,null,null,null,null,null,null,null,null,null,null,null,null,null,null,null,null,null,"",0,0,"L",0,0,0,0,0,""]
[82,null,null,"mm",null,"mm",null,"ks",null,null,null,null,null,null,null,null,null,null,null,null,null,null,null,null,null,null,null,null,null,null,"",0,0,"L",0,0,0,0,0,""]
[83,null,null,"mm",null,"mm",null,"ks",null,null,null,null,null,null,null,null,null,null,null,null,null,null,null,null,null,null,null,null,null,null,"",0,0,"L",0,0,0,0,0,""]
[84,null,null,"mm",null,"mm",null,"ks",null,null,null,null,null,null,null,null,null,null,null,null,null,null,null,null,null,null,null,null,null,null,"",0,0,"L",0,0,0,0,0,""]
[85,null,null,"mm",null,"mm",null,"ks",null,null,null,null,null,null,null,null,null,null,null,null,null,null,null,null,null,null,null,null,null,null,"",0,0,"L",0,0,0,0,0,""]
[86,null,null,"mm",null,"mm",null,"ks",null,null,null,null,null,null,null,null,null,null,null,null,null,null,null,null,null,null,null,null,null,null,"",0,0,"L",0,0,0,0,0,""]
[87,null,null,"mm",null,"mm",null,"ks",null,null,null,null,null,null,null,null,null,null,null,null,null,null,null,null,null,null,null,null,null,null,"",0,0,"L",0,0,0,0,0,""]
[88,null,null,"mm",null,"mm",null,"ks",null,null,null,null,null,null,null,null,null,null,null,null,null,null,null,null,null,null,null,null,null,null,"",0,0,"L",0,0,0,0,0,""]
[89,null,null,"mm",null,"mm",null,"ks",null,null,null,null,null,null,null,null,null,null,null,null,null,null,null,null,null,null,null,null,null,null,"",0,0,"L",0,0,0,0,0,""]
[90,null,null,"mm",null,"mm",null,"ks",null,null,null,null,null,null,null,null,null,null,null,null,null,null,null,null,null,null,null,null,null,null,"",0,0,"L",0,0,0,0,0,""]
[91,null,null,"mm",null,"mm",null,"ks",null,null,null,null,null,null,null,null,null,null,null,null,null,null,null,null,null,null,null,null,null,null,"",0,0,"L",0,0,0,0,0,""]
[92,null,null,"mm",null,"mm",null,"ks",null,null,null,null,null,null,null,null,null,null,null,null,null,null,null,null,null,null,null,null,null,null,"",0,0,"L",0,0,0,0,0,""]
[93,null,null,"mm",null,"mm",null,"ks",null,null,null,null,null,null,null,null,null,null,null,null,null,null,null,null,null,null,null,null,null,null,"",0,0,"L",0,0,0,0,0,""]
[94,null,null,"mm",null,"mm",null,"ks",null,null,null,null,null,null,null,null,null,null,null,null,null,null,null,null,null,null,null,null,null,null,"",0,0,"L",0,0,0,0,0,""]
[95,null,null,"mm",null,"mm",null,"ks",null,null,null,null,null,null,null,null,null,null,null,null,null,null,null,null,null,null,null,null,null,null,"",0,0,"L",0,0,0,0,0,""]
[96,null,null,"mm",null,"mm",null,"ks",null,null,null,null,null,null,null,null,null,null,null,null,null,null,null,null,null,null,null,null,null,null,"",0,0,"L",0,0,0,0,0,""]
[97,null,null,"mm",null,"mm",null,"ks",null,null,null,null,null,null,null,null,null,null,null,null,null,null,null,null,null,null,null,null,null,null,"",0,0,"L",0,0,0,0,0,""]
[98,null,null,"mm",null,"mm",null,"ks",null,null,null,null,null,null,null,null,null,null,null,null,null,null,null,null,null,null,null,null,null,null,"",0,0,"L",0,0,0,0,0,""]
[99,null,null,"mm",null,"mm",null,"ks",null,null,null,null,null,null,null,null,null,null,null,null,null,null,null,null,null,null,null,null,null,null,"",0,0,"L",0,0,0,0,0,""]
[100,null,null,"mm",null,"mm",null,"ks",null,null,null,null,null,null,null,null,null,null,null,null,null,null,null,null,null,null,null,null,null,null,"",0,0,"L",0,0,0,0,0,""]

{"sheet":"List 10","index":10,"n_rows":110,"n_cols":40,"rows_kept":110,"cut":false,"hidden":false,"merged":[[9,8,9,15],[9,16,9,23],[9,24,9,27],[7,16,7,19],[7,20,7,23],[7,24,7,27],[7,28,8,28],[8,2,8,3],[8,4,8,5],[8,6,8,7],[7,1,8,1],[7,2,7,3],[7,4,7,5],[7,6,7,7],[7,8,7,11],[7,12,7,15],[1,1,1,2],[1,4,1,10],[1,12,1,16],[2,1,2,2],[2,4,2,10],[2,12,2,16]]}
[]
[null,"Název materiálu:",null,null,"Tloušťka materiálu:",null,null,null,null,null,null,null,"Kód Demos trade:",null,null,null,null,null,null,null,null,null,null,null,null,null,null,null,null,null,null,null,"Struktura:",true]
[null,null,null,null,null,null,null,null,null,null,null,null,null,null,null,null,null,null,null,null,null,null,null,null,null,null,null,null,null,null,null,null,"Bez struk:",false]
[]
[null,null,null,null,null,null,null,null,null,null,null,null,null,null,null,null,null,null,null,null,null,null,null,null,null,null,null,null,null,null,"Souhrn:"]
[null,null,null,null,null,null,null,null,null,null,null,null,null,null,null,null,null,null,null,null,null,null,null,null,null,null,null,null,null,null,"Položek","Délka ABS","Šířka ABS","ABS celkem","Kusy","Obsah"]
[null,null,null,null,null,null,null,null,null,null,null,null,null,null,null,null,null,null,null,null,null,null,null,null,null,null,null,null,null,null,{"$f":"100-COUNTBLANK(AE11:AE110)","v":0},{"$f":"SUM(C11:C110*AI11:AI110)*(IF(AJ11:AJ110>0,1,0)+IF(AL11:AL110>0,1,0))/1000","v":0},{"$f":"SUM(E11:E110*AI11:AI110)*(IF(AK11:AK110>0,1,0)+IF(AM11:AM110>0,1,0))/1000","v":0},{"$f":"AF7+AG7","v":0},{"$f":"SUM(AI11:AI110)","v":0},{"$f":"SUM(C11:C110*E11:E110*G11:G110)/1000/1000","v":0}]
[null,"název dílce:","x = délka:",null,"y = šířka:",null,"počet",null,"tloušťka ABS",null,null,null,"tloušťka ABS",null,null,null,"tloušťka ABS",null,null,null,"tloušťka ABS",null,null,null,"síla hrany v mm:",null,null,null,"poznámka"]
[null,null,"(po létech)",null,"(napříč létům)",null,"kusů:",null,0,0.5,1,2,0,0.5,1,2,0,0.5,1,2,0,0.5,1,2,"x","x","y","y",null,null,"Název","Délka","Šířka","Směr řezu","Počet","ABS 1","ABS 2","ABS 3","ABS 4","Poznámka"]
[null,null,"zadat",null,"zadat",null,"zadat",null,"označení pravým tlačítkem nebo lib.znak",null,null,null,null,null,null,null,"označení pravým tlačítkem nebo lib.znak",null,null,null,null,null,null,null,"kontrola nebo zadat"]
[1,null,null,"mm",null,"mm",null,"ks",null,null,null,null,null,null,null,null,null,null,null,null,null,null,null,null,null,null,null,null,null,null,{"$f":"IF(B11<>\"\",B11,\"\")","v":""},{"$f":"C11+1-MAX(Y11,0.5)-MAX(Z11,0.5)","v":0},{"$f":"E11+1-MAX(AA11,0.5)-MAX(AB11,0.5)","v":0},{"$f":" IF($AH$2,\"L\",0)","v":"L"},{"$f":"G11","v":0},{"$f":"Y11","v":0},{"$f":"AA11","v":0},{"$f":"Z11","v":0},{"$f":"AB11","v":0},{"$f":"IF( AC11<>\"\",AC11,\"\")","v":""}]
[2,null,null,"mm",null,"mm",null,"ks",null,null,null,null,null,null,null,null,null,null,null,null,null,null,null,null,null,null,null,null,null,null,"",0,{"$f":"E12+1-MAX(AA12,0.5)-MAX(AB12,0.5)","v":0},{"$f":" IF($AH$2,\"L\",0)","v":"L"},{"$f":"G12","v":0},{"$f":"Y12","v":0},{"$f":"AA12","v":0},{"$f":"Z12","v":0},{"$f":"AB12","v":0},{"$f":"IF( AC12<>\"\",AC12,\"\")","v":""}]
[3,null,null,"mm",null,"mm",null,"ks",null,null,null,null,null,null,null,null,null,null,null,null,null,null,null,null,null,null,null,null,null,null,"",0,{"$f":"E13+1-MAX(AA13,0.5)-MAX(AB13,0.5)","v":0},{"$f":" IF($AH$2,\"L\",0)","v":"L"},{"$f":"G13","v":0},{"$f":"Y13","v":0},{"$f":"AA13","v":0},{"$f":"Z13","v":0},{"$f":"AB13","v":0},""]
[4,null,null,"mm",null,"mm",null,"ks",null,null,null,null,null,null,null,null,null,null,null,null,null,null,null,null,null,null,null,null,null,null,"",0,0,"L",0,0,0,0,0,""]
[5,null,null,"mm",null,"mm",null,"ks",null,null,null,null,null,null,null,null,null,null,null,null,null,null,null,null,null,null,null,null,null,null,"",0,0,"L",0,0,0,0,0,""]
[6,null,null,"mm",null,"mm",null,"ks",null,null,null,null,null,null,null,null,null,null,null,null,null,null,null,null,null,null,null,null,null,null,"",0,0,"L",0,0,0,0,0,""]
[7,null,null,"mm",null,"mm",null,"ks",null,null,null,null,null,null,null,null,null,null,null,null,null,null,null,null,null,null,null,null,null,null,"",0,0,"L",0,0,0,0,0,""]
[8,null,null,"mm",null,"mm",null,"ks",null,null,null,null,null,null,null,null,null,null,null,null,null,null,null,null,null,null,null,null,null,null,"",0,0,"L",0,0,0,0,0,""]
[9,null,null,"mm",null,"mm",null,"ks",null,null,null,null,null,null,null,null,null,null,null,null,null,null,null,null,null,null,null,null,null,null,"",0,0,"L",0,0,0,0,0,""]
[10,null,null,"mm",null,"mm",null,"ks",null,null,null,null,null,null,null,null,null,null,null,null,null,null,null,null,null,null,null,null,null,null,"",0,0,"L",0,0,0,0,0,""]
[11,null,null,"mm",null,"mm",null,"ks",null,null,null,null,null,null,null,null,null,null,null,null,null,null,null,null,null,null,null,null,null,null,"",0,0,"L",0,0,0,0,0,""]
[12,null,null,"mm",null,"mm",null,"ks",null,null,null,null,null,null,null,null,null,null,null,null,null,null,null,null,null,null,null,null,null,null,"",0,0,"L",0,0,0,0,0,""]
[13,null,null,"mm",null,"mm",null,"ks",null,null,null,null,null,null,null,null,null,null,null,null,null,null,null,null,null,null,null,null,null,null,"",0,0,"L",0,0,0,0,0,""]
[14,null,null,"mm",null,"mm",null,"ks",null,null,null,null,null,null,null,null,null,null,null,null,null,null,null,null,null,null,null,null,null,null,"",0,0,"L",0,0,0,0,0,""]
[15,null,null,"mm",null,"mm",null,"ks",null,null,null,null,null,null,null,null,null,null,null,null,null,null,null,null,null,null,null,null,null,null,"",0,0,"L",0,0,0,0,0,""]
[16,null,null,"mm",null,"mm",null,"ks",null,null,null,null,null,null,null,null,null,null,null,null,null,null,null,null,null,null,null,null,null,null,"",0,0,"L",0,0,0,0,0,""]
[17,null,null,"mm",null,"mm",null,"ks",null,null,null,null,null,null,null,null,null,null,null,null,null,null,null,null,null,null,null,null,null,null,"",0,0,"L",0,0,0,0,0,""]
[18,null,null,"mm",null,"mm",null,"ks",null,null,null,null,null,null,null,null,null,null,null,null,null,null,null,null,null,null,null,null,null,null,"",0,0,"L",0,0,0,0,0,""]
[19,null,null,"mm",null,"mm",null,"ks",null,null,null,null,null,null,null,null,null,null,null,null,null,null,null,null,null,null,null,null,null,null,"",0,0,"L",0,0,0,0,0,""]
[20,null,null,"mm",null,"mm",null,"ks",null,null,null,null,null,null,null,null,null,null,null,null,null,null,null,null,null,null,null,null,null,null,"",0,0,"L",0,0,0,0,0,""]
[21,null,null,"mm",null,"mm",null,"ks",null,null,null,null,null,null,null,null,null,null,null,null,null,null,null,null,null,null,null,null,null,null,"",0,0,"L",0,0,0,0,0,""]
[22,null,null,"mm",null,"mm",null,"ks",null,null,null,null,null,null,null,null,null,null,null,null,null,null,null,null,null,null,null,null,null,null,"",0,0,"L",0,0,0,0,0,""]
[23,null,null,"mm",null,"mm",null,"ks",null,null,null,null,null,null,null,null,null,null,null,null,null,null,null,null,null,null,null,null,null,null,"",0,0,"L",0,0,0,0,0,""]
[24,null,null,"mm",null,"mm",null,"ks",null,null,null,null,null,null,null,null,null,null,null,null,null,null,null,null,null,null,null,null,null,null,"",0,0,"L",0,0,0,0,0,""]
[25,null,null,"mm",null,"mm",null,"ks",null,null,null,null,null,null,null,null,null,null,null,null,null,null,null,null,null,null,null,null,null,null,"",0,0,"L",0,0,0,0,0,""]
[26,null,null,"mm",null,"mm",null,"ks",null,null,null,null,null,null,null,null,null,null,null,null,null,null,null,null,null,null,null,null,null,null,"",0,0,"L",0,0,0,0,0,""]
[27,null,null,"mm",null,"mm",null,"ks",null,null,null,null,null,null,null,null,null,null,null,null,null,null,null,null,null,null,null,null,null,null,"",0,0,"L",0,0,0,0,0,""]
[28,null,null,"mm",null,"mm",null,"ks",null,null,null,null,null,null,null,null,null,null,null,null,null,null,null,null,null,null,null,null,null,null,"",0,0,"L",0,0,0,0,0,""]
[29,null,null,"mm",null,"mm",null,"ks",null,null,null,null,null,null,null,null,null,null,null,null,null,null,null,null,null,null,null,null,null,null,"",0,0,"L",0,0,0,0,0,""]
[30,null,null,"mm",null,"mm",null,"ks",null,null,null,null,null,null,null,null,null,null,null,null,null,null,null,null,null,null,null,null,null,null,"",0,0,"L",0,0,0,0,0,""]
[31,null,null,"mm",null,"mm",null,"ks",null,null,null,null,null,null,null,null,null,null,null,null,null,null,null,null,null,null,null,null,null,null,"",0,0,"L",0,0,0,0,0,""]
[32,null,null,"mm",null,"mm",null,"ks",null,null,null,null,null,null,null,null,null,null,null,null,null,null,null,null,null,null,null,null,null,null,"",0,0,"L",0,0,0,0,0,""]
[33,null,null,"mm",null,"mm",null,"ks",null,null,null,null,null,null,null,null,null,null,null,null,null,null,null,null,null,null,null,null,null,null,{"$f":"IF(B43<>\"\",B43,\"\")","v":""},0,0,"L",0,0,0,0,0,""]
[34,null,null,"mm",null,"mm",null,"ks",null,null,null,null,null,null,null,null,null,null,null,null,null,null,null,null,null,null,null,null,null,null,"",0,0,"L",0,0,0,0,0,""]
[35,null,null,"mm",null,"mm",null,"ks",null,null,null,null,null,null,null,null,null,null,null,null,null,null,null,null,null,null,null,null,null,null,"",0,0,"L",0,0,0,0,0,""]
[36,null,null,"mm",null,"mm",null,"ks",null,null,null,null,null,null,null,null,null,null,null,null,null,null,null,null,null,null,null,null,null,null,"",0,0,"L",0,0,0,0,0,""]
[37,null,null,"mm",null,"mm",null,"ks",null,null,null,null,null,null,null,null,null,null,null,null,null,null,null,null,null,null,null,null,null,null,"",0,0,"L",0,0,0,0,0,""]
[38,null,null,"mm",null,"mm",null,"ks",null,null,null,null,null,null,null,null,null,null,null,null,null,null,null,null,null,null,null,null,null,null,"",0,0,"L",0,0,0,0,0,""]
[39,null,null,"mm",null,"mm",null,"ks",null,null,null,null,null,null,null,null,null,null,null,null,null,null,null,null,null,null,null,null,null,null,"",0,0,"L",0,0,0,0,0,""]
[40,null,null,"mm",null,"mm",null,"ks",null,null,null,null,null,null,null,null,null,null,null,null,null,null,null,null,null,null,null,null,null,null,"",0,0,"L",0,0,0,0,0,""]
[41,null,null,"mm",null,"mm",null,"ks",null,null,null,null,null,null,null,null,null,null,null,null,null,null,null,null,null,null,null,null,null,null,"",0,0,"L",0,0,0,0,0,""]
[42,null,null,"mm",null,"mm",null,"ks",null,null,null,null,null,null,null,null,null,null,null,null,null,null,null,null,null,null,null,null,null,null,"",0,0,"L",0,0,0,0,0,""]
[43,null,null,"mm",null,"mm",null,"ks",null,null,null,null,null,null,null,null,null,null,null,null,null,null,null,null,null,null,null,null,null,null,"",0,0,"L",0,0,0,0,0,""]
[44,null,null,"mm",null,"mm",null,"ks",null,null,null,null,null,null,null,null,null,null,null,null,null,null,null,null,null,null,null,null,null,null,"",0,0,"L",0,0,0,0,0,""]
[45,null,null,"mm",null,"mm",null,"ks",null,null,null,null,null,null,null,null,null,null,null,null,null,null,null,null,null,null,null,null,null,null,"",0,0,"L",0,0,0,0,0,""]
[46,null,null,"mm",null,"mm",null,"ks",null,null,null,null,null,null,null,null,null,null,null,null,null,null,null,null,null,null,null,null,null,null,"",0,0,"L",0,0,0,0,0,""]
[47,null,null,"mm",null,"mm",null,"ks",null,null,null,null,null,null,null,null,null,null,null,null,null,null,null,null,null,null,null,null,null,null,"",0,0,"L",0,0,0,0,0,""]
[48,null,null,"mm",null,"mm",null,"ks",null,null,null,null,null,null,null,null,null,null,null,null,null,null,null,null,null,null,null,null,null,null,"",0,0,"L",0,0,0,0,0,""]
[49,null,null,"mm",null,"mm",null,"ks",null,null,null,null,null,null,null,null,null,null,null,null,null,null,null,null,null,null,null,null,null,null,"",0,0,"L",0,0,0,0,0,""]
[50,null,null,"mm",null,"mm",null,"ks",null,null,null,null,null,null,null,null,null,null,null,null,null,null,null,null,null,null,null,null,null,null,"",0,0,"L",0,0,0,0,0,""]
[51,null,null,"mm",null,"mm",null,"ks",null,null,null,null,null,null,null,null,null,null,null,null,null,null,null,null,null,null,null,null,null,null,"",0,0,"L",0,0,0,0,0,""]
[52,null,null,"mm",null,"mm",null,"ks",null,null,null,null,null,null,null,null,null,null,null,null,null,null,null,null,null,null,null,null,null,null,"",0,0,"L",0,0,0,0,0,""]
[53,null,null,"mm",null,"mm",null,"ks",null,null,null,null,null,null,null,null,null,null,null,null,null,null,null,null,null,null,null,null,null,null,"",0,0,"L",0,0,0,0,0,""]
[54,null,null,"mm",null,"mm",null,"ks",null,null,null,null,null,null,null,null,null,null,null,null,null,null,null,null,null,null,null,null,null,null,"",0,0,"L",0,0,0,0,0,""]
[55,null,null,"mm",null,"mm",null,"ks",null,null,null,null,null,null,null,null,null,null,null,null,null,null,null,null,null,null,null,null,null,null,"",0,0,"L",0,0,0,0,0,""]
[56,null,null,"mm",null,"mm",null,"ks",null,null,null,null,null,null,null,null,null,null,null,null,null,null,null,null,null,null,null,null,null,null,"",0,0,"L",0,0,0,0,0,""]
[57,null,null,"mm",null,"mm",null,"ks",null,null,null,null,null,null,null,null,null,null,null,null,null,null,null,null,null,null,null,null,null,null,"",0,0,"L",0,0,0,0,0,""]
[58,null,null,"mm",null,"mm",null,"ks",null,null,null,null,null,null,null,null,null,null,null,null,null,null,null,null,null,null,null,null,null,null,"",0,0,"L",0,0,0,0,0,""]
[59,null,null,"mm",null,"mm",null,"ks",null,null,null,null,null,null,null,null,null,null,null,null,null,null,null,null,null,null,null,null,null,null,"",0,0,"L",0,0,0,0,0,""]
[60,null,null,"mm",null,"mm",null,"ks",null,null,null,null,null,null,null,null,null,null,null,null,null,null,null,null,null,null,null,null,null,null,"",0,0,"L",0,0,0,0,0,""]
[61,null,null,"mm",null,"mm",null,"ks",null,null,null,null,null,null,null,null,null,null,null,null,null,null,null,null,null,null,null,null,null,null,"",0,0,"L",0,0,0,0,0,""]
[62,null,null,"mm",null,"mm",null,"ks",null,null,null,null,null,null,null,null,null,null,null,null,null,null,null,null,null,null,null,null,null,null,"",0,0,"L",0,0,0,0,0,""]
[63,null,null,"mm",null,"mm",null,"ks",null,null,null,null,null,null,null,null,null,null,null,null,null,null,null,null,null,null,null,null,null,null,"",0,0,"L",0,0,0,0,0,""]
[64,null,null,"mm",null,"mm",null,"ks",null,null,null,null,null,null,null,null,null,null,null,null,null,null,null,null,null,null,null,null,null,null,"",0,0,"L",0,0,0,0,0,""]
[65,null,null,"mm",null,"mm",null,"ks",null,null,null,null,null,null,null,null,null,null,null,null,null,null,null,null,null,null,null,null,null,null,{"$f":"IF(B75<>\"\",B75,\"\")","v":""},{"$f":"C75+1-MAX(Y75,0.5)-MAX(Z75,0.5)","v":0},0,"L",0,0,0,0,0,""]
[66,null,null,"mm",null,"mm",null,"ks",null,null,null,null,null,null,null,null,null,null,null,null,null,null,null,null,null,null,null,null,null,null,"",0,0,"L",0,0,0,0,0,{"$f":"IF( AC76<>\"\",AC76,\"\")","v":""}]
[67,null,null,"mm",null,"mm",null,"ks",null,null,null,null,null,null,null,null,null,null,null,null,null,null,null,null,null,null,null,null,null,null,"",0,{"$f":"E77+1-MAX(AA77,0.5)-MAX(AB77,0.5)","v":0},{"$f":" IF($AH$2,\"L\",0)","v":"L"},{"$f":"G77","v":0},{"$f":"Y77","v":0},{"$f":"AA77","v":0},{"$f":"Z77","v":0},{"$f":"AB77","v":0},""]
[68,null,null,"mm",null,"mm",null,"ks",null,null,null,null,null,null,null,null,null,null,null,null,null,null,null,null,null,null,null,null,null,null,"",0,0,"L",0,0,0,0,0,""]
[69,null,null,"mm",null,"mm",null,"ks",null,null,null,null,null,null,null,null,null,null,null,null,null,null,null,null,null,null,null,null,null,null,"",0,0,"L",0,0,0,0,0,""]
[70,null,null,"mm",null,"mm",null,"ks",null,null,null,null,null,null,null,null,null,null,null,null,null,null,null,null,null,null,null,null,null,null,"",0,0,"L",0,0,0,0,0,""]
[71,null,null,"mm",null,"mm",null,"ks",null,null,null,null,null,null,null,null,null,null,null,null,null,null,null,null,null,null,null,null,null,null,"",0,0,"L",0,0,0,0,0,""]
[72,null,null,"mm",null,"mm",null,"ks",null,null,null,null,null,null,null,null,null,null,null,null,null,null,null,null,null,null,null,null,null,null,"",0,0,"L",0,0,0,0,0,""]
[73,null,null,"mm",null,"mm",null,"ks",null,null,null,null,null,null,null,null,null,null,null,null,null,null,null,null,null,null,null,null,null,null,"",0,0,"L",0,0,0,0,0,""]
[74,null,null,"mm",null,"mm",null,"ks",null,null,null,null,null,null,null,null,null,null,null,null,null,null,null,null,null,null,null,null,null,null,"",0,0,"L",0,0,0,0,0,""]
[75,null,null,"mm",null,"mm",null,"ks",null,null,null,null,null,null,null,null,null,null,null,null,null,null,null,null,null,null,null,null,null,null,"",0,0,"L",0,0,0,0,0,""]
[76,null,null,"mm",null,"mm",null,"ks",null,null,null,null,null,null,null,null,null,null,null,null,null,null,null,null,null,null,null,null,null,null,"",0,0,"L",0,0,0,0,0,""]
[77,null,null,"mm",null,"mm",null,"ks",null,null,null,null,null,null,null,null,null,null,null,null,null,null,null,null,null,null,null,null,null,null,"",0,0,"L",0,0,0,0,0,""]
[78,null,null,"mm",null,"mm",null,"ks",null,null,null,null,null,null,null,null,null,null,null,null,null,null,null,null,null,null,null,null,null,null,"",0,0,"L",0,0,0,0,0,""]
[79,null,null,"mm",null,"mm",null,"ks",null,null,null,null,null,null,null,null,null,null,null,null,null,null,null,null,null,null,null,null,null,null,"",0,0,"L",0,0,0,0,0,""]
[80,null,null,"mm",null,"mm",null,"ks",null,null,null,null,null,null,null,null,null,null,null,null,null,null,null,null,null,null,null,null,null,null,"",0,0,"L",0,0,0,0,0,""]
[81,null,null,"mm",null,"mm",null,"ks",null,null,null,null,null,null,null,null,null,null,null,null,null,null,null,null,null,null,null,null,null,null,"",0,0,"L",0,0,0,0,0,""]
[82,null,null,"mm",null,"mm",null,"ks",null,null,null,null,null,null,null,null,null,null,null,null,null,null,null,null,null,null,null,null,null,null,"",0,0,"L",0,0,0,0,0,""]
[83,null,null,"mm",null,"mm",null,"ks",null,null,null,null,null,null,null,null,null,null,null,null,null,null,null,null,null,null,null,null,null,null,"",0,0,"L",0,0,0,0,0,""]
[84,null,null,"mm",null,"mm",null,"ks",null,null,null,null,null,null,null,null,null,null,null,null,null,null,null,null,null,null,null,null,null,null,"",0,0,"L",0,0,0,0,0,""]
[85,null,null,"mm",null,"mm",null,"ks",null,null,null,null,null,null,null,null,null,null,null,null,null,null,null,null,null,null,null,null,null,null,"",0,0,"L",0,0,0,0,0,""]
[86,null,null,"mm",null,"mm",null,"ks",null,null,null,null,null,null,null,null,null,null,null,null,null,null,null,null,null,null,null,null,null,null,"",0,0,"L",0,0,0,0,0,""]
[87,null,null,"mm",null,"mm",null,"ks",null,null,null,null,null,null,null,null,null,null,null,null,null,null,null,null,null,null,null,null,null,null,"",0,0,"L",0,0,0,0,0,""]
[88,null,null,"mm",null,"mm",null,"ks",null,null,null,null,null,null,null,null,null,null,null,null,null,null,null,null,null,null,null,null,null,null,"",0,0,"L",0,0,0,0,0,""]
[89,null,null,"mm",null,"mm",null,"ks",null,null,null,null,null,null,null,null,null,null,null,null,null,null,null,null,null,null,null,null,null,null,"",0,0,"L",0,0,0,0,0,""]
[90,null,null,"mm",null,"mm",null,"ks",null,null,null,null,null,null,null,null,null,null,null,null,null,null,null,null,null,null,null,null,null,null,"",0,0,"L",0,0,0,0,0,""]
[91,null,null,"mm",null,"mm",null,"ks",null,null,null,null,null,null,null,null,null,null,null,null,null,null,null,null,null,null,null,null,null,null,"",0,0,"L",0,0,0,0,0,""]
[92,null,null,"mm",null,"mm",null,"ks",null,null,null,null,null,null,null,null,null,null,null,null,null,null,null,null,null,null,null,null,null,null,"",0,0,"L",0,0,0,0,0,""]
[93,null,null,"mm",null,"mm",null,"ks",null,null,null,null,null,null,null,null,null,null,null,null,null,null,null,null,null,null,null,null,null,null,"",0,0,"L",0,0,0,0,0,""]
[94,null,null,"mm",null,"mm",null,"ks",null,null,null,null,null,null,null,null,null,null,null,null,null,null,null,null,null,null,null,null,null,null,"",0,0,"L",0,0,0,0,0,""]
[95,null,null,"mm",null,"mm",null,"ks",null,null,null,null,null,null,null,null,null,null,null,null,null,null,null,null,null,null,null,null,null,null,"",0,0,"L",0,0,0,0,0,""]
[96,null,null,"mm",null,"mm",null,"ks",null,null,null,null,null,null,null,null,null,null,null,null,null,null,null,null,null,null,null,null,null,null,"",0,0,"L",0,0,0,0,0,""]
[97,null,null,"mm",null,"mm",null,"ks",null,null,null,null,null,null,null,null,null,null,null,null,null,null,null,null,null,null,null,null,null,null,"",0,0,"L",0,0,0,0,0,""]
[98,null,null,"mm",null,"mm",null,"ks",null,null,null,null,null,null,null,null,null,null,null,null,null,null,null,null,null,null,null,null,null,null,"",0,0,"L",0,0,0,0,0,""]
[99,null,null,"mm",null,"mm",null,"ks",null,null,null,null,null,null,null,null,null,null,null,null,null,null,null,null,null,null,null,null,null,null,"",0,0,"L",0,0,0,0,0,""]
[100,null,null,"mm",null,"mm",null,"ks",null,null,null,null,null,null,null,null,null,null,null,null,null,null,null,null,null,null,null,null,null,null,"",0,0,"L",0,0,0,0,0,""]